{"text_format":"1","workbook":"xlsx","n_sheets":15,"sheets":["Prezenční listina","Startovní listina","Výsledková listina","Družstva","Běh Vírem","mezičasy","Kategorie A","Kategorie B","Kategorie C","Kategorie D","Kategorie E","Kategorie F","Kategorie G","Kategorie H","List1"],"not_rendered":{"charts":0,"images":12,"macros":1,"external_links":0,"defined_names":22,"comments":0,"pivot_tables":0},"unopened":[],"bounds":{"document_bytes":16777216,"sheet_cells":100000,"rows_first":2000,"rows_last":500,"rows_between":2000,"halvings":0,"cell_chars":16384,"cell_head_chars":4096},"cells_cut":0,"cells_raw":0,"read":"whole","date_system":"1900"}

{"sheet":"Prezenční listina","index":0,"n_rows":152,"n_cols":19,"rows_kept":152,"cut":false,"hidden":true,"merged":[[5,10,5,12],[0,0,0,7]]}
[{"$f":"\"Prezenční listina - Malý svratecký maratón \"&O2","v":"Prezenční listina - Malý svratecký maratón 2014"}]
[null,"Příjmení","Jméno","Narození","Oddíl / Bydliště","Startovní číslo","Adresa (e-mail)","Kategorie",null,null,null,null,null,null,2014,null,null,null,"Pohlaví"]
[{"$f":"IF(B3<>0,A2+1,\"\")","v":1},"Alman","Dušan",1967,"Babice",18,null,{"$f":"IF(S3<>\"Ž\",IF($O$2-D3>39,IF($O$2-D3>49,IF($O$2-D3>59,IF($O$2-D3>69,IF($O$2-D3>90,\"to snad ne!\",\"E\"),\"D\"),\"C\"),\"B\"),\"A\"),IF(S3=\"Ž\",IF($O$2-D3>34,IF($O$2-D3>44,IF($O$2-D3>90,\"to snad ne!\",\"H\"),\"G\"),\"F\")))","v":"B"},null,null,null,null,null,null,null,null,null,null,{"$f":"IF(LEN(B3)=0,\" \",IF(MID(B3,LEN(B3),1)=\"á\",\"Ž\",\"M\"))","v":"M"}]
[2,"Baciu","Serban",1980,"TRIEXPERT Brno ",null,"družstvo","A",null,null,null,null,null,null,null,null,null,null,"M"]
[3,"Barešová","Milada",1975,"Kunštát",70,null,"G",null,null,null,null,null,null,null,null,null,null,"Ž"]
[4,"Bednář","Tomáš",1980,"Jihlava",null,null,"A",null,null,"Rok nastavit v buňce O2",null,null,null,null,null,null,null,"M"]
[5,"Beniačová","Linda",1978,"Brno",44,null,"G",null,null,null,null,null,null,null,null,null,null,"Ž"]
[6,"Bílý","Zdeněk",1959,"Hvězda SKP Pardubice",null,null,"C",null,null,null,null,null,null,null,null,null,null,"M"]
[7,"Blaha","Rostislav",1989,"BK Vísky",40,null,"A",null,null,null,null,null,null,null,null,null,null,"M"]
[8,"Blaha","Stanislav",1963,"BK Vísky",38,null,"C",null,null,null,null,null,null,null,null,null,null,"M"]
[9,"Borek","Aleš",1977,"adidas Running TEAM",31,null,"A",null,null,null,null,null,null,null,null,null,null,"M"]
[10,"Brabenec","Miroslav",1959,"Žďár nad Sázavou",103,null,"C",null,null,null,null,null,null,null,null,null,null,"M"]
[11,"Brabenec","Aleš",1987,"Žďár nad Sázavou",104,null,"A",null,null,null,null,null,null,null,null,null,null,"M"]
[12,"Crhová","Ivana",1966,"BK Vísky",82,null,"H",null,null,null,null,null,null,null,null,null,null,"Ž"]
[13,"Czerný","Pavel",1981,"Karviná",73,null,"A",null,null,null,null,null,null,null,null,null,null,"M"]
[14,"Čech","Martin",1978,"Farma Jiřího Chrásta",36,null,"A",null,null,null,null,null,null,null,null,null,null,"M"]
[15,"Čech","Aleš",1976,"Farma Jiřího Chrásta",34,null,"A",null,null,null,null,null,null,null,null,null,null,"M"]
[16,"Češner","Vladimír",1958,"Odolena Voda",56,null,"C",null,null,null,null,null,null,null,null,null,null,"M"]
[17,"Dubský","Roman",1978,"Přibyslav",41,null,"A",null,null,null,null,null,null,null,null,null,null,"M"]
[{"$f":"IF(B20<>0,A19+1,\"\")","v":18},"Dušil","Jaroslav",1970,"Brno",17,null,"B",null,null,null,null,null,null,null,null,null,null,"M"]
[19,"El Halaoui","Ali",1984,"Le Club Casablancaise (Maroko)",null,null,"A",null,null,null,null,null,null,null,null,null,null,"M"]
[20,"Filip","Rostislav",1986,"HO Vír",93,null,"A",null,null,null,null,null,null,null,null,null,null,"M"]
[21,"Fučík","Jaroslav",1974,"Prosetín",106,null,"B",null,null,null,null,null,null,null,null,null,null,"M"]
[22,"Glier","Michal",1982,"Moravská Slávia Brno",84,null,"A",null,null,null,null,null,null,null,null,null,null,"M"]
[23,"Holý","Josef",1941,"Moravská Slávia Brno",8,null,"E",null,null,null,null,null,null,null,null,null,null,"M"]
[24,"Homoláč","Jiří",1990,"adidas Running TEAM",30,null,"A",null,null,null,null,null,null,null,null,null,null,"M"]
[25,"Hrdina","Tomáš",1979,"TRIEXPERT Brno ",96,"družstvo","A",null,null,null,null,null,null,null,null,null,null,"M"]
[26,"Hrubý","Milan",1938,"Blansko",10,"odvoz","E",null,null,null,null,null,null,null,null,null,null,"M"]
[27,"Hübner","Tomáš",1979,"SDH Bolešín",55,null,"A",null,null,null,null,null,null,null,null,null,null,"M"]
[28,"Hübner","Jan",1978,"SDH Bolešín",54,null,"A",null,null,null,null,null,null,null,null,null,null,"M"]
[29,"Chromý","Bořivoj",1953,"Tišnov",12,"odvoz","D",null,null,null,null,null,null,null,null,null,null,"M"]
[30,"Janek","Petr",1969,"Brno",77,null,"B",null,null,null,null,null,null,null,null,null,null,"M"]
[31,"Jaskulka","Martin",1968,"Kuřim",109,null,"B",null,null,null,null,null,null,null,null,null,null,"M"]
[32,"Kalich","Radim",1985,"Heliasport Odranec",98,null,"A",null,null,null,null,null,null,null,null,null,null,"M"]
[33,"Kalich","Dalibor",1961,"Odranec",100,null,{"$f":"IF(S35<>\"Ž\",IF($O$2-D35>39,IF($O$2-D35>49,IF($O$2-D35>59,IF($O$2-D35>69,IF($O$2-D35>90,\"to snad ne!\",\"E\"),\"D\"),\"C\"),\"B\"),\"A\"),IF(S35=\"Ž\",IF($O$2-D35>34,IF($O$2-D35>44,IF($O$2-D35>90,\"to snad ne!\",\"H\"),\"G\"),\"F\")))","v":"C"},null,null,null,null,null,null,null,null,null,null,{"$f":"IF(LEN(B35)=0,\" \",IF(MID(B35,LEN(B35),1)=\"á\",\"Ž\",\"M\"))","v":"M"}]
[34,"Kalichová","Lucie",1989,"Odranec",97,null,"F",null,null,null,null,null,null,null,null,null,null,"Ž"]
[35,"Kameníček","Michal",1986,"Vinařice",16,null,"A",null,null,null,null,null,null,null,null,null,null,"M"]
[36,"Kocur","Lukáš",1977,"Otmarov",79,null,"A",null,null,null,null,null,null,null,null,null,null,"M"]
[37,"Komárková","Zdeňka",1974,"SDH Bolešín",7,null,"G",null,null,null,null,null,null,null,null,null,null,"Ž"]
[38,"Konečný","Libor",1971,"Kuřim",108,null,"B",null,null,null,null,null,null,null,null,null,null,"M"]
[39,"Konečný","Jaroslav",1969,"Popůvky",99,null,"B",null,null,null,null,null,null,null,null,null,null,"M"]
[40,"Koutský","Tomáš",1987,"HO Vír",92,null,"A",null,null,null,null,null,null,null,null,null,null,"M"]
[41,"Krátká","Anna",1969,"Hvězda SKP Pardubice",null,null,"H",null,null,null,null,null,null,null,null,null,null,"Ž"]
[42,"Krátký","Josef",1965,"Hvězda SKP Pardubice",null,null,"B",null,null,null,null,null,null,null,null,null,null,"M"]
[43,"Kratochvíl","Jaroslav",1977,"SDH Hluboké",107,null,"A",null,null,null,null,null,null,null,null,null,null,"M"]
[44,"Krejčová","Magda",1980,"Brno",76,null,"F",null,null,null,null,null,null,null,null,null,null,"Ž"]
[45,"Kučínský","Pavel",1959,"Brno",23,null,"C",null,null,null,null,null,null,null,null,null,null,"M"]
[46,"Kunčar","David",1975,"Spartak Praha 4",46,null,"A",null,null,null,null,null,null,null,null,null,null,"M"]
[47,"Ledvinka","Josef",1972,"Přibyslav",26,null,"B",null,null,null,null,null,null,null,null,null,null,"M"]
[48,"Lorenčík","Aleš",1973,"Chrudim",27,null,"B",null,null,null,null,null,null,null,null,null,null,"M"]
[49,"Lorenzová","Dana",1968,"Nové Město na Moravě",null,null,"H",null,null,null,null,null,null,null,null,null,null,"Ž"]
[50,"Martincová","Ivana",1963,"Moravská Slávia Brno",11,"nocleh 3lůžkáč","H",null,null,null,null,null,null,null,null,null,null,"Ž"]
[51,"Mazourek","Jiří",1979,"Bystřice nad Pernštejnem",45,null,"A",null,null,null,null,null,null,null,null,null,null,"M"]
[52,"Měřínský","Jaroslav",1961,"AK Perná",61,null,"C",null,null,null,null,null,null,null,null,null,null,"M"]
[{"$f":"IF(B55<>0,A54+1,\"\")","v":53},"Milka","Zdeněk",1984,"Brno",null,"odvoz","A",null,null,null,null,null,null,null,null,null,null,"M"]
[54,"Nekuža","Jiří",1951,"Kašpar Ostrava",37,null,"D",null,null,null,null,null,null,null,null,null,null,"M"]
[55,"Nosek","Pavel",1965,"ASK Slavkov u Brna",83,null,"B",null,null,null,null,null,null,null,null,null,null,"M"]
[56,"Nosek","Miroslav",1955,"Moravská Slávia Brno",53,null,"C",null,null,null,null,null,null,null,null,null,null,"M"]
[57,"Novotný","Petr",1965,"Kuřim",110,null,"B",null,null,null,null,null,null,null,null,null,null,"M"]
[58,"Ondráček","Tomáš",1977,"Sporty.cz Brno",72,null,"A",null,null,null,null,null,null,null,null,null,null,"M"]
[59,"Orálek","Daniel",1970,"Moravská Slávia Brno",102,null,"B",null,null,null,null,null,null,null,null,null,null,"M"]
[60,"Ouassou","Jamal",1985,"Le Club Casablancaise (Maroko)",null,null,"A",null,null,null,null,null,null,null,null,null,null,"M"]
[61,"Ožana","Václav",1964,"TJ Nové Město na Moravě",null,null,"C",null,null,null,null,null,null,null,null,null,null,"M"]
[62,"Pavelka","Richard",1981,"Brno",67,null,"A",null,null,null,null,null,null,null,null,null,null,"M"]
[63,"Peštuková","Ivana",1990,"Vinařice",null,null,"F",null,null,null,null,null,null,null,null,null,null,"Ž"]
[64,"Pokorný","Václav",1978,"Brno",105,null,"A",null,null,null,null,null,null,null,null,null,null,"M"]
[65,"Procházková","Tereza",1990,"Orel Ořechov",28,null,{"$f":"IF(S67<>\"Ž\",IF($O$2-D67>39,IF($O$2-D67>49,IF($O$2-D67>59,IF($O$2-D67>69,IF($O$2-D67>90,\"to snad ne!\",\"E\"),\"D\"),\"C\"),\"B\"),\"A\"),IF(S67=\"Ž\",IF($O$2-D67>34,IF($O$2-D67>44,IF($O$2-D67>90,\"to snad ne!\",\"H\"),\"G\"),\"F\")))","v":"F"},null,null,null,null,null,null,null,null,null,null,{"$f":"IF(LEN(B67)=0,\" \",IF(MID(B67,LEN(B67),1)=\"á\",\"Ž\",\"M\"))","v":"Ž"}]
[66,"Ráček-Pelikánová","Dáša",1976,"Brno",64,null,"G",null,null,null,null,null,null,null,null,null,null,"Ž"]
[{"$f":"IF(B69<>0,A68+1,\"\")","v":67},"Radomská","Michaela",1988,"Sokol Bělá nad Svitavou",21,null,"F",null,null,null,null,null,null,null,null,null,null,"Ž"]
[68,"Rerych","Jiří",1962,"Moravská Slávia Brno",51,null,"C",null,null,null,null,null,null,null,null,null,null,"M"]
[69,"Řezníček","Roman",1977,"Žďár nad Sázavou",80,null,"A",null,null,null,null,null,null,null,null,null,null,"M"]
[70,"Sedláček","Svatopluk",1957,"Moravská Slávia Brno",111,null,"C",null,null,null,null,null,null,null,null,null,null,"M"]
[71,"Stejskal","Petr",1976,"Farma Jiřího Chrásta",35,null,"A",null,null,null,null,null,null,null,null,null,null,"M"]
[72,"Suchý","Karel",1956,"Náměšť nad Oslavou",33,null,"C",null,null,null,null,null,null,null,null,null,null,"M"]
[73,"Svoboda","Petr",1968,"Moravská Slávia Brno",75,null,"B",null,null,null,null,null,null,null,null,null,null,"M"]
[74,"Štach","Martin",1981,"Bílovice nad Svitavou",48,null,"A",null,null,null,null,null,null,null,null,null,null,"M"]
[75,"Štýbnar","Zbyněk",1974,"Běžec Vysočiny Jihlava",14,null,"B",null,null,null,null,null,null,null,null,null,null,"M"]
[76,"Veškrna","Ivan",1983,"Brno",29,null,"A",null,null,null,null,null,null,null,null,null,null,"M"]
[77,"Zouhar","Libor",1958,"Brno Líšeň",24,null,"C",null,null,null,null,null,null,null,null,null,null,"M"]
[78,"Žák","Jiří",1971,"Žakisova škola běhu",null,null,"B",null,null,null,null,null,null,null,null,null,null,"M"]
[79,"Zálešák","Michal",1982,"Praha",1,null,{"$f":"IF(S81<>\"Ž\",IF($O$2-D81>39,IF($O$2-D81>49,IF($O$2-D81>59,IF($O$2-D81>69,IF($O$2-D81>90,\"to snad ne!\",\"E\"),\"D\"),\"C\"),\"B\"),\"A\"),IF(S81=\"Ž\",IF($O$2-D81>34,IF($O$2-D81>44,IF($O$2-D81>90,\"to snad ne!\",\"H\"),\"G\"),\"F\")))","v":"A"},null,null,null,null,null,null,null,null,null,null,"M"]
[80,"Jež","Zdeněk",1977,"STS Chvojkovice Brod",2,null,"A",null,null,null,null,null,null,null,null,null,null,"M"]
[81,"Podsedník","Marek",1985,"Miroslav",3,null,"A",null,null,null,null,null,null,null,null,null,null,"M"]
[82,"Navrátilová","Vlasta",1983,"Vír",90,null,"F",null,null,null,null,null,null,null,null,null,null,"Ž"]
[83,"Zourek","Karel",1959,"Bedřichovice",4,null,"C",null,null,null,null,null,null,null,null,null,null,"M"]
[84,"Ryška","Vít",1975,"VSK UNI BRNO",5,null,"A",null,null,null,null,null,null,null,null,null,null,"M"]
[85,"Ďurdiaková","Tereza",1991,"AK Olymp Brno",6,null,"F",null,null,null,null,null,null,null,null,null,null,"Ž"]
[86,"Borovec","Alexandr",1976,"Choceň",9,null,"A",null,null,null,null,null,null,null,null,null,null,"M"]
[87,"Provazník","Milan",1966,"Polička",13,null,"B",null,null,null,null,null,null,null,null,null,null,"M"]
[88,"Hejtmánek","Miroslav",1970,"Brno",19,null,{"$f":"IF(S90<>\"Ž\",IF($O$2-D90>39,IF($O$2-D90>49,IF($O$2-D90>59,IF($O$2-D90>69,IF($O$2-D90>90,\"to snad ne!\",\"E\"),\"D\"),\"C\"),\"B\"),\"A\"),IF(S90=\"Ž\",IF($O$2-D90>34,IF($O$2-D90>44,IF($O$2-D90>90,\"to snad ne!\",\"H\"),\"G\"),\"F\")))","v":"B"},null,null,null,null,null,null,null,null,null,null,"M"]
[89,"Hlavsa","Tomáš",1983,"Adamov",20,null,"A",null,null,null,null,null,null,null,null,null,null,"M"]
[90,"Kryštof","Ondřej",1976,"TJ Jiskra Vír",22,null,"A",null,null,null,null,null,null,null,null,null,null,"M"]
[91,"Klimánková","Eva",1973,"Brno",42,null,"G",null,null,null,null,null,null,null,null,null,null,"Ž"]
[92,"Mihola","Zbyněk",1975,"Kunštát",43,null,"A",null,null,null,null,null,null,null,null,null,null,"M"]
[93,"Machát","Libor",1979,"Bílovice nad Svitavou",47,null,"A",null,null,null,null,null,null,null,null,null,null,"M"]
[94,"Pešáková","Mirka",1985,"Tetčice",49,null,"F",null,null,null,null,null,null,null,null,null,null,"Ž"]
[95,"Kubík","Pavel",1981,"Blansko",50,null,"A",null,null,null,null,null,null,null,null,null,null,"M"]
[96,"Janů","Jan",1993,"Hvězda SKP Pardubice",57,null,"A",null,null,null,null,null,null,null,null,null,null,"M"]
[97,"Bódiová","Adéla",1976,"Sporty.cz Brno",58,null,"G",null,null,null,null,null,null,null,null,null,null,{"$f":"IF(LEN(B99)=0,\" \",IF(MID(B99,LEN(B99),1)=\"á\",\"Ž\",\"M\"))","v":"Ž"}]
[98,"Boháč","Jiří",1954,"Brno",59,null,"D",null,null,null,null,null,null,null,null,null,null,"M"]
[99,"Matuška","Slávek",1980,"HO Vír",60,null,"A",null,null,null,null,null,null,null,null,null,null,"M"]
[100,"Kohut","Jan",1985,"RELAX-FIT.CZ",62,null,"A",null,null,null,null,null,null,null,null,null,null,"M"]
[101,"Doležal","Marek",1973,"NEW BALANCE",63,null,"B",null,null,null,null,null,null,null,null,null,null,"M"]
[102,"Veselý","Prokop",1969,"Kunštát",69,null,"B",null,null,null,null,null,null,null,null,null,null,"M"]
[103,"Čuhel","Jiří",1958,"Křtěnov",74,null,"C",null,null,null,null,null,null,null,null,null,null,"M"]
[104,"Vojta","Marek",1988,"TJ Slávia Hradec Králové",85,null,"A",null,null,null,null,null,null,null,null,null,null,"M"]
[105,"Navrátil","Marek",1990,"Rožná",86,null,"A",null,null,null,null,null,null,null,null,null,null,"M"]
[106,"Centko","Pavol",1980,"HO Vír",87,null,"A",null,null,null,null,null,null,null,null,null,null,"M"]
[107,"Příhoda","Jan",1983,"Ždánice",89,null,"A",null,null,null,null,null,null,null,null,null,null,"M"]
[108,"Břížďalová","Jana",1978,"Brno",91,null,"G",null,null,null,null,null,null,null,null,null,null,"Ž"]
[109,"Kubík","Oldřich",1981,"HO Vír",94,null,"A",null,null,null,null,null,null,null,null,null,null,"M"]
[110,"Tyleček","Pavel",1973,"Brno",95,null,"B",null,null,null,null,null,null,null,null,null,null,"M"]
[111,"Chudoba","Pavel",1991,"RMP TEAM Odranec",101,null,"A",null,null,null,null,null,null,null,null,null,null,"M"]
["",null,null,null,null,null,null,"to snad ne!",null,null,null,null,null,null,null,null,null,null," "]
["",null,null,null,null,null,null,"to snad ne!",null,null,null,null,null,null,null,null,null,null," "]
["",null,null,null,null,null,null,"to snad ne!",null,null,null,null,null,null,null,null,null,null," "]
["",null,null,null,null,null,null,"to snad ne!",null,null,null,null,null,null,null,null,null,null," "]
["",null,null,null,null,null,null,"to snad ne!",null,null,null,null,null,null,null,null,null,null," "]
["",null,null,null,null,null,null,"to snad ne!",null,null,null,null,null,null,null,null,null,null," "]
["",null,null,null,null,null,null,"to snad ne!",null,null,null,null,null,null,null,null,null,null," "]
["",null,null,null,null,null,null,"to snad ne!",null,null,null,null,null,null,null,null,null,null," "]
["",null,null,null,null,null,null,"to snad ne!",null,null,null,null,null,null,null,null,null,null," "]
["",null,null,null,null,null,null,"to snad ne!",null,null,null,null,null,null,null,null,null,null," "]
["",null,null,null,null,null,null,"to snad ne!",null,null,null,null,null,null,null,null,null,null," "]
["",null,null,null,null,null,null,"to snad ne!",null,null,null,null,null,null,null,null,null,null," "]
["",null,null,null,null,null,null,"to snad ne!",null,null,null,null,null,null,null,null,null,null," "]
["",null,null,null,null,null,null,"to snad ne!",null,null,null,null,null,null,null,null,null,null," "]
["",null,null,null,null,null,null,"to snad ne!",null,null,null,null,null,null,null,null,null,null," "]
["",null,null,null,null,null,null,"to snad ne!",null,null,null,null,null,null,null,null,null,null," "]
["",null,null,null,null,null,null,"to snad ne!",null,null,null,null,null,null,null,null,null,null," "]
["",null,null,null,null,null,null,"to snad ne!",null,null,null,null,null,null,null,null,null,null,{"$f":"IF(LEN(B131)=0,\" \",IF(MID(B131,LEN(B131),1)=\"á\",\"Ž\",\"M\"))","v":" "}]
["",null,null,null,null,null,null,"to snad ne!",null,null,null,null,null,null,null,null,null,null," "]
[{"$f":"IF(B133<>0,A132+1,\"\")","v":""},null,null,null,null,null,null,"to snad ne!",null,null,null,null,null,null,null,null,null,null," "]
["",null,null,null,null,null,null,"to snad ne!",null,null,null,null,null,null,null,null,null,null," "]
["",null,null,null,null,null,null,"to snad ne!",null,null,null,null,null,null,null,null,null,null," "]
["",null,null,null,null,null,null,"to snad ne!",null,null,null,null,null,null,null,null,null,null," "]
["",null,null,null,null,null,null,"to snad ne!",null,null,null,null,null,null,null,null,null,null," "]
["",null,null,null,null,null,null,"to snad ne!",null,null,null,null,null,null,null,null,null,null," "]
["",null,null,null,null,null,null,"to snad ne!",null,null,null,null,null,null,null,null,null,null," "]
["",null,null,null,null,null,null,"to snad ne!",null,null,null,null,null,null,null,null,null,null," "]
["",null,null,null,null,null,null,"to snad ne!",null,null,null,null,null,null,null,null,null,null," "]
["",null,null,null,null,null,null,"to snad ne!",null,null,null,null,null,null,null,null,null,null," "]
["",null,null,null,null,null,null,"to snad ne!",null,null,null,null,null,null,null,null,null,null," "]
["",null,null,null,null,null,null,"to snad ne!",null,null,null,null,null,null,null,null,null,null," "]
["",null,null,null,null,null,null,"to snad ne!",null,null,null,null,null,null,null,null,null,null," "]
["",null,null,null,null,null,null,"to snad ne!",null,null,null,null,null,null,null,null,null,null," "]
["",null,null,null,null,null,null,"to snad ne!",null,null,null,null,null,null,null,null,null,null," "]
["",null,null,null,null,null,null,"to snad ne!",null,null,null,null,null,null,null,null,null,null," "]
["",null,null,null,null,null,null,"to snad ne!",null,null,null,null,null,null,null,null,null,null," "]
["",null,null,null,null,null,null,"to snad ne!",null,null,null,null,null,null,null,null,null,null," "]
["",null,null,null,null,null,null,"to snad ne!",null,null,null,null,null,null,null,null,null,null," "]
["",null,null,null,null,null,null,"to snad ne!",null,null,null,null,null,null,null,null,null,null," "]

{"sheet":"Startovní listina","index":1,"n_rows":141,"n_cols":12,"rows_kept":141,"cut":false,"hidden":false,"merged":[[4,11,11,11],[0,0,0,6],[2,0,2,6],[1,0,1,6],[1,8,2,9]]}
[{"$f":"\"Startovní listina - Malý svratecký maratón \"&'Prezenční listina'!O2","v":"Startovní listina - Malý svratecký maratón 2014"}]
["2014-08-23",null,null,null,null,null,null,null,"Počet přihlášených v jednotlivých kategoriích"]
[{"$f":"'Prezenční listina'!O2-1953&\". ročník\"","v":"61. ročník"},null,null,null,null,null,null,null,null,null,null,"Celkem startujících"]
[null,"Startovní číslo","Příjmení","Jméno","Narození","Oddíl / Bydliště","Kategorie"]
[1,{"$f":"IF('Prezenční listina'!F81=0,\"\",'Prezenční listina'!F81)","v":1},{"$f":"IF('Prezenční listina'!F81=0,\"\",'Prezenční listina'!B81)","v":"Zálešák"},{"$f":"IF('Prezenční listina'!F81=0,\"\",'Prezenční listina'!C81)","v":"Michal"},{"$f":"IF('Prezenční listina'!F81=0,\"\",'Prezenční listina'!D81)","v":1982},{"$f":"IF('Prezenční listina'!F81=0,\"\",'Prezenční listina'!E81)","v":"Praha"},{"$f":"IF('Prezenční listina'!F81=0,\"\",'Prezenční listina'!H81)","v":"A"},null,"A:",{"$f":"COUNTIF($G$5:$G$141,\"A\")","v":46},null,{"$f":"COUNT(B5:B141)","v":99}]
[{"$f":"IF(C6=\"\",\"\",A5+1)","v":2},{"$f":"IF('Prezenční listina'!F82=0,\"\",'Prezenční listina'!F82)","v":2},{"$f":"IF('Prezenční listina'!F82=0,\"\",'Prezenční listina'!B82)","v":"Jež"},{"$f":"IF('Prezenční listina'!F82=0,\"\",'Prezenční listina'!C82)","v":"Zdeněk"},{"$f":"IF('Prezenční listina'!F82=0,\"\",'Prezenční listina'!D82)","v":1977},{"$f":"IF('Prezenční listina'!F82=0,\"\",'Prezenční listina'!E82)","v":"STS Chvojkovice Brod"},{"$f":"IF('Prezenční listina'!F82=0,\"\",'Prezenční listina'!H82)","v":"A"},null,"B:",{"$f":"COUNTIF($G$5:$G$141,\"B\")","v":19}]
[3,{"$f":"IF('Prezenční listina'!F83=0,\"\",'Prezenční listina'!F83)","v":3},{"$f":"IF('Prezenční listina'!F83=0,\"\",'Prezenční listina'!B83)","v":"Podsedník"},{"$f":"IF('Prezenční listina'!F83=0,\"\",'Prezenční listina'!C83)","v":"Marek"},{"$f":"IF('Prezenční listina'!F83=0,\"\",'Prezenční listina'!D83)","v":1985},{"$f":"IF('Prezenční listina'!F83=0,\"\",'Prezenční listina'!E83)","v":"Miroslav"},{"$f":"IF('Prezenční listina'!F83=0,\"\",'Prezenční listina'!H83)","v":"A"},null,"C:",{"$f":"COUNTIF($G$5:$G$141,\"C\")","v":13}]
[4,{"$f":"IF('Prezenční listina'!F85=0,\"\",'Prezenční listina'!F85)","v":4},{"$f":"IF('Prezenční listina'!F85=0,\"\",'Prezenční listina'!B85)","v":"Zourek"},{"$f":"IF('Prezenční listina'!F85=0,\"\",'Prezenční listina'!C85)","v":"Karel"},{"$f":"IF('Prezenční listina'!F85=0,\"\",'Prezenční listina'!D85)","v":1959},{"$f":"IF('Prezenční listina'!F85=0,\"\",'Prezenční listina'!E85)","v":"Bedřichovice"},{"$f":"IF('Prezenční listina'!F85=0,\"\",'Prezenční listina'!H85)","v":"C"},null,"D:",{"$f":"COUNTIF($G$5:$G$141,\"D\")","v":3}]
[5,{"$f":"IF('Prezenční listina'!F86=0,\"\",'Prezenční listina'!F86)","v":5},{"$f":"IF('Prezenční listina'!F86=0,\"\",'Prezenční listina'!B86)","v":"Ryška"},{"$f":"IF('Prezenční listina'!F86=0,\"\",'Prezenční listina'!C86)","v":"Vít"},{"$f":"IF('Prezenční listina'!F86=0,\"\",'Prezenční listina'!D86)","v":1975},{"$f":"IF('Prezenční listina'!F86=0,\"\",'Prezenční listina'!E86)","v":"VSK UNI BRNO"},{"$f":"IF('Prezenční listina'!F86=0,\"\",'Prezenční listina'!H86)","v":"A"},null,"E:",{"$f":"COUNTIF($G$5:$G$141,\"E\")","v":2}]
[6,{"$f":"IF('Prezenční listina'!F87=0,\"\",'Prezenční listina'!F87)","v":6},{"$f":"IF('Prezenční listina'!F87=0,\"\",'Prezenční listina'!B87)","v":"Ďurdiaková"},{"$f":"IF('Prezenční listina'!F87=0,\"\",'Prezenční listina'!C87)","v":"Tereza"},{"$f":"IF('Prezenční listina'!F87=0,\"\",'Prezenční listina'!D87)","v":1991},{"$f":"IF('Prezenční listina'!F87=0,\"\",'Prezenční listina'!E87)","v":"AK Olymp Brno"},{"$f":"IF('Prezenční listina'!F87=0,\"\",'Prezenční listina'!H87)","v":"F"},null,"F:",{"$f":"COUNTIF($G$5:$G$141,\"F\")","v":7}]
[7,{"$f":"IF('Prezenční listina'!F39=0,\"\",'Prezenční listina'!F39)","v":7},{"$f":"IF('Prezenční listina'!F39=0,\"\",'Prezenční listina'!B39)","v":"Komárková"},{"$f":"IF('Prezenční listina'!F39=0,\"\",'Prezenční listina'!C39)","v":"Zdeňka"},{"$f":"IF('Prezenční listina'!F39=0,\"\",'Prezenční listina'!D39)","v":1974},{"$f":"IF('Prezenční listina'!F39=0,\"\",'Prezenční listina'!E39)","v":"SDH Bolešín"},{"$f":"IF('Prezenční listina'!F39=0,\"\",'Prezenční listina'!H39)","v":"G"},null,"G:",{"$f":"COUNTIF($G$5:$G$141,\"G\")","v":7}]
[8,{"$f":"IF('Prezenční listina'!F25=0,\"\",'Prezenční listina'!F25)","v":8},{"$f":"IF('Prezenční listina'!F25=0,\"\",'Prezenční listina'!B25)","v":"Holý"},{"$f":"IF('Prezenční listina'!F25=0,\"\",'Prezenční listina'!C25)","v":"Josef"},{"$f":"IF('Prezenční listina'!F25=0,\"\",'Prezenční listina'!D25)","v":1941},{"$f":"IF('Prezenční listina'!F25=0,\"\",'Prezenční listina'!E25)","v":"Moravská Slávia Brno"},{"$f":"IF('Prezenční listina'!F25=0,\"\",'Prezenční listina'!H25)","v":"E"},null,"H:",{"$f":"COUNTIF($G$5:$G$141,\"H\")","v":2}]
[9,{"$f":"IF('Prezenční listina'!F88=0,\"\",'Prezenční listina'!F88)","v":9},{"$f":"IF('Prezenční listina'!F88=0,\"\",'Prezenční listina'!B88)","v":"Borovec"},{"$f":"IF('Prezenční listina'!F88=0,\"\",'Prezenční listina'!C88)","v":"Alexandr"},{"$f":"IF('Prezenční listina'!F88=0,\"\",'Prezenční listina'!D88)","v":1976},{"$f":"IF('Prezenční listina'!F88=0,\"\",'Prezenční listina'!E88)","v":"Choceň"},{"$f":"IF('Prezenční listina'!F88=0,\"\",'Prezenční listina'!H88)","v":"A"}]
[10,{"$f":"IF('Prezenční listina'!F28=0,\"\",'Prezenční listina'!F28)","v":10},{"$f":"IF('Prezenční listina'!F28=0,\"\",'Prezenční listina'!B28)","v":"Hrubý"},{"$f":"IF('Prezenční listina'!F28=0,\"\",'Prezenční listina'!C28)","v":"Milan"},{"$f":"IF('Prezenční listina'!F28=0,\"\",'Prezenční listina'!D28)","v":1938},{"$f":"IF('Prezenční listina'!F28=0,\"\",'Prezenční listina'!E28)","v":"Blansko"},{"$f":"IF('Prezenční listina'!F28=0,\"\",'Prezenční listina'!H28)","v":"E"}]
[11,{"$f":"IF('Prezenční listina'!F52=0,\"\",'Prezenční listina'!F52)","v":11},{"$f":"IF('Prezenční listina'!F52=0,\"\",'Prezenční listina'!B52)","v":"Martincová"},{"$f":"IF('Prezenční listina'!F52=0,\"\",'Prezenční listina'!C52)","v":"Ivana"},{"$f":"IF('Prezenční listina'!F52=0,\"\",'Prezenční listina'!D52)","v":1963},{"$f":"IF('Prezenční listina'!F52=0,\"\",'Prezenční listina'!E52)","v":"Moravská Slávia Brno"},{"$f":"IF('Prezenční listina'!F52=0,\"\",'Prezenční listina'!H52)","v":"H"}]
[12,{"$f":"IF('Prezenční listina'!F31=0,\"\",'Prezenční listina'!F31)","v":12},{"$f":"IF('Prezenční listina'!F31=0,\"\",'Prezenční listina'!B31)","v":"Chromý"},{"$f":"IF('Prezenční listina'!F31=0,\"\",'Prezenční listina'!C31)","v":"Bořivoj"},{"$f":"IF('Prezenční listina'!F31=0,\"\",'Prezenční listina'!D31)","v":1953},{"$f":"IF('Prezenční listina'!F31=0,\"\",'Prezenční listina'!E31)","v":"Tišnov"},{"$f":"IF('Prezenční listina'!F31=0,\"\",'Prezenční listina'!H31)","v":"D"}]
[13,{"$f":"IF('Prezenční listina'!F89=0,\"\",'Prezenční listina'!F89)","v":13},{"$f":"IF('Prezenční listina'!F89=0,\"\",'Prezenční listina'!B89)","v":"Provazník"},{"$f":"IF('Prezenční listina'!F89=0,\"\",'Prezenční listina'!C89)","v":"Milan"},{"$f":"IF('Prezenční listina'!F89=0,\"\",'Prezenční listina'!D89)","v":1966},{"$f":"IF('Prezenční listina'!F89=0,\"\",'Prezenční listina'!E89)","v":"Polička"},{"$f":"IF('Prezenční listina'!F89=0,\"\",'Prezenční listina'!H89)","v":"B"}]
[14,{"$f":"IF('Prezenční listina'!F77=0,\"\",'Prezenční listina'!F77)","v":14},{"$f":"IF('Prezenční listina'!F77=0,\"\",'Prezenční listina'!B77)","v":"Štýbnar"},{"$f":"IF('Prezenční listina'!F77=0,\"\",'Prezenční listina'!C77)","v":"Zbyněk"},{"$f":"IF('Prezenční listina'!F77=0,\"\",'Prezenční listina'!D77)","v":1974},{"$f":"IF('Prezenční listina'!F77=0,\"\",'Prezenční listina'!E77)","v":"Běžec Vysočiny Jihlava"},{"$f":"IF('Prezenční listina'!F77=0,\"\",'Prezenční listina'!H77)","v":"B"}]
[15,{"$f":"IF('Prezenční listina'!F37=0,\"\",'Prezenční listina'!F37)","v":16},{"$f":"IF('Prezenční listina'!F37=0,\"\",'Prezenční listina'!B37)","v":"Kameníček"},{"$f":"IF('Prezenční listina'!F37=0,\"\",'Prezenční listina'!C37)","v":"Michal"},{"$f":"IF('Prezenční listina'!F37=0,\"\",'Prezenční listina'!D37)","v":1986},{"$f":"IF('Prezenční listina'!F37=0,\"\",'Prezenční listina'!E37)","v":"Vinařice"},{"$f":"IF('Prezenční listina'!F37=0,\"\",'Prezenční listina'!H37)","v":"A"}]
[16,{"$f":"IF('Prezenční listina'!F20=0,\"\",'Prezenční listina'!F20)","v":17},{"$f":"IF('Prezenční listina'!F20=0,\"\",'Prezenční listina'!B20)","v":"Dušil"},{"$f":"IF('Prezenční listina'!F20=0,\"\",'Prezenční listina'!C20)","v":"Jaroslav"},{"$f":"IF('Prezenční listina'!F20=0,\"\",'Prezenční listina'!D20)","v":1970},{"$f":"IF('Prezenční listina'!F20=0,\"\",'Prezenční listina'!E20)","v":"Brno"},{"$f":"IF('Prezenční listina'!F20=0,\"\",'Prezenční listina'!H20)","v":"B"}]
[17,{"$f":"IF('Prezenční listina'!F3=0,\"\",'Prezenční listina'!F3)","v":18},{"$f":"IF('Prezenční listina'!F3=0,\"\",'Prezenční listina'!B3)","v":"Alman"},{"$f":"IF('Prezenční listina'!F3=0,\"\",'Prezenční listina'!C3)","v":"Dušan"},{"$f":"IF('Prezenční listina'!F3=0,\"\",'Prezenční listina'!D3)","v":1967},{"$f":"IF('Prezenční listina'!F3=0,\"\",'Prezenční listina'!E3)","v":"Babice"},{"$f":"IF('Prezenční listina'!F3=0,\"\",'Prezenční listina'!H3)","v":"B"}]
[18,{"$f":"IF('Prezenční listina'!F90=0,\"\",'Prezenční listina'!F90)","v":19},{"$f":"IF('Prezenční listina'!F90=0,\"\",'Prezenční listina'!B90)","v":"Hejtmánek"},{"$f":"IF('Prezenční listina'!F90=0,\"\",'Prezenční listina'!C90)","v":"Miroslav"},{"$f":"IF('Prezenční listina'!F90=0,\"\",'Prezenční listina'!D90)","v":1970},{"$f":"IF('Prezenční listina'!F90=0,\"\",'Prezenční listina'!E90)","v":"Brno"},{"$f":"IF('Prezenční listina'!F90=0,\"\",'Prezenční listina'!H90)","v":"B"}]
[19,{"$f":"IF('Prezenční listina'!F91=0,\"\",'Prezenční listina'!F91)","v":20},{"$f":"IF('Prezenční listina'!F91=0,\"\",'Prezenční listina'!B91)","v":"Hlavsa"},{"$f":"IF('Prezenční listina'!F91=0,\"\",'Prezenční listina'!C91)","v":"Tomáš"},{"$f":"IF('Prezenční listina'!F91=0,\"\",'Prezenční listina'!D91)","v":1983},{"$f":"IF('Prezenční listina'!F91=0,\"\",'Prezenční listina'!E91)","v":"Adamov"},{"$f":"IF('Prezenční listina'!F91=0,\"\",'Prezenční listina'!H91)","v":"A"}]
[20,{"$f":"IF('Prezenční listina'!F69=0,\"\",'Prezenční listina'!F69)","v":21},{"$f":"IF('Prezenční listina'!F69=0,\"\",'Prezenční listina'!B69)","v":"Radomská"},{"$f":"IF('Prezenční listina'!F69=0,\"\",'Prezenční listina'!C69)","v":"Michaela"},{"$f":"IF('Prezenční listina'!F69=0,\"\",'Prezenční listina'!D69)","v":1988},{"$f":"IF('Prezenční listina'!F69=0,\"\",'Prezenční listina'!E69)","v":"Sokol Bělá nad Svitavou"},{"$f":"IF('Prezenční listina'!F69=0,\"\",'Prezenční listina'!H69)","v":"F"}]
[21,{"$f":"IF('Prezenční listina'!F92=0,\"\",'Prezenční listina'!F92)","v":22},{"$f":"IF('Prezenční listina'!F92=0,\"\",'Prezenční listina'!B92)","v":"Kryštof"},{"$f":"IF('Prezenční listina'!F92=0,\"\",'Prezenční listina'!C92)","v":"Ondřej"},{"$f":"IF('Prezenční listina'!F92=0,\"\",'Prezenční listina'!D92)","v":1976},{"$f":"IF('Prezenční listina'!F92=0,\"\",'Prezenční listina'!E92)","v":"TJ Jiskra Vír"},{"$f":"IF('Prezenční listina'!F92=0,\"\",'Prezenční listina'!H92)","v":"A"}]
[22,{"$f":"IF('Prezenční listina'!F47=0,\"\",'Prezenční listina'!F47)","v":23},{"$f":"IF('Prezenční listina'!F47=0,\"\",'Prezenční listina'!B47)","v":"Kučínský"},{"$f":"IF('Prezenční listina'!F47=0,\"\",'Prezenční listina'!C47)","v":"Pavel"},{"$f":"IF('Prezenční listina'!F47=0,\"\",'Prezenční listina'!D47)","v":1959},{"$f":"IF('Prezenční listina'!F47=0,\"\",'Prezenční listina'!E47)","v":"Brno"},{"$f":"IF('Prezenční listina'!F47=0,\"\",'Prezenční listina'!H47)","v":"C"}]
[23,{"$f":"IF('Prezenční listina'!F79=0,\"\",'Prezenční listina'!F79)","v":24},{"$f":"IF('Prezenční listina'!F79=0,\"\",'Prezenční listina'!B79)","v":"Zouhar"},{"$f":"IF('Prezenční listina'!F79=0,\"\",'Prezenční listina'!C79)","v":"Libor"},{"$f":"IF('Prezenční listina'!F79=0,\"\",'Prezenční listina'!D79)","v":1958},{"$f":"IF('Prezenční listina'!F79=0,\"\",'Prezenční listina'!E79)","v":"Brno Líšeň"},{"$f":"IF('Prezenční listina'!F79=0,\"\",'Prezenční listina'!H79)","v":"C"}]
[24,{"$f":"IF('Prezenční listina'!F49=0,\"\",'Prezenční listina'!F49)","v":26},{"$f":"IF('Prezenční listina'!F49=0,\"\",'Prezenční listina'!B49)","v":"Ledvinka"},{"$f":"IF('Prezenční listina'!F49=0,\"\",'Prezenční listina'!C49)","v":"Josef"},{"$f":"IF('Prezenční listina'!F49=0,\"\",'Prezenční listina'!D49)","v":1972},{"$f":"IF('Prezenční listina'!F49=0,\"\",'Prezenční listina'!E49)","v":"Přibyslav"},{"$f":"IF('Prezenční listina'!F49=0,\"\",'Prezenční listina'!H49)","v":"B"}]
[25,{"$f":"IF('Prezenční listina'!F50=0,\"\",'Prezenční listina'!F50)","v":27},{"$f":"IF('Prezenční listina'!F50=0,\"\",'Prezenční listina'!B50)","v":"Lorenčík"},{"$f":"IF('Prezenční listina'!F50=0,\"\",'Prezenční listina'!C50)","v":"Aleš"},{"$f":"IF('Prezenční listina'!F50=0,\"\",'Prezenční listina'!D50)","v":1973},{"$f":"IF('Prezenční listina'!F50=0,\"\",'Prezenční listina'!E50)","v":"Chrudim"},{"$f":"IF('Prezenční listina'!F50=0,\"\",'Prezenční listina'!H50)","v":"B"}]
[26,{"$f":"IF('Prezenční listina'!F67=0,\"\",'Prezenční listina'!F67)","v":28},{"$f":"IF('Prezenční listina'!F67=0,\"\",'Prezenční listina'!B67)","v":"Procházková"},{"$f":"IF('Prezenční listina'!F67=0,\"\",'Prezenční listina'!C67)","v":"Tereza"},{"$f":"IF('Prezenční listina'!F67=0,\"\",'Prezenční listina'!D67)","v":1990},{"$f":"IF('Prezenční listina'!F67=0,\"\",'Prezenční listina'!E67)","v":"Orel Ořechov"},{"$f":"IF('Prezenční listina'!F67=0,\"\",'Prezenční listina'!H67)","v":"F"}]
[27,{"$f":"IF('Prezenční listina'!F78=0,\"\",'Prezenční listina'!F78)","v":29},{"$f":"IF('Prezenční listina'!F78=0,\"\",'Prezenční listina'!B78)","v":"Veškrna"},{"$f":"IF('Prezenční listina'!F78=0,\"\",'Prezenční listina'!C78)","v":"Ivan"},{"$f":"IF('Prezenční listina'!F78=0,\"\",'Prezenční listina'!D78)","v":1983},{"$f":"IF('Prezenční listina'!F78=0,\"\",'Prezenční listina'!E78)","v":"Brno"},{"$f":"IF('Prezenční listina'!F78=0,\"\",'Prezenční listina'!H78)","v":"A"}]
[28,{"$f":"IF('Prezenční listina'!F26=0,\"\",'Prezenční listina'!F26)","v":30},{"$f":"IF('Prezenční listina'!F26=0,\"\",'Prezenční listina'!B26)","v":"Homoláč"},{"$f":"IF('Prezenční listina'!F26=0,\"\",'Prezenční listina'!C26)","v":"Jiří"},{"$f":"IF('Prezenční listina'!F26=0,\"\",'Prezenční listina'!D26)","v":1990},{"$f":"IF('Prezenční listina'!F26=0,\"\",'Prezenční listina'!E26)","v":"adidas Running TEAM"},{"$f":"IF('Prezenční listina'!F26=0,\"\",'Prezenční listina'!H26)","v":"A"}]
[29,{"$f":"IF('Prezenční listina'!F11=0,\"\",'Prezenční listina'!F11)","v":31},{"$f":"IF('Prezenční listina'!F11=0,\"\",'Prezenční listina'!B11)","v":"Borek"},{"$f":"IF('Prezenční listina'!F11=0,\"\",'Prezenční listina'!C11)","v":"Aleš"},{"$f":"IF('Prezenční listina'!F11=0,\"\",'Prezenční listina'!D11)","v":1977},{"$f":"IF('Prezenční listina'!F11=0,\"\",'Prezenční listina'!E11)","v":"adidas Running TEAM"},{"$f":"IF('Prezenční listina'!F11=0,\"\",'Prezenční listina'!H11)","v":"A"}]
[30,{"$f":"IF('Prezenční listina'!F74=0,\"\",'Prezenční listina'!F74)","v":33},{"$f":"IF('Prezenční listina'!F74=0,\"\",'Prezenční listina'!B74)","v":"Suchý"},{"$f":"IF('Prezenční listina'!F74=0,\"\",'Prezenční listina'!C74)","v":"Karel"},{"$f":"IF('Prezenční listina'!F74=0,\"\",'Prezenční listina'!D74)","v":1956},{"$f":"IF('Prezenční listina'!F74=0,\"\",'Prezenční listina'!E74)","v":"Náměšť nad Oslavou"},{"$f":"IF('Prezenční listina'!F74=0,\"\",'Prezenční listina'!H74)","v":"C"}]
[31,{"$f":"IF('Prezenční listina'!F17=0,\"\",'Prezenční listina'!F17)","v":34},{"$f":"IF('Prezenční listina'!F17=0,\"\",'Prezenční listina'!B17)","v":"Čech"},{"$f":"IF('Prezenční listina'!F17=0,\"\",'Prezenční listina'!C17)","v":"Aleš"},{"$f":"IF('Prezenční listina'!F17=0,\"\",'Prezenční listina'!D17)","v":1976},{"$f":"IF('Prezenční listina'!F17=0,\"\",'Prezenční listina'!E17)","v":"Farma Jiřího Chrásta"},{"$f":"IF('Prezenční listina'!F17=0,\"\",'Prezenční listina'!H17)","v":"A"}]
[32,{"$f":"IF('Prezenční listina'!F73=0,\"\",'Prezenční listina'!F73)","v":35},{"$f":"IF('Prezenční listina'!F73=0,\"\",'Prezenční listina'!B73)","v":"Stejskal"},{"$f":"IF('Prezenční listina'!F73=0,\"\",'Prezenční listina'!C73)","v":"Petr"},{"$f":"IF('Prezenční listina'!F73=0,\"\",'Prezenční listina'!D73)","v":1976},{"$f":"IF('Prezenční listina'!F73=0,\"\",'Prezenční listina'!E73)","v":"Farma Jiřího Chrásta"},{"$f":"IF('Prezenční listina'!F73=0,\"\",'Prezenční listina'!H73)","v":"A"}]
[33,{"$f":"IF('Prezenční listina'!F16=0,\"\",'Prezenční listina'!F16)","v":36},{"$f":"IF('Prezenční listina'!F16=0,\"\",'Prezenční listina'!B16)","v":"Čech"},{"$f":"IF('Prezenční listina'!F16=0,\"\",'Prezenční listina'!C16)","v":"Martin"},{"$f":"IF('Prezenční listina'!F16=0,\"\",'Prezenční listina'!D16)","v":1978},{"$f":"IF('Prezenční listina'!F16=0,\"\",'Prezenční listina'!E16)","v":"Farma Jiřího Chrásta"},{"$f":"IF('Prezenční listina'!F16=0,\"\",'Prezenční listina'!H16)","v":"A"}]
[34,{"$f":"IF('Prezenční listina'!F56=0,\"\",'Prezenční listina'!F56)","v":37},{"$f":"IF('Prezenční listina'!F56=0,\"\",'Prezenční listina'!B56)","v":"Nekuža"},{"$f":"IF('Prezenční listina'!F56=0,\"\",'Prezenční listina'!C56)","v":"Jiří"},{"$f":"IF('Prezenční listina'!F56=0,\"\",'Prezenční listina'!D56)","v":1951},{"$f":"IF('Prezenční listina'!F56=0,\"\",'Prezenční listina'!E56)","v":"Kašpar Ostrava"},{"$f":"IF('Prezenční listina'!F56=0,\"\",'Prezenční listina'!H56)","v":"D"}]
[{"$f":"IF(C39=\"\",\"\",A38+1)","v":35},{"$f":"IF('Prezenční listina'!F10=0,\"\",'Prezenční listina'!F10)","v":38},{"$f":"IF('Prezenční listina'!F10=0,\"\",'Prezenční listina'!B10)","v":"Blaha"},{"$f":"IF('Prezenční listina'!F10=0,\"\",'Prezenční listina'!C10)","v":"Stanislav"},{"$f":"IF('Prezenční listina'!F10=0,\"\",'Prezenční listina'!D10)","v":1963},{"$f":"IF('Prezenční listina'!F10=0,\"\",'Prezenční listina'!E10)","v":"BK Vísky"},{"$f":"IF('Prezenční listina'!F10=0,\"\",'Prezenční listina'!H10)","v":"C"}]
[{"$f":"IF(C40=\"\",\"\",A39+1)","v":36},{"$f":"IF('Prezenční listina'!F9=0,\"\",'Prezenční listina'!F9)","v":40},{"$f":"IF('Prezenční listina'!F9=0,\"\",'Prezenční listina'!B9)","v":"Blaha"},{"$f":"IF('Prezenční listina'!F9=0,\"\",'Prezenční listina'!C9)","v":"Rostislav"},{"$f":"IF('Prezenční listina'!F9=0,\"\",'Prezenční listina'!D9)","v":1989},{"$f":"IF('Prezenční listina'!F9=0,\"\",'Prezenční listina'!E9)","v":"BK Vísky"},{"$f":"IF('Prezenční listina'!F9=0,\"\",'Prezenční listina'!H9)","v":"A"}]
[37,{"$f":"IF('Prezenční listina'!F19=0,\"\",'Prezenční listina'!F19)","v":41},{"$f":"IF('Prezenční listina'!F19=0,\"\",'Prezenční listina'!B19)","v":"Dubský"},{"$f":"IF('Prezenční listina'!F19=0,\"\",'Prezenční listina'!C19)","v":"Roman"},{"$f":"IF('Prezenční listina'!F19=0,\"\",'Prezenční listina'!D19)","v":1978},{"$f":"IF('Prezenční listina'!F19=0,\"\",'Prezenční listina'!E19)","v":"Přibyslav"},{"$f":"IF('Prezenční listina'!F19=0,\"\",'Prezenční listina'!H19)","v":"A"}]
[38,{"$f":"IF('Prezenční listina'!F93=0,\"\",'Prezenční listina'!F93)","v":42},{"$f":"IF('Prezenční listina'!F93=0,\"\",'Prezenční listina'!B93)","v":"Klimánková"},{"$f":"IF('Prezenční listina'!F93=0,\"\",'Prezenční listina'!C93)","v":"Eva"},{"$f":"IF('Prezenční listina'!F93=0,\"\",'Prezenční listina'!D93)","v":1973},{"$f":"IF('Prezenční listina'!F93=0,\"\",'Prezenční listina'!E93)","v":"Brno"},{"$f":"IF('Prezenční listina'!F93=0,\"\",'Prezenční listina'!H93)","v":"G"}]
[39,{"$f":"IF('Prezenční listina'!F94=0,\"\",'Prezenční listina'!F94)","v":43},{"$f":"IF('Prezenční listina'!F94=0,\"\",'Prezenční listina'!B94)","v":"Mihola"},{"$f":"IF('Prezenční listina'!F94=0,\"\",'Prezenční listina'!C94)","v":"Zbyněk"},{"$f":"IF('Prezenční listina'!F94=0,\"\",'Prezenční listina'!D94)","v":1975},{"$f":"IF('Prezenční listina'!F94=0,\"\",'Prezenční listina'!E94)","v":"Kunštát"},{"$f":"IF('Prezenční listina'!F94=0,\"\",'Prezenční listina'!H94)","v":"A"}]
[40,{"$f":"IF('Prezenční listina'!F7=0,\"\",'Prezenční listina'!F7)","v":44},{"$f":"IF('Prezenční listina'!F7=0,\"\",'Prezenční listina'!B7)","v":"Beniačová"},{"$f":"IF('Prezenční listina'!F7=0,\"\",'Prezenční listina'!C7)","v":"Linda"},{"$f":"IF('Prezenční listina'!F7=0,\"\",'Prezenční listina'!D7)","v":1978},{"$f":"IF('Prezenční listina'!F7=0,\"\",'Prezenční listina'!E7)","v":"Brno"},{"$f":"IF('Prezenční listina'!F7=0,\"\",'Prezenční listina'!H7)","v":"G"}]
[41,{"$f":"IF('Prezenční listina'!F53=0,\"\",'Prezenční listina'!F53)","v":45},{"$f":"IF('Prezenční listina'!F53=0,\"\",'Prezenční listina'!B53)","v":"Mazourek"},{"$f":"IF('Prezenční listina'!F53=0,\"\",'Prezenční listina'!C53)","v":"Jiří"},{"$f":"IF('Prezenční listina'!F53=0,\"\",'Prezenční listina'!D53)","v":1979},{"$f":"IF('Prezenční listina'!F53=0,\"\",'Prezenční listina'!E53)","v":"Bystřice nad Pernštejnem"},{"$f":"IF('Prezenční listina'!F53=0,\"\",'Prezenční listina'!H53)","v":"A"}]
[42,{"$f":"IF('Prezenční listina'!F48=0,\"\",'Prezenční listina'!F48)","v":46},{"$f":"IF('Prezenční listina'!F48=0,\"\",'Prezenční listina'!B48)","v":"Kunčar"},{"$f":"IF('Prezenční listina'!F48=0,\"\",'Prezenční listina'!C48)","v":"David"},{"$f":"IF('Prezenční listina'!F48=0,\"\",'Prezenční listina'!D48)","v":1975},{"$f":"IF('Prezenční listina'!F48=0,\"\",'Prezenční listina'!E48)","v":"Spartak Praha 4"},{"$f":"IF('Prezenční listina'!F48=0,\"\",'Prezenční listina'!H48)","v":"A"}]
[43,{"$f":"IF('Prezenční listina'!F95=0,\"\",'Prezenční listina'!F95)","v":47},{"$f":"IF('Prezenční listina'!F95=0,\"\",'Prezenční listina'!B95)","v":"Machát"},{"$f":"IF('Prezenční listina'!F95=0,\"\",'Prezenční listina'!C95)","v":"Libor"},{"$f":"IF('Prezenční listina'!F95=0,\"\",'Prezenční listina'!D95)","v":1979},{"$f":"IF('Prezenční listina'!F95=0,\"\",'Prezenční listina'!E95)","v":"Bílovice nad Svitavou"},{"$f":"IF('Prezenční listina'!F95=0,\"\",'Prezenční listina'!H95)","v":"A"}]
[44,{"$f":"IF('Prezenční listina'!F76=0,\"\",'Prezenční listina'!F76)","v":48},{"$f":"IF('Prezenční listina'!F76=0,\"\",'Prezenční listina'!B76)","v":"Štach"},{"$f":"IF('Prezenční listina'!F76=0,\"\",'Prezenční listina'!C76)","v":"Martin"},{"$f":"IF('Prezenční listina'!F76=0,\"\",'Prezenční listina'!D76)","v":1981},{"$f":"IF('Prezenční listina'!F76=0,\"\",'Prezenční listina'!E76)","v":"Bílovice nad Svitavou"},{"$f":"IF('Prezenční listina'!F76=0,\"\",'Prezenční listina'!H76)","v":"A"}]
[45,{"$f":"IF('Prezenční listina'!F96=0,\"\",'Prezenční listina'!F96)","v":49},{"$f":"IF('Prezenční listina'!F96=0,\"\",'Prezenční listina'!B96)","v":"Pešáková"},{"$f":"IF('Prezenční listina'!F96=0,\"\",'Prezenční listina'!C96)","v":"Mirka"},{"$f":"IF('Prezenční listina'!F96=0,\"\",'Prezenční listina'!D96)","v":1985},{"$f":"IF('Prezenční listina'!F96=0,\"\",'Prezenční listina'!E96)","v":"Tetčice"},{"$f":"IF('Prezenční listina'!F96=0,\"\",'Prezenční listina'!H96)","v":"F"}]
[46,{"$f":"IF('Prezenční listina'!F97=0,\"\",'Prezenční listina'!F97)","v":50},{"$f":"IF('Prezenční listina'!F97=0,\"\",'Prezenční listina'!B97)","v":"Kubík"},{"$f":"IF('Prezenční listina'!F97=0,\"\",'Prezenční listina'!C97)","v":"Pavel"},{"$f":"IF('Prezenční listina'!F97=0,\"\",'Prezenční listina'!D97)","v":1981},{"$f":"IF('Prezenční listina'!F97=0,\"\",'Prezenční listina'!E97)","v":"Blansko"},{"$f":"IF('Prezenční listina'!F97=0,\"\",'Prezenční listina'!H97)","v":"A"}]
[47,{"$f":"IF('Prezenční listina'!F70=0,\"\",'Prezenční listina'!F70)","v":51},{"$f":"IF('Prezenční listina'!F70=0,\"\",'Prezenční listina'!B70)","v":"Rerych"},{"$f":"IF('Prezenční listina'!F70=0,\"\",'Prezenční listina'!C70)","v":"Jiří"},{"$f":"IF('Prezenční listina'!F70=0,\"\",'Prezenční listina'!D70)","v":1962},{"$f":"IF('Prezenční listina'!F70=0,\"\",'Prezenční listina'!E70)","v":"Moravská Slávia Brno"},{"$f":"IF('Prezenční listina'!F70=0,\"\",'Prezenční listina'!H70)","v":"C"}]
[48,{"$f":"IF('Prezenční listina'!F58=0,\"\",'Prezenční listina'!F58)","v":53},{"$f":"IF('Prezenční listina'!F58=0,\"\",'Prezenční listina'!B58)","v":"Nosek"},{"$f":"IF('Prezenční listina'!F58=0,\"\",'Prezenční listina'!C58)","v":"Miroslav"},{"$f":"IF('Prezenční listina'!F58=0,\"\",'Prezenční listina'!D58)","v":1955},{"$f":"IF('Prezenční listina'!F58=0,\"\",'Prezenční listina'!E58)","v":"Moravská Slávia Brno"},{"$f":"IF('Prezenční listina'!F58=0,\"\",'Prezenční listina'!H58)","v":"C"}]
[49,{"$f":"IF('Prezenční listina'!F30=0,\"\",'Prezenční listina'!F30)","v":54},{"$f":"IF('Prezenční listina'!F30=0,\"\",'Prezenční listina'!B30)","v":"Hübner"},{"$f":"IF('Prezenční listina'!F30=0,\"\",'Prezenční listina'!C30)","v":"Jan"},{"$f":"IF('Prezenční listina'!F30=0,\"\",'Prezenční listina'!D30)","v":1978},{"$f":"IF('Prezenční listina'!F30=0,\"\",'Prezenční listina'!E30)","v":"SDH Bolešín"},{"$f":"IF('Prezenční listina'!F30=0,\"\",'Prezenční listina'!H30)","v":"A"}]
[50,{"$f":"IF('Prezenční listina'!F29=0,\"\",'Prezenční listina'!F29)","v":55},{"$f":"IF('Prezenční listina'!F29=0,\"\",'Prezenční listina'!B29)","v":"Hübner"},{"$f":"IF('Prezenční listina'!F29=0,\"\",'Prezenční listina'!C29)","v":"Tomáš"},{"$f":"IF('Prezenční listina'!F29=0,\"\",'Prezenční listina'!D29)","v":1979},{"$f":"IF('Prezenční listina'!F29=0,\"\",'Prezenční listina'!E29)","v":"SDH Bolešín"},{"$f":"IF('Prezenční listina'!F29=0,\"\",'Prezenční listina'!H29)","v":"A"}]
[51,{"$f":"IF('Prezenční listina'!F18=0,\"\",'Prezenční listina'!F18)","v":56},{"$f":"IF('Prezenční listina'!F18=0,\"\",'Prezenční listina'!B18)","v":"Češner"},{"$f":"IF('Prezenční listina'!F18=0,\"\",'Prezenční listina'!C18)","v":"Vladimír"},{"$f":"IF('Prezenční listina'!F18=0,\"\",'Prezenční listina'!D18)","v":1958},{"$f":"IF('Prezenční listina'!F18=0,\"\",'Prezenční listina'!E18)","v":"Odolena Voda"},{"$f":"IF('Prezenční listina'!F18=0,\"\",'Prezenční listina'!H18)","v":"C"}]
[52,{"$f":"IF('Prezenční listina'!F98=0,\"\",'Prezenční listina'!F98)","v":57},{"$f":"IF('Prezenční listina'!F98=0,\"\",'Prezenční listina'!B98)","v":"Janů"},{"$f":"IF('Prezenční listina'!F98=0,\"\",'Prezenční listina'!C98)","v":"Jan"},{"$f":"IF('Prezenční listina'!F98=0,\"\",'Prezenční listina'!D98)","v":1993},{"$f":"IF('Prezenční listina'!F98=0,\"\",'Prezenční listina'!E98)","v":"Hvězda SKP Pardubice"},{"$f":"IF('Prezenční listina'!F98=0,\"\",'Prezenční listina'!H98)","v":"A"}]
[53,{"$f":"IF('Prezenční listina'!F99=0,\"\",'Prezenční listina'!F99)","v":58},{"$f":"IF('Prezenční listina'!F99=0,\"\",'Prezenční listina'!B99)","v":"Bódiová"},{"$f":"IF('Prezenční listina'!F99=0,\"\",'Prezenční listina'!C99)","v":"Adéla"},{"$f":"IF('Prezenční listina'!F99=0,\"\",'Prezenční listina'!D99)","v":1976},{"$f":"IF('Prezenční listina'!F99=0,\"\",'Prezenční listina'!E99)","v":"Sporty.cz Brno"},{"$f":"IF('Prezenční listina'!F99=0,\"\",'Prezenční listina'!H99)","v":"G"}]
[54,{"$f":"IF('Prezenční listina'!F100=0,\"\",'Prezenční listina'!F100)","v":59},{"$f":"IF('Prezenční listina'!F100=0,\"\",'Prezenční listina'!B100)","v":"Boháč"},{"$f":"IF('Prezenční listina'!F100=0,\"\",'Prezenční listina'!C100)","v":"Jiří"},{"$f":"IF('Prezenční listina'!F100=0,\"\",'Prezenční listina'!D100)","v":1954},{"$f":"IF('Prezenční listina'!F100=0,\"\",'Prezenční listina'!E100)","v":"Brno"},{"$f":"IF('Prezenční listina'!F100=0,\"\",'Prezenční listina'!H100)","v":"D"}]
[55,{"$f":"IF('Prezenční listina'!F101=0,\"\",'Prezenční listina'!F101)","v":60},{"$f":"IF('Prezenční listina'!F101=0,\"\",'Prezenční listina'!B101)","v":"Matuška"},{"$f":"IF('Prezenční listina'!F101=0,\"\",'Prezenční listina'!C101)","v":"Slávek"},{"$f":"IF('Prezenční listina'!F101=0,\"\",'Prezenční listina'!D101)","v":1980},{"$f":"IF('Prezenční listina'!F101=0,\"\",'Prezenční listina'!E101)","v":"HO Vír"},{"$f":"IF('Prezenční listina'!F101=0,\"\",'Prezenční listina'!H101)","v":"A"}]
[56,{"$f":"IF('Prezenční listina'!F54=0,\"\",'Prezenční listina'!F54)","v":61},{"$f":"IF('Prezenční listina'!F54=0,\"\",'Prezenční listina'!B54)","v":"Měřínský"},{"$f":"IF('Prezenční listina'!F54=0,\"\",'Prezenční listina'!C54)","v":"Jaroslav"},{"$f":"IF('Prezenční listina'!F54=0,\"\",'Prezenční listina'!D54)","v":1961},{"$f":"IF('Prezenční listina'!F54=0,\"\",'Prezenční listina'!E54)","v":"AK Perná"},{"$f":"IF('Prezenční listina'!F54=0,\"\",'Prezenční listina'!H54)","v":"C"}]
[57,{"$f":"IF('Prezenční listina'!F102=0,\"\",'Prezenční listina'!F102)","v":62},{"$f":"IF('Prezenční listina'!F102=0,\"\",'Prezenční listina'!B102)","v":"Kohut"},{"$f":"IF('Prezenční listina'!F102=0,\"\",'Prezenční listina'!C102)","v":"Jan"},{"$f":"IF('Prezenční listina'!F102=0,\"\",'Prezenční listina'!D102)","v":1985},{"$f":"IF('Prezenční listina'!F102=0,\"\",'Prezenční listina'!E102)","v":"RELAX-FIT.CZ"},{"$f":"IF('Prezenční listina'!F102=0,\"\",'Prezenční listina'!H102)","v":"A"}]
[58,{"$f":"IF('Prezenční listina'!F103=0,\"\",'Prezenční listina'!F103)","v":63},{"$f":"IF('Prezenční listina'!F103=0,\"\",'Prezenční listina'!B103)","v":"Doležal"},{"$f":"IF('Prezenční listina'!F103=0,\"\",'Prezenční listina'!C103)","v":"Marek"},{"$f":"IF('Prezenční listina'!F103=0,\"\",'Prezenční listina'!D103)","v":1973},{"$f":"IF('Prezenční listina'!F103=0,\"\",'Prezenční listina'!E103)","v":"NEW BALANCE"},{"$f":"IF('Prezenční listina'!F103=0,\"\",'Prezenční listina'!H103)","v":"B"}]
[59,{"$f":"IF('Prezenční listina'!F68=0,\"\",'Prezenční listina'!F68)","v":64},{"$f":"IF('Prezenční listina'!F68=0,\"\",'Prezenční listina'!B68)","v":"Ráček-Pelikánová"},{"$f":"IF('Prezenční listina'!F68=0,\"\",'Prezenční listina'!C68)","v":"Dáša"},{"$f":"IF('Prezenční listina'!F68=0,\"\",'Prezenční listina'!D68)","v":1976},{"$f":"IF('Prezenční listina'!F68=0,\"\",'Prezenční listina'!E68)","v":"Brno"},{"$f":"IF('Prezenční listina'!F68=0,\"\",'Prezenční listina'!H68)","v":"G"}]
[60,{"$f":"IF('Prezenční listina'!F64=0,\"\",'Prezenční listina'!F64)","v":67},{"$f":"IF('Prezenční listina'!F64=0,\"\",'Prezenční listina'!B64)","v":"Pavelka"},{"$f":"IF('Prezenční listina'!F64=0,\"\",'Prezenční listina'!C64)","v":"Richard"},{"$f":"IF('Prezenční listina'!F64=0,\"\",'Prezenční listina'!D64)","v":1981},{"$f":"IF('Prezenční listina'!F64=0,\"\",'Prezenční listina'!E64)","v":"Brno"},{"$f":"IF('Prezenční listina'!F64=0,\"\",'Prezenční listina'!H64)","v":"A"}]
[61,{"$f":"IF('Prezenční listina'!F104=0,\"\",'Prezenční listina'!F104)","v":69},{"$f":"IF('Prezenční listina'!F104=0,\"\",'Prezenční listina'!B104)","v":"Veselý"},{"$f":"IF('Prezenční listina'!F104=0,\"\",'Prezenční listina'!C104)","v":"Prokop"},{"$f":"IF('Prezenční listina'!F104=0,\"\",'Prezenční listina'!D104)","v":1969},{"$f":"IF('Prezenční listina'!F104=0,\"\",'Prezenční listina'!E104)","v":"Kunštát"},{"$f":"IF('Prezenční listina'!F104=0,\"\",'Prezenční listina'!H104)","v":"B"}]
[62,{"$f":"IF('Prezenční listina'!F5=0,\"\",'Prezenční listina'!F5)","v":70},{"$f":"IF('Prezenční listina'!F5=0,\"\",'Prezenční listina'!B5)","v":"Barešová"},{"$f":"IF('Prezenční listina'!F5=0,\"\",'Prezenční listina'!C5)","v":"Milada"},{"$f":"IF('Prezenční listina'!F5=0,\"\",'Prezenční listina'!D5)","v":1975},{"$f":"IF('Prezenční listina'!F5=0,\"\",'Prezenční listina'!E5)","v":"Kunštát"},{"$f":"IF('Prezenční listina'!F5=0,\"\",'Prezenční listina'!H5)","v":"G"}]
[63,{"$f":"IF('Prezenční listina'!F60=0,\"\",'Prezenční listina'!F60)","v":72},{"$f":"IF('Prezenční listina'!F60=0,\"\",'Prezenční listina'!B60)","v":"Ondráček"},{"$f":"IF('Prezenční listina'!F60=0,\"\",'Prezenční listina'!C60)","v":"Tomáš"},{"$f":"IF('Prezenční listina'!F60=0,\"\",'Prezenční listina'!D60)","v":1977},{"$f":"IF('Prezenční listina'!F60=0,\"\",'Prezenční listina'!E60)","v":"Sporty.cz Brno"},{"$f":"IF('Prezenční listina'!F60=0,\"\",'Prezenční listina'!H60)","v":"A"}]
[64,{"$f":"IF('Prezenční listina'!F15=0,\"\",'Prezenční listina'!F15)","v":73},{"$f":"IF('Prezenční listina'!F15=0,\"\",'Prezenční listina'!B15)","v":"Czerný"},{"$f":"IF('Prezenční listina'!F15=0,\"\",'Prezenční listina'!C15)","v":"Pavel"},{"$f":"IF('Prezenční listina'!F15=0,\"\",'Prezenční listina'!D15)","v":1981},{"$f":"IF('Prezenční listina'!F15=0,\"\",'Prezenční listina'!E15)","v":"Karviná"},{"$f":"IF('Prezenční listina'!F15=0,\"\",'Prezenční listina'!H15)","v":"A"}]
[65,{"$f":"IF('Prezenční listina'!F105=0,\"\",'Prezenční listina'!F105)","v":74},{"$f":"IF('Prezenční listina'!F105=0,\"\",'Prezenční listina'!B105)","v":"Čuhel"},{"$f":"IF('Prezenční listina'!F105=0,\"\",'Prezenční listina'!C105)","v":"Jiří"},{"$f":"IF('Prezenční listina'!F105=0,\"\",'Prezenční listina'!D105)","v":1958},{"$f":"IF('Prezenční listina'!F105=0,\"\",'Prezenční listina'!E105)","v":"Křtěnov"},{"$f":"IF('Prezenční listina'!F105=0,\"\",'Prezenční listina'!H105)","v":"C"}]
[66,{"$f":"IF('Prezenční listina'!F75=0,\"\",'Prezenční listina'!F75)","v":75},{"$f":"IF('Prezenční listina'!F75=0,\"\",'Prezenční listina'!B75)","v":"Svoboda"},{"$f":"IF('Prezenční listina'!F75=0,\"\",'Prezenční listina'!C75)","v":"Petr"},{"$f":"IF('Prezenční listina'!F75=0,\"\",'Prezenční listina'!D75)","v":1968},{"$f":"IF('Prezenční listina'!F75=0,\"\",'Prezenční listina'!E75)","v":"Moravská Slávia Brno"},{"$f":"IF('Prezenční listina'!F75=0,\"\",'Prezenční listina'!H75)","v":"B"}]
[67,{"$f":"IF('Prezenční listina'!F46=0,\"\",'Prezenční listina'!F46)","v":76},{"$f":"IF('Prezenční listina'!F46=0,\"\",'Prezenční listina'!B46)","v":"Krejčová"},{"$f":"IF('Prezenční listina'!F46=0,\"\",'Prezenční listina'!C46)","v":"Magda"},{"$f":"IF('Prezenční listina'!F46=0,\"\",'Prezenční listina'!D46)","v":1980},{"$f":"IF('Prezenční listina'!F46=0,\"\",'Prezenční listina'!E46)","v":"Brno"},{"$f":"IF('Prezenční listina'!F46=0,\"\",'Prezenční listina'!H46)","v":"F"}]
[68,{"$f":"IF('Prezenční listina'!F32=0,\"\",'Prezenční listina'!F32)","v":77},{"$f":"IF('Prezenční listina'!F32=0,\"\",'Prezenční listina'!B32)","v":"Janek"},{"$f":"IF('Prezenční listina'!F32=0,\"\",'Prezenční listina'!C32)","v":"Petr"},{"$f":"IF('Prezenční listina'!F32=0,\"\",'Prezenční listina'!D32)","v":1969},{"$f":"IF('Prezenční listina'!F32=0,\"\",'Prezenční listina'!E32)","v":"Brno"},{"$f":"IF('Prezenční listina'!F32=0,\"\",'Prezenční listina'!H32)","v":"B"}]
[69,{"$f":"IF('Prezenční listina'!F38=0,\"\",'Prezenční listina'!F38)","v":79},{"$f":"IF('Prezenční listina'!F38=0,\"\",'Prezenční listina'!B38)","v":"Kocur"},{"$f":"IF('Prezenční listina'!F38=0,\"\",'Prezenční listina'!C38)","v":"Lukáš"},{"$f":"IF('Prezenční listina'!F38=0,\"\",'Prezenční listina'!D38)","v":1977},{"$f":"IF('Prezenční listina'!F38=0,\"\",'Prezenční listina'!E38)","v":"Otmarov"},{"$f":"IF('Prezenční listina'!F38=0,\"\",'Prezenční listina'!H38)","v":"A"}]
[{"$f":"IF(C74=\"\",\"\",A73+1)","v":70},{"$f":"IF('Prezenční listina'!F71=0,\"\",'Prezenční listina'!F71)","v":80},{"$f":"IF('Prezenční listina'!F71=0,\"\",'Prezenční listina'!B71)","v":"Řezníček"},{"$f":"IF('Prezenční listina'!F71=0,\"\",'Prezenční listina'!C71)","v":"Roman"},{"$f":"IF('Prezenční listina'!F71=0,\"\",'Prezenční listina'!D71)","v":1977},{"$f":"IF('Prezenční listina'!F71=0,\"\",'Prezenční listina'!E71)","v":"Žďár nad Sázavou"},{"$f":"IF('Prezenční listina'!F71=0,\"\",'Prezenční listina'!H71)","v":"A"}]
[71,{"$f":"IF('Prezenční listina'!F14=0,\"\",'Prezenční listina'!F14)","v":82},{"$f":"IF('Prezenční listina'!F14=0,\"\",'Prezenční listina'!B14)","v":"Crhová"},{"$f":"IF('Prezenční listina'!F14=0,\"\",'Prezenční listina'!C14)","v":"Ivana"},{"$f":"IF('Prezenční listina'!F14=0,\"\",'Prezenční listina'!D14)","v":1966},{"$f":"IF('Prezenční listina'!F14=0,\"\",'Prezenční listina'!E14)","v":"BK Vísky"},{"$f":"IF('Prezenční listina'!F14=0,\"\",'Prezenční listina'!H14)","v":"H"}]
[72,{"$f":"IF('Prezenční listina'!F57=0,\"\",'Prezenční listina'!F57)","v":83},{"$f":"IF('Prezenční listina'!F57=0,\"\",'Prezenční listina'!B57)","v":"Nosek"},{"$f":"IF('Prezenční listina'!F57=0,\"\",'Prezenční listina'!C57)","v":"Pavel"},{"$f":"IF('Prezenční listina'!F57=0,\"\",'Prezenční listina'!D57)","v":1965},{"$f":"IF('Prezenční listina'!F57=0,\"\",'Prezenční listina'!E57)","v":"ASK Slavkov u Brna"},{"$f":"IF('Prezenční listina'!F57=0,\"\",'Prezenční listina'!H57)","v":"B"}]
[73,{"$f":"IF('Prezenční listina'!F24=0,\"\",'Prezenční listina'!F24)","v":84},{"$f":"IF('Prezenční listina'!F24=0,\"\",'Prezenční listina'!B24)","v":"Glier"},{"$f":"IF('Prezenční listina'!F24=0,\"\",'Prezenční listina'!C24)","v":"Michal"},{"$f":"IF('Prezenční listina'!F24=0,\"\",'Prezenční listina'!D24)","v":1982},{"$f":"IF('Prezenční listina'!F24=0,\"\",'Prezenční listina'!E24)","v":"Moravská Slávia Brno"},{"$f":"IF('Prezenční listina'!F24=0,\"\",'Prezenční listina'!H24)","v":"A"}]
[74,{"$f":"IF('Prezenční listina'!F106=0,\"\",'Prezenční listina'!F106)","v":85},{"$f":"IF('Prezenční listina'!F106=0,\"\",'Prezenční listina'!B106)","v":"Vojta"},{"$f":"IF('Prezenční listina'!F106=0,\"\",'Prezenční listina'!C106)","v":"Marek"},{"$f":"IF('Prezenční listina'!F106=0,\"\",'Prezenční listina'!D106)","v":1988},{"$f":"IF('Prezenční listina'!F106=0,\"\",'Prezenční listina'!E106)","v":"TJ Slávia Hradec Králové"},{"$f":"IF('Prezenční listina'!F106=0,\"\",'Prezenční listina'!H106)","v":"A"}]
[75,{"$f":"IF('Prezenční listina'!F107=0,\"\",'Prezenční listina'!F107)","v":86},{"$f":"IF('Prezenční listina'!F107=0,\"\",'Prezenční listina'!B107)","v":"Navrátil"},{"$f":"IF('Prezenční listina'!F107=0,\"\",'Prezenční listina'!C107)","v":"Marek"},{"$f":"IF('Prezenční listina'!F107=0,\"\",'Prezenční listina'!D107)","v":1990},{"$f":"IF('Prezenční listina'!F107=0,\"\",'Prezenční listina'!E107)","v":"Rožná"},{"$f":"IF('Prezenční listina'!F107=0,\"\",'Prezenční listina'!H107)","v":"A"}]
[76,{"$f":"IF('Prezenční listina'!F108=0,\"\",'Prezenční listina'!F108)","v":87},{"$f":"IF('Prezenční listina'!F108=0,\"\",'Prezenční listina'!B108)","v":"Centko"},{"$f":"IF('Prezenční listina'!F108=0,\"\",'Prezenční listina'!C108)","v":"Pavol"},{"$f":"IF('Prezenční listina'!F108=0,\"\",'Prezenční listina'!D108)","v":1980},{"$f":"IF('Prezenční listina'!F108=0,\"\",'Prezenční listina'!E108)","v":"HO Vír"},{"$f":"IF('Prezenční listina'!F108=0,\"\",'Prezenční listina'!H108)","v":"A"}]
[77,{"$f":"IF('Prezenční listina'!F109=0,\"\",'Prezenční listina'!F109)","v":89},{"$f":"IF('Prezenční listina'!F109=0,\"\",'Prezenční listina'!B109)","v":"Příhoda"},{"$f":"IF('Prezenční listina'!F109=0,\"\",'Prezenční listina'!C109)","v":"Jan"},{"$f":"IF('Prezenční listina'!F109=0,\"\",'Prezenční listina'!D109)","v":1983},{"$f":"IF('Prezenční listina'!F109=0,\"\",'Prezenční listina'!E109)","v":"Ždánice"},{"$f":"IF('Prezenční listina'!F109=0,\"\",'Prezenční listina'!H109)","v":"A"}]
[78,{"$f":"IF('Prezenční listina'!F84=0,\"\",'Prezenční listina'!F84)","v":90},{"$f":"IF('Prezenční listina'!F84=0,\"\",'Prezenční listina'!B84)","v":"Navrátilová"},{"$f":"IF('Prezenční listina'!F84=0,\"\",'Prezenční listina'!C84)","v":"Vlasta"},{"$f":"IF('Prezenční listina'!F84=0,\"\",'Prezenční listina'!D84)","v":1983},{"$f":"IF('Prezenční listina'!F84=0,\"\",'Prezenční listina'!E84)","v":"Vír"},{"$f":"IF('Prezenční listina'!F84=0,\"\",'Prezenční listina'!H84)","v":"F"}]
[79,{"$f":"IF('Prezenční listina'!F110=0,\"\",'Prezenční listina'!F110)","v":91},{"$f":"IF('Prezenční listina'!F110=0,\"\",'Prezenční listina'!B110)","v":"Břížďalová"},{"$f":"IF('Prezenční listina'!F110=0,\"\",'Prezenční listina'!C110)","v":"Jana"},{"$f":"IF('Prezenční listina'!F110=0,\"\",'Prezenční listina'!D110)","v":1978},{"$f":"IF('Prezenční listina'!F110=0,\"\",'Prezenční listina'!E110)","v":"Brno"},{"$f":"IF('Prezenční listina'!F110=0,\"\",'Prezenční listina'!H110)","v":"G"}]
[80,{"$f":"IF('Prezenční listina'!F42=0,\"\",'Prezenční listina'!F42)","v":92},{"$f":"IF('Prezenční listina'!F42=0,\"\",'Prezenční listina'!B42)","v":"Koutský"},{"$f":"IF('Prezenční listina'!F42=0,\"\",'Prezenční listina'!C42)","v":"Tomáš"},{"$f":"IF('Prezenční listina'!F42=0,\"\",'Prezenční listina'!D42)","v":1987},{"$f":"IF('Prezenční listina'!F42=0,\"\",'Prezenční listina'!E42)","v":"HO Vír"},{"$f":"IF('Prezenční listina'!F42=0,\"\",'Prezenční listina'!H42)","v":"A"}]
[81,{"$f":"IF('Prezenční listina'!F22=0,\"\",'Prezenční listina'!F22)","v":93},{"$f":"IF('Prezenční listina'!F22=0,\"\",'Prezenční listina'!B22)","v":"Filip"},{"$f":"IF('Prezenční listina'!F22=0,\"\",'Prezenční listina'!C22)","v":"Rostislav"},{"$f":"IF('Prezenční listina'!F22=0,\"\",'Prezenční listina'!D22)","v":1986},{"$f":"IF('Prezenční listina'!F22=0,\"\",'Prezenční listina'!E22)","v":"HO Vír"},{"$f":"IF('Prezenční listina'!F22=0,\"\",'Prezenční listina'!H22)","v":"A"}]
[82,{"$f":"IF('Prezenční listina'!F111=0,\"\",'Prezenční listina'!F111)","v":94},{"$f":"IF('Prezenční listina'!F111=0,\"\",'Prezenční listina'!B111)","v":"Kubík"},{"$f":"IF('Prezenční listina'!F111=0,\"\",'Prezenční listina'!C111)","v":"Oldřich"},{"$f":"IF('Prezenční listina'!F111=0,\"\",'Prezenční listina'!D111)","v":1981},{"$f":"IF('Prezenční listina'!F111=0,\"\",'Prezenční listina'!E111)","v":"HO Vír"},{"$f":"IF('Prezenční listina'!F111=0,\"\",'Prezenční listina'!H111)","v":"A"}]
[83,{"$f":"IF('Prezenční listina'!F112=0,\"\",'Prezenční listina'!F112)","v":95},{"$f":"IF('Prezenční listina'!F112=0,\"\",'Prezenční listina'!B112)","v":"Tyleček"},{"$f":"IF('Prezenční listina'!F112=0,\"\",'Prezenční listina'!C112)","v":"Pavel"},{"$f":"IF('Prezenční listina'!F112=0,\"\",'Prezenční listina'!D112)","v":1973},{"$f":"IF('Prezenční listina'!F112=0,\"\",'Prezenční listina'!E112)","v":"Brno"},{"$f":"IF('Prezenční listina'!F112=0,\"\",'Prezenční listina'!H112)","v":"B"}]
[84,{"$f":"IF('Prezenční listina'!F27=0,\"\",'Prezenční listina'!F27)","v":96},{"$f":"IF('Prezenční listina'!F27=0,\"\",'Prezenční listina'!B27)","v":"Hrdina"},{"$f":"IF('Prezenční listina'!F27=0,\"\",'Prezenční listina'!C27)","v":"Tomáš"},{"$f":"IF('Prezenční listina'!F27=0,\"\",'Prezenční listina'!D27)","v":1979},{"$f":"IF('Prezenční listina'!F27=0,\"\",'Prezenční listina'!E27)","v":"TRIEXPERT Brno "},{"$f":"IF('Prezenční listina'!F27=0,\"\",'Prezenční listina'!H27)","v":"A"}]
[85,{"$f":"IF('Prezenční listina'!F36=0,\"\",'Prezenční listina'!F36)","v":97},{"$f":"IF('Prezenční listina'!F36=0,\"\",'Prezenční listina'!B36)","v":"Kalichová"},{"$f":"IF('Prezenční listina'!F36=0,\"\",'Prezenční listina'!C36)","v":"Lucie"},{"$f":"IF('Prezenční listina'!F36=0,\"\",'Prezenční listina'!D36)","v":1989},{"$f":"IF('Prezenční listina'!F36=0,\"\",'Prezenční listina'!E36)","v":"Odranec"},{"$f":"IF('Prezenční listina'!F36=0,\"\",'Prezenční listina'!H36)","v":"F"}]
[86,{"$f":"IF('Prezenční listina'!F34=0,\"\",'Prezenční listina'!F34)","v":98},{"$f":"IF('Prezenční listina'!F34=0,\"\",'Prezenční listina'!B34)","v":"Kalich"},{"$f":"IF('Prezenční listina'!F34=0,\"\",'Prezenční listina'!C34)","v":"Radim"},{"$f":"IF('Prezenční listina'!F34=0,\"\",'Prezenční listina'!D34)","v":1985},{"$f":"IF('Prezenční listina'!F34=0,\"\",'Prezenční listina'!E34)","v":"Heliasport Odranec"},{"$f":"IF('Prezenční listina'!F34=0,\"\",'Prezenční listina'!H34)","v":"A"}]
[{"$f":"IF(C91=\"\",\"\",A90+1)","v":87},{"$f":"IF('Prezenční listina'!F41=0,\"\",'Prezenční listina'!F41)","v":99},{"$f":"IF('Prezenční listina'!F41=0,\"\",'Prezenční listina'!B41)","v":"Konečný"},{"$f":"IF('Prezenční listina'!F41=0,\"\",'Prezenční listina'!C41)","v":"Jaroslav"},{"$f":"IF('Prezenční listina'!F41=0,\"\",'Prezenční listina'!D41)","v":1969},{"$f":"IF('Prezenční listina'!F41=0,\"\",'Prezenční listina'!E41)","v":"Popůvky"},{"$f":"IF('Prezenční listina'!F41=0,\"\",'Prezenční listina'!H41)","v":"B"}]
[88,{"$f":"IF('Prezenční listina'!F35=0,\"\",'Prezenční listina'!F35)","v":100},{"$f":"IF('Prezenční listina'!F35=0,\"\",'Prezenční listina'!B35)","v":"Kalich"},{"$f":"IF('Prezenční listina'!F35=0,\"\",'Prezenční listina'!C35)","v":"Dalibor"},{"$f":"IF('Prezenční listina'!F35=0,\"\",'Prezenční listina'!D35)","v":1961},{"$f":"IF('Prezenční listina'!F35=0,\"\",'Prezenční listina'!E35)","v":"Odranec"},{"$f":"IF('Prezenční listina'!F35=0,\"\",'Prezenční listina'!H35)","v":"C"}]
[89,{"$f":"IF('Prezenční listina'!F113=0,\"\",'Prezenční listina'!F113)","v":101},{"$f":"IF('Prezenční listina'!F113=0,\"\",'Prezenční listina'!B113)","v":"Chudoba"},{"$f":"IF('Prezenční listina'!F113=0,\"\",'Prezenční listina'!C113)","v":"Pavel"},{"$f":"IF('Prezenční listina'!F113=0,\"\",'Prezenční listina'!D113)","v":1991},{"$f":"IF('Prezenční listina'!F113=0,\"\",'Prezenční listina'!E113)","v":"RMP TEAM Odranec"},{"$f":"IF('Prezenční listina'!F113=0,\"\",'Prezenční listina'!H113)","v":"A"}]
[90,{"$f":"IF('Prezenční listina'!F61=0,\"\",'Prezenční listina'!F61)","v":102},{"$f":"IF('Prezenční listina'!F61=0,\"\",'Prezenční listina'!B61)","v":"Orálek"},{"$f":"IF('Prezenční listina'!F61=0,\"\",'Prezenční listina'!C61)","v":"Daniel"},{"$f":"IF('Prezenční listina'!F61=0,\"\",'Prezenční listina'!D61)","v":1970},{"$f":"IF('Prezenční listina'!F61=0,\"\",'Prezenční listina'!E61)","v":"Moravská Slávia Brno"},{"$f":"IF('Prezenční listina'!F61=0,\"\",'Prezenční listina'!H61)","v":"B"}]
[91,{"$f":"IF('Prezenční listina'!F12=0,\"\",'Prezenční listina'!F12)","v":103},{"$f":"IF('Prezenční listina'!F12=0,\"\",'Prezenční listina'!B12)","v":"Brabenec"},{"$f":"IF('Prezenční listina'!F12=0,\"\",'Prezenční listina'!C12)","v":"Miroslav"},{"$f":"IF('Prezenční listina'!F12=0,\"\",'Prezenční listina'!D12)","v":1959},{"$f":"IF('Prezenční listina'!F12=0,\"\",'Prezenční listina'!E12)","v":"Žďár nad Sázavou"},{"$f":"IF('Prezenční listina'!F12=0,\"\",'Prezenční listina'!H12)","v":"C"}]
[92,{"$f":"IF('Prezenční listina'!F13=0,\"\",'Prezenční listina'!F13)","v":104},{"$f":"IF('Prezenční listina'!F13=0,\"\",'Prezenční listina'!B13)","v":"Brabenec"},{"$f":"IF('Prezenční listina'!F13=0,\"\",'Prezenční listina'!C13)","v":"Aleš"},{"$f":"IF('Prezenční listina'!F13=0,\"\",'Prezenční listina'!D13)","v":1987},{"$f":"IF('Prezenční listina'!F13=0,\"\",'Prezenční listina'!E13)","v":"Žďár nad Sázavou"},{"$f":"IF('Prezenční listina'!F13=0,\"\",'Prezenční listina'!H13)","v":"A"}]
[93,{"$f":"IF('Prezenční listina'!F66=0,\"\",'Prezenční listina'!F66)","v":105},{"$f":"IF('Prezenční listina'!F66=0,\"\",'Prezenční listina'!B66)","v":"Pokorný"},{"$f":"IF('Prezenční listina'!F66=0,\"\",'Prezenční listina'!C66)","v":"Václav"},{"$f":"IF('Prezenční listina'!F66=0,\"\",'Prezenční listina'!D66)","v":1978},{"$f":"IF('Prezenční listina'!F66=0,\"\",'Prezenční listina'!E66)","v":"Brno"},{"$f":"IF('Prezenční listina'!F66=0,\"\",'Prezenční listina'!H66)","v":"A"}]
[94,{"$f":"IF('Prezenční listina'!F23=0,\"\",'Prezenční listina'!F23)","v":106},{"$f":"IF('Prezenční listina'!F23=0,\"\",'Prezenční listina'!B23)","v":"Fučík"},{"$f":"IF('Prezenční listina'!F23=0,\"\",'Prezenční listina'!C23)","v":"Jaroslav"},{"$f":"IF('Prezenční listina'!F23=0,\"\",'Prezenční listina'!D23)","v":1974},{"$f":"IF('Prezenční listina'!F23=0,\"\",'Prezenční listina'!E23)","v":"Prosetín"},{"$f":"IF('Prezenční listina'!F23=0,\"\",'Prezenční listina'!H23)","v":"B"}]
[95,{"$f":"IF('Prezenční listina'!F45=0,\"\",'Prezenční listina'!F45)","v":107},{"$f":"IF('Prezenční listina'!F45=0,\"\",'Prezenční listina'!B45)","v":"Kratochvíl"},{"$f":"IF('Prezenční listina'!F45=0,\"\",'Prezenční listina'!C45)","v":"Jaroslav"},{"$f":"IF('Prezenční listina'!F45=0,\"\",'Prezenční listina'!D45)","v":1977},{"$f":"IF('Prezenční listina'!F45=0,\"\",'Prezenční listina'!E45)","v":"SDH Hluboké"},{"$f":"IF('Prezenční listina'!F45=0,\"\",'Prezenční listina'!H45)","v":"A"}]
[96,{"$f":"IF('Prezenční listina'!F40=0,\"\",'Prezenční listina'!F40)","v":108},{"$f":"IF('Prezenční listina'!F40=0,\"\",'Prezenční listina'!B40)","v":"Konečný"},{"$f":"IF('Prezenční listina'!F40=0,\"\",'Prezenční listina'!C40)","v":"Libor"},{"$f":"IF('Prezenční listina'!F40=0,\"\",'Prezenční listina'!D40)","v":1971},{"$f":"IF('Prezenční listina'!F40=0,\"\",'Prezenční listina'!E40)","v":"Kuřim"},{"$f":"IF('Prezenční listina'!F40=0,\"\",'Prezenční listina'!H40)","v":"B"}]
[97,{"$f":"IF('Prezenční listina'!F33=0,\"\",'Prezenční listina'!F33)","v":109},{"$f":"IF('Prezenční listina'!F33=0,\"\",'Prezenční listina'!B33)","v":"Jaskulka"},{"$f":"IF('Prezenční listina'!F33=0,\"\",'Prezenční listina'!C33)","v":"Martin"},{"$f":"IF('Prezenční listina'!F33=0,\"\",'Prezenční listina'!D33)","v":1968},{"$f":"IF('Prezenční listina'!F33=0,\"\",'Prezenční listina'!E33)","v":"Kuřim"},{"$f":"IF('Prezenční listina'!F33=0,\"\",'Prezenční listina'!H33)","v":"B"}]
[98,{"$f":"IF('Prezenční listina'!F59=0,\"\",'Prezenční listina'!F59)","v":110},{"$f":"IF('Prezenční listina'!F59=0,\"\",'Prezenční listina'!B59)","v":"Novotný"},{"$f":"IF('Prezenční listina'!F59=0,\"\",'Prezenční listina'!C59)","v":"Petr"},{"$f":"IF('Prezenční listina'!F59=0,\"\",'Prezenční listina'!D59)","v":1965},{"$f":"IF('Prezenční listina'!F59=0,\"\",'Prezenční listina'!E59)","v":"Kuřim"},{"$f":"IF('Prezenční listina'!F59=0,\"\",'Prezenční listina'!H59)","v":"B"}]
[99,{"$f":"IF('Prezenční listina'!F72=0,\"\",'Prezenční listina'!F72)","v":111},{"$f":"IF('Prezenční listina'!F72=0,\"\",'Prezenční listina'!B72)","v":"Sedláček"},{"$f":"IF('Prezenční listina'!F72=0,\"\",'Prezenční listina'!C72)","v":"Svatopluk"},{"$f":"IF('Prezenční listina'!F72=0,\"\",'Prezenční listina'!D72)","v":1957},{"$f":"IF('Prezenční listina'!F72=0,\"\",'Prezenční listina'!E72)","v":"Moravská Slávia Brno"},{"$f":"IF('Prezenční listina'!F72=0,\"\",'Prezenční listina'!H72)","v":"C"}]
["",{"$f":"IF('Prezenční listina'!F63=0,\"\",'Prezenční listina'!F63)","v":""},{"$f":"IF('Prezenční listina'!F63=0,\"\",'Prezenční listina'!B63)","v":""},{"$f":"IF('Prezenční listina'!F63=0,\"\",'Prezenční listina'!C63)","v":""},{"$f":"IF('Prezenční listina'!F63=0,\"\",'Prezenční listina'!D63)","v":""},{"$f":"IF('Prezenční listina'!F63=0,\"\",'Prezenční listina'!E63)","v":""},{"$f":"IF('Prezenční listina'!F63=0,\"\",'Prezenční listina'!H63)","v":""}]
["",{"$f":"IF('Prezenční listina'!F51=0,\"\",'Prezenční listina'!F51)","v":""},{"$f":"IF('Prezenční listina'!F51=0,\"\",'Prezenční listina'!B51)","v":""},{"$f":"IF('Prezenční listina'!F51=0,\"\",'Prezenční listina'!C51)","v":""},{"$f":"IF('Prezenční listina'!F51=0,\"\",'Prezenční listina'!D51)","v":""},{"$f":"IF('Prezenční listina'!F51=0,\"\",'Prezenční listina'!E51)","v":""},{"$f":"IF('Prezenční listina'!F51=0,\"\",'Prezenční listina'!H51)","v":""}]
["",{"$f":"IF('Prezenční listina'!F21=0,\"\",'Prezenční listina'!F21)","v":""},{"$f":"IF('Prezenční listina'!F21=0,\"\",'Prezenční listina'!B21)","v":""},{"$f":"IF('Prezenční listina'!F21=0,\"\",'Prezenční listina'!C21)","v":""},{"$f":"IF('Prezenční listina'!F21=0,\"\",'Prezenční listina'!D21)","v":""},{"$f":"IF('Prezenční listina'!F21=0,\"\",'Prezenční listina'!E21)","v":""},{"$f":"IF('Prezenční listina'!F21=0,\"\",'Prezenční listina'!H21)","v":""}]
["",{"$f":"IF('Prezenční listina'!F62=0,\"\",'Prezenční listina'!F62)","v":""},{"$f":"IF('Prezenční listina'!F62=0,\"\",'Prezenční listina'!B62)","v":""},{"$f":"IF('Prezenční listina'!F62=0,\"\",'Prezenční listina'!C62)","v":""},{"$f":"IF('Prezenční listina'!F62=0,\"\",'Prezenční listina'!D62)","v":""},{"$f":"IF('Prezenční listina'!F62=0,\"\",'Prezenční listina'!E62)","v":""},{"$f":"IF('Prezenční listina'!F62=0,\"\",'Prezenční listina'!H62)","v":""}]
["",{"$f":"IF('Prezenční listina'!F55=0,\"\",'Prezenční listina'!F55)","v":""},{"$f":"IF('Prezenční listina'!F55=0,\"\",'Prezenční listina'!B55)","v":""},{"$f":"IF('Prezenční listina'!F55=0,\"\",'Prezenční listina'!C55)","v":""},{"$f":"IF('Prezenční listina'!F55=0,\"\",'Prezenční listina'!D55)","v":""},{"$f":"IF('Prezenční listina'!F55=0,\"\",'Prezenční listina'!E55)","v":""},{"$f":"IF('Prezenční listina'!F55=0,\"\",'Prezenční listina'!H55)","v":""}]
["",{"$f":"IF('Prezenční listina'!F8=0,\"\",'Prezenční listina'!F8)","v":""},{"$f":"IF('Prezenční listina'!F8=0,\"\",'Prezenční listina'!B8)","v":""},{"$f":"IF('Prezenční listina'!F8=0,\"\",'Prezenční listina'!C8)","v":""},{"$f":"IF('Prezenční listina'!F8=0,\"\",'Prezenční listina'!D8)","v":""},{"$f":"IF('Prezenční listina'!F8=0,\"\",'Prezenční listina'!E8)","v":""},{"$f":"IF('Prezenční listina'!F8=0,\"\",'Prezenční listina'!H8)","v":""}]
["",{"$f":"IF('Prezenční listina'!F4=0,\"\",'Prezenční listina'!F4)","v":""},{"$f":"IF('Prezenční listina'!F4=0,\"\",'Prezenční listina'!B4)","v":""},{"$f":"IF('Prezenční listina'!F4=0,\"\",'Prezenční listina'!C4)","v":""},{"$f":"IF('Prezenční listina'!F4=0,\"\",'Prezenční listina'!D4)","v":""},{"$f":"IF('Prezenční listina'!F4=0,\"\",'Prezenční listina'!E4)","v":""},{"$f":"IF('Prezenční listina'!F4=0,\"\",'Prezenční listina'!H4)","v":""}]
["",{"$f":"IF('Prezenční listina'!F80=0,\"\",'Prezenční listina'!F80)","v":""},{"$f":"IF('Prezenční listina'!F80=0,\"\",'Prezenční listina'!B80)","v":""},{"$f":"IF('Prezenční listina'!F80=0,\"\",'Prezenční listina'!C80)","v":""},{"$f":"IF('Prezenční listina'!F80=0,\"\",'Prezenční listina'!D80)","v":""},{"$f":"IF('Prezenční listina'!F80=0,\"\",'Prezenční listina'!E80)","v":""},{"$f":"IF('Prezenční listina'!F80=0,\"\",'Prezenční listina'!H80)","v":""}]
["",{"$f":"IF('Prezenční listina'!F6=0,\"\",'Prezenční listina'!F6)","v":""},{"$f":"IF('Prezenční listina'!F6=0,\"\",'Prezenční listina'!B6)","v":""},{"$f":"IF('Prezenční listina'!F6=0,\"\",'Prezenční listina'!C6)","v":""},{"$f":"IF('Prezenční listina'!F6=0,\"\",'Prezenční listina'!D6)","v":""},{"$f":"IF('Prezenční listina'!F6=0,\"\",'Prezenční listina'!E6)","v":""},{"$f":"IF('Prezenční listina'!F6=0,\"\",'Prezenční listina'!H6)","v":""}]
["",{"$f":"IF('Prezenční listina'!F43=0,\"\",'Prezenční listina'!F43)","v":""},{"$f":"IF('Prezenční listina'!F43=0,\"\",'Prezenční listina'!B43)","v":""},{"$f":"IF('Prezenční listina'!F43=0,\"\",'Prezenční listina'!C43)","v":""},{"$f":"IF('Prezenční listina'!F43=0,\"\",'Prezenční listina'!D43)","v":""},{"$f":"IF('Prezenční listina'!F43=0,\"\",'Prezenční listina'!E43)","v":""},{"$f":"IF('Prezenční listina'!F43=0,\"\",'Prezenční listina'!H43)","v":""}]
["",{"$f":"IF('Prezenční listina'!F65=0,\"\",'Prezenční listina'!F65)","v":""},{"$f":"IF('Prezenční listina'!F65=0,\"\",'Prezenční listina'!B65)","v":""},{"$f":"IF('Prezenční listina'!F65=0,\"\",'Prezenční listina'!C65)","v":""},{"$f":"IF('Prezenční listina'!F65=0,\"\",'Prezenční listina'!D65)","v":""},{"$f":"IF('Prezenční listina'!F65=0,\"\",'Prezenční listina'!E65)","v":""},{"$f":"IF('Prezenční listina'!F65=0,\"\",'Prezenční listina'!H65)","v":""}]
["",{"$f":"IF('Prezenční listina'!F44=0,\"\",'Prezenční listina'!F44)","v":""},{"$f":"IF('Prezenční listina'!F44=0,\"\",'Prezenční listina'!B44)","v":""},{"$f":"IF('Prezenční listina'!F44=0,\"\",'Prezenční listina'!C44)","v":""},{"$f":"IF('Prezenční listina'!F44=0,\"\",'Prezenční listina'!D44)","v":""},{"$f":"IF('Prezenční listina'!F44=0,\"\",'Prezenční listina'!E44)","v":""},{"$f":"IF('Prezenční listina'!F44=0,\"\",'Prezenční listina'!H44)","v":""}]
["",{"$f":"IF('Prezenční listina'!F114=0,\"\",'Prezenční listina'!F114)","v":""},{"$f":"IF('Prezenční listina'!F114=0,\"\",'Prezenční listina'!B114)","v":""},{"$f":"IF('Prezenční listina'!F114=0,\"\",'Prezenční listina'!C114)","v":""},{"$f":"IF('Prezenční listina'!F114=0,\"\",'Prezenční listina'!D114)","v":""},{"$f":"IF('Prezenční listina'!F114=0,\"\",'Prezenční listina'!E114)","v":""},{"$f":"IF('Prezenční listina'!F114=0,\"\",'Prezenční listina'!H114)","v":""}]
["",{"$f":"IF('Prezenční listina'!F115=0,\"\",'Prezenční listina'!F115)","v":""},{"$f":"IF('Prezenční listina'!F115=0,\"\",'Prezenční listina'!B115)","v":""},{"$f":"IF('Prezenční listina'!F115=0,\"\",'Prezenční listina'!C115)","v":""},{"$f":"IF('Prezenční listina'!F115=0,\"\",'Prezenční listina'!D115)","v":""},{"$f":"IF('Prezenční listina'!F115=0,\"\",'Prezenční listina'!E115)","v":""},{"$f":"IF('Prezenční listina'!F115=0,\"\",'Prezenční listina'!H115)","v":""}]
["",{"$f":"IF('Prezenční listina'!F116=0,\"\",'Prezenční listina'!F116)","v":""},{"$f":"IF('Prezenční listina'!F116=0,\"\",'Prezenční listina'!B116)","v":""},{"$f":"IF('Prezenční listina'!F116=0,\"\",'Prezenční listina'!C116)","v":""},{"$f":"IF('Prezenční listina'!F116=0,\"\",'Prezenční listina'!D116)","v":""},{"$f":"IF('Prezenční listina'!F116=0,\"\",'Prezenční listina'!E116)","v":""},{"$f":"IF('Prezenční listina'!F116=0,\"\",'Prezenční listina'!H116)","v":""}]
["",{"$f":"IF('Prezenční listina'!F117=0,\"\",'Prezenční listina'!F117)","v":""},{"$f":"IF('Prezenční listina'!F117=0,\"\",'Prezenční listina'!B117)","v":""},{"$f":"IF('Prezenční listina'!F117=0,\"\",'Prezenční listina'!C117)","v":""},{"$f":"IF('Prezenční listina'!F117=0,\"\",'Prezenční listina'!D117)","v":""},{"$f":"IF('Prezenční listina'!F117=0,\"\",'Prezenční listina'!E117)","v":""},{"$f":"IF('Prezenční listina'!F117=0,\"\",'Prezenční listina'!H117)","v":""}]
["",{"$f":"IF('Prezenční listina'!F118=0,\"\",'Prezenční listina'!F118)","v":""},{"$f":"IF('Prezenční listina'!F118=0,\"\",'Prezenční listina'!B118)","v":""},{"$f":"IF('Prezenční listina'!F118=0,\"\",'Prezenční listina'!C118)","v":""},{"$f":"IF('Prezenční listina'!F118=0,\"\",'Prezenční listina'!D118)","v":""},{"$f":"IF('Prezenční listina'!F118=0,\"\",'Prezenční listina'!E118)","v":""},{"$f":"IF('Prezenční listina'!F118=0,\"\",'Prezenční listina'!H118)","v":""}]
["",{"$f":"IF('Prezenční listina'!F119=0,\"\",'Prezenční listina'!F119)","v":""},{"$f":"IF('Prezenční listina'!F119=0,\"\",'Prezenční listina'!B119)","v":""},{"$f":"IF('Prezenční listina'!F119=0,\"\",'Prezenční listina'!C119)","v":""},{"$f":"IF('Prezenční listina'!F119=0,\"\",'Prezenční listina'!D119)","v":""},{"$f":"IF('Prezenční listina'!F119=0,\"\",'Prezenční listina'!E119)","v":""},{"$f":"IF('Prezenční listina'!F119=0,\"\",'Prezenční listina'!H119)","v":""}]
["",{"$f":"IF('Prezenční listina'!F120=0,\"\",'Prezenční listina'!F120)","v":""},{"$f":"IF('Prezenční listina'!F120=0,\"\",'Prezenční listina'!B120)","v":""},{"$f":"IF('Prezenční listina'!F120=0,\"\",'Prezenční listina'!C120)","v":""},{"$f":"IF('Prezenční listina'!F120=0,\"\",'Prezenční listina'!D120)","v":""},{"$f":"IF('Prezenční listina'!F120=0,\"\",'Prezenční listina'!E120)","v":""},{"$f":"IF('Prezenční listina'!F120=0,\"\",'Prezenční listina'!H120)","v":""}]
["",{"$f":"IF('Prezenční listina'!F121=0,\"\",'Prezenční listina'!F121)","v":""},{"$f":"IF('Prezenční listina'!F121=0,\"\",'Prezenční listina'!B121)","v":""},{"$f":"IF('Prezenční listina'!F121=0,\"\",'Prezenční listina'!C121)","v":""},{"$f":"IF('Prezenční listina'!F121=0,\"\",'Prezenční listina'!D121)","v":""},{"$f":"IF('Prezenční listina'!F121=0,\"\",'Prezenční listina'!E121)","v":""},{"$f":"IF('Prezenční listina'!F121=0,\"\",'Prezenční listina'!H121)","v":""}]
["",{"$f":"IF('Prezenční listina'!F122=0,\"\",'Prezenční listina'!F122)","v":""},{"$f":"IF('Prezenční listina'!F122=0,\"\",'Prezenční listina'!B122)","v":""},{"$f":"IF('Prezenční listina'!F122=0,\"\",'Prezenční listina'!C122)","v":""},{"$f":"IF('Prezenční listina'!F122=0,\"\",'Prezenční listina'!D122)","v":""},{"$f":"IF('Prezenční listina'!F122=0,\"\",'Prezenční listina'!E122)","v":""},{"$f":"IF('Prezenční listina'!F122=0,\"\",'Prezenční listina'!H122)","v":""}]
["",{"$f":"IF('Prezenční listina'!F123=0,\"\",'Prezenční listina'!F123)","v":""},{"$f":"IF('Prezenční listina'!F123=0,\"\",'Prezenční listina'!B123)","v":""},{"$f":"IF('Prezenční listina'!F123=0,\"\",'Prezenční listina'!C123)","v":""},{"$f":"IF('Prezenční listina'!F123=0,\"\",'Prezenční listina'!D123)","v":""},{"$f":"IF('Prezenční listina'!F123=0,\"\",'Prezenční listina'!E123)","v":""},{"$f":"IF('Prezenční listina'!F123=0,\"\",'Prezenční listina'!H123)","v":""}]
["",{"$f":"IF('Prezenční listina'!F124=0,\"\",'Prezenční listina'!F124)","v":""},{"$f":"IF('Prezenční listina'!F124=0,\"\",'Prezenční listina'!B124)","v":""},{"$f":"IF('Prezenční listina'!F124=0,\"\",'Prezenční listina'!C124)","v":""},{"$f":"IF('Prezenční listina'!F124=0,\"\",'Prezenční listina'!D124)","v":""},{"$f":"IF('Prezenční listina'!F124=0,\"\",'Prezenční listina'!E124)","v":""},{"$f":"IF('Prezenční listina'!F124=0,\"\",'Prezenční listina'!H124)","v":""}]
["",{"$f":"IF('Prezenční listina'!F125=0,\"\",'Prezenční listina'!F125)","v":""},{"$f":"IF('Prezenční listina'!F125=0,\"\",'Prezenční listina'!B125)","v":""},{"$f":"IF('Prezenční listina'!F125=0,\"\",'Prezenční listina'!C125)","v":""},{"$f":"IF('Prezenční listina'!F125=0,\"\",'Prezenční listina'!D125)","v":""},{"$f":"IF('Prezenční listina'!F125=0,\"\",'Prezenční listina'!E125)","v":""},{"$f":"IF('Prezenční listina'!F125=0,\"\",'Prezenční listina'!H125)","v":""}]
["",{"$f":"IF('Prezenční listina'!F126=0,\"\",'Prezenční listina'!F126)","v":""},{"$f":"IF('Prezenční listina'!F126=0,\"\",'Prezenční listina'!B126)","v":""},{"$f":"IF('Prezenční listina'!F126=0,\"\",'Prezenční listina'!C126)","v":""},{"$f":"IF('Prezenční listina'!F126=0,\"\",'Prezenční listina'!D126)","v":""},{"$f":"IF('Prezenční listina'!F126=0,\"\",'Prezenční listina'!E126)","v":""},{"$f":"IF('Prezenční listina'!F126=0,\"\",'Prezenční listina'!H126)","v":""}]
["",{"$f":"IF('Prezenční listina'!F127=0,\"\",'Prezenční listina'!F127)","v":""},{"$f":"IF('Prezenční listina'!F127=0,\"\",'Prezenční listina'!B127)","v":""},{"$f":"IF('Prezenční listina'!F127=0,\"\",'Prezenční listina'!C127)","v":""},{"$f":"IF('Prezenční listina'!F127=0,\"\",'Prezenční listina'!D127)","v":""},{"$f":"IF('Prezenční listina'!F127=0,\"\",'Prezenční listina'!E127)","v":""},{"$f":"IF('Prezenční listina'!F127=0,\"\",'Prezenční listina'!H127)","v":""}]
["",{"$f":"IF('Prezenční listina'!F128=0,\"\",'Prezenční listina'!F128)","v":""},{"$f":"IF('Prezenční listina'!F128=0,\"\",'Prezenční listina'!B128)","v":""},{"$f":"IF('Prezenční listina'!F128=0,\"\",'Prezenční listina'!C128)","v":""},{"$f":"IF('Prezenční listina'!F128=0,\"\",'Prezenční listina'!D128)","v":""},{"$f":"IF('Prezenční listina'!F128=0,\"\",'Prezenční listina'!E128)","v":""},{"$f":"IF('Prezenční listina'!F128=0,\"\",'Prezenční listina'!H128)","v":""}]
["",{"$f":"IF('Prezenční listina'!F129=0,\"\",'Prezenční listina'!F129)","v":""},{"$f":"IF('Prezenční listina'!F129=0,\"\",'Prezenční listina'!B129)","v":""},{"$f":"IF('Prezenční listina'!F129=0,\"\",'Prezenční listina'!C129)","v":""},{"$f":"IF('Prezenční listina'!F129=0,\"\",'Prezenční listina'!D129)","v":""},{"$f":"IF('Prezenční listina'!F129=0,\"\",'Prezenční listina'!E129)","v":""},{"$f":"IF('Prezenční listina'!F129=0,\"\",'Prezenční listina'!H129)","v":""}]
["",{"$f":"IF('Prezenční listina'!F130=0,\"\",'Prezenční listina'!F130)","v":""},{"$f":"IF('Prezenční listina'!F130=0,\"\",'Prezenční listina'!B130)","v":""},{"$f":"IF('Prezenční listina'!F130=0,\"\",'Prezenční listina'!C130)","v":""},{"$f":"IF('Prezenční listina'!F130=0,\"\",'Prezenční listina'!D130)","v":""},{"$f":"IF('Prezenční listina'!F130=0,\"\",'Prezenční listina'!E130)","v":""},{"$f":"IF('Prezenční listina'!F130=0,\"\",'Prezenční listina'!H130)","v":""}]
["",{"$f":"IF('Prezenční listina'!F131=0,\"\",'Prezenční listina'!F131)","v":""},{"$f":"IF('Prezenční listina'!F131=0,\"\",'Prezenční listina'!B131)","v":""},{"$f":"IF('Prezenční listina'!F131=0,\"\",'Prezenční listina'!C131)","v":""},{"$f":"IF('Prezenční listina'!F131=0,\"\",'Prezenční listina'!D131)","v":""},{"$f":"IF('Prezenční listina'!F131=0,\"\",'Prezenční listina'!E131)","v":""},{"$f":"IF('Prezenční listina'!F131=0,\"\",'Prezenční listina'!H131)","v":""}]
["",{"$f":"IF('Prezenční listina'!F132=0,\"\",'Prezenční listina'!F132)","v":""},{"$f":"IF('Prezenční listina'!F132=0,\"\",'Prezenční listina'!B132)","v":""},{"$f":"IF('Prezenční listina'!F132=0,\"\",'Prezenční listina'!C132)","v":""},{"$f":"IF('Prezenční listina'!F132=0,\"\",'Prezenční listina'!D132)","v":""},{"$f":"IF('Prezenční listina'!F132=0,\"\",'Prezenční listina'!E132)","v":""},{"$f":"IF('Prezenční listina'!F132=0,\"\",'Prezenční listina'!H132)","v":""}]
["",{"$f":"IF('Prezenční listina'!F133=0,\"\",'Prezenční listina'!F133)","v":""},{"$f":"IF('Prezenční listina'!F133=0,\"\",'Prezenční listina'!B133)","v":""},{"$f":"IF('Prezenční listina'!F133=0,\"\",'Prezenční listina'!C133)","v":""},{"$f":"IF('Prezenční listina'!F133=0,\"\",'Prezenční listina'!D133)","v":""},{"$f":"IF('Prezenční listina'!F133=0,\"\",'Prezenční listina'!E133)","v":""},{"$f":"IF('Prezenční listina'!F133=0,\"\",'Prezenční listina'!H133)","v":""}]
["",{"$f":"IF('Prezenční listina'!F134=0,\"\",'Prezenční listina'!F134)","v":""},{"$f":"IF('Prezenční listina'!F134=0,\"\",'Prezenční listina'!B134)","v":""},{"$f":"IF('Prezenční listina'!F134=0,\"\",'Prezenční listina'!C134)","v":""},{"$f":"IF('Prezenční listina'!F134=0,\"\",'Prezenční listina'!D134)","v":""},{"$f":"IF('Prezenční listina'!F134=0,\"\",'Prezenční listina'!E134)","v":""},{"$f":"IF('Prezenční listina'!F134=0,\"\",'Prezenční listina'!H134)","v":""}]
["",{"$f":"IF('Prezenční listina'!F135=0,\"\",'Prezenční listina'!F135)","v":""},{"$f":"IF('Prezenční listina'!F135=0,\"\",'Prezenční listina'!B135)","v":""},{"$f":"IF('Prezenční listina'!F135=0,\"\",'Prezenční listina'!C135)","v":""},{"$f":"IF('Prezenční listina'!F135=0,\"\",'Prezenční listina'!D135)","v":""},{"$f":"IF('Prezenční listina'!F135=0,\"\",'Prezenční listina'!E135)","v":""},{"$f":"IF('Prezenční listina'!F135=0,\"\",'Prezenční listina'!H135)","v":""}]
["",{"$f":"IF('Prezenční listina'!F136=0,\"\",'Prezenční listina'!F136)","v":""},{"$f":"IF('Prezenční listina'!F136=0,\"\",'Prezenční listina'!B136)","v":""},{"$f":"IF('Prezenční listina'!F136=0,\"\",'Prezenční listina'!C136)","v":""},{"$f":"IF('Prezenční listina'!F136=0,\"\",'Prezenční listina'!D136)","v":""},{"$f":"IF('Prezenční listina'!F136=0,\"\",'Prezenční listina'!E136)","v":""},{"$f":"IF('Prezenční listina'!F136=0,\"\",'Prezenční listina'!H136)","v":""}]
["",{"$f":"IF('Prezenční listina'!F137=0,\"\",'Prezenční listina'!F137)","v":""},{"$f":"IF('Prezenční listina'!F137=0,\"\",'Prezenční listina'!B137)","v":""},{"$f":"IF('Prezenční listina'!F137=0,\"\",'Prezenční listina'!C137)","v":""},{"$f":"IF('Prezenční listina'!F137=0,\"\",'Prezenční listina'!D137)","v":""},{"$f":"IF('Prezenční listina'!F137=0,\"\",'Prezenční listina'!E137)","v":""},{"$f":"IF('Prezenční listina'!F137=0,\"\",'Prezenční listina'!H137)","v":""}]
["",{"$f":"IF('Prezenční listina'!F138=0,\"\",'Prezenční listina'!F138)","v":""},{"$f":"IF('Prezenční listina'!F138=0,\"\",'Prezenční listina'!B138)","v":""},{"$f":"IF('Prezenční listina'!F138=0,\"\",'Prezenční listina'!C138)","v":""},{"$f":"IF('Prezenční listina'!F138=0,\"\",'Prezenční listina'!D138)","v":""},{"$f":"IF('Prezenční listina'!F138=0,\"\",'Prezenční listina'!E138)","v":""},{"$f":"IF('Prezenční listina'!F138=0,\"\",'Prezenční listina'!H138)","v":""}]
["",{"$f":"IF('Prezenční listina'!F139=0,\"\",'Prezenční listina'!F139)","v":""},{"$f":"IF('Prezenční listina'!F139=0,\"\",'Prezenční listina'!B139)","v":""},{"$f":"IF('Prezenční listina'!F139=0,\"\",'Prezenční listina'!C139)","v":""},{"$f":"IF('Prezenční listina'!F139=0,\"\",'Prezenční listina'!D139)","v":""},{"$f":"IF('Prezenční listina'!F139=0,\"\",'Prezenční listina'!E139)","v":""},{"$f":"IF('Prezenční listina'!F139=0,\"\",'Prezenční listina'!H139)","v":""}]

{"sheet":"Výsledková listina","index":2,"n_rows":147,"n_cols":11,"rows_kept":147,"cut":false,"hidden":false,"merged":[[0,0,0,8],[2,0,2,8],[146,3,152,7],[1,0,1,8],[1,10,13,14]]}
[{"$f":"\"Výsledková listina - Malý svratecký maratón \"&'Prezenční listina'!O2","v":"Výsledková listina - Malý svratecký maratón 2014"}]
["2014-08-23",null,null,null,null,null,null,null,null,null,"\nPoté, co jsou dopsány časy VŠECH běžců, stisknout tlačítko 1.řazení \n\n\nVe sloupci B (Pořadí v kategorii) vytvořit posloupnou číselnou řadu pro každou kategorii a poté stisknout tlačítko 2.řazení\n\n\n                      !!! POZOR!!!\n\n               Použití tlačítek je nevratný krok!"]
[{"$f":"'Prezenční listina'!O2-1953&\". ročník\"","v":"61. ročník"}]
["Celkové pořadí","Pořadí v kategorii","Kategorie","Startovní číslo","Příjmení","Jméno","Narození","Oddíl / Bydliště","Čas"]
[1,1,{"$f":"'Startovní listina'!G32","v":"A"},{"$f":"'Startovní listina'!B32","v":30},{"$f":"'Startovní listina'!C32","v":"Homoláč"},{"$f":"'Startovní listina'!D32","v":"Jiří"},{"$f":"'Startovní listina'!E32","v":1990},{"$f":"'Startovní listina'!F32","v":"adidas Running TEAM"},"01:45:02"]
[{"$f":"IF('Výsledková listina'!D6<>\"\",A5+1,\"\")","v":2},2,{"$f":"'Startovní listina'!G61","v":"A"},{"$f":"'Startovní listina'!B61","v":62},{"$f":"'Startovní listina'!C61","v":"Kohut"},{"$f":"'Startovní listina'!D61","v":"Jan"},{"$f":"'Startovní listina'!E61","v":1985},{"$f":"'Startovní listina'!F61","v":"RELAX-FIT.CZ"},"01:51:27"]
[{"$f":"IF('Výsledková listina'!D7<>\"\",A6+1,\"\")","v":3},3,{"$f":"'Startovní listina'!G56","v":"A"},{"$f":"'Startovní listina'!B56","v":57},{"$f":"'Startovní listina'!C56","v":"Janů"},{"$f":"'Startovní listina'!D56","v":"Jan"},{"$f":"'Startovní listina'!E56","v":1993},{"$f":"'Startovní listina'!F56","v":"Hvězda SKP Pardubice"},"01:54:45"]
[{"$f":"IF('Výsledková listina'!D8<>\"\",A7+1,\"\")","v":4},1,{"$f":"'Startovní listina'!G94","v":"B"},{"$f":"'Startovní listina'!B94","v":102},{"$f":"'Startovní listina'!C94","v":"Orálek"},{"$f":"'Startovní listina'!D94","v":"Daniel"},{"$f":"'Startovní listina'!E94","v":1970},{"$f":"'Startovní listina'!F94","v":"Moravská Slávia Brno"},"01:55:42"]
[{"$f":"IF('Výsledková listina'!D9<>\"\",A8+1,\"\")","v":5},4,{"$f":"'Startovní listina'!G9","v":"A"},{"$f":"'Startovní listina'!B9","v":5},{"$f":"'Startovní listina'!C9","v":"Ryška"},{"$f":"'Startovní listina'!D9","v":"Vít"},{"$f":"'Startovní listina'!E9","v":1975},{"$f":"'Startovní listina'!F9","v":"VSK UNI BRNO"},"01:59:51"]
[{"$f":"IF('Výsledková listina'!D10<>\"\",A9+1,\"\")","v":6},5,{"$f":"'Startovní listina'!G67","v":"A"},{"$f":"'Startovní listina'!B67","v":72},{"$f":"'Startovní listina'!C67","v":"Ondráček"},{"$f":"'Startovní listina'!D67","v":"Tomáš"},{"$f":"'Startovní listina'!E67","v":1977},{"$f":"'Startovní listina'!F67","v":"Sporty.cz Brno"},"02:00:53"]
[{"$f":"IF('Výsledková listina'!D11<>\"\",A10+1,\"\")","v":7},6,{"$f":"'Startovní listina'!G33","v":"A"},{"$f":"'Startovní listina'!B33","v":31},{"$f":"'Startovní listina'!C33","v":"Borek"},{"$f":"'Startovní listina'!D33","v":"Aleš"},{"$f":"'Startovní listina'!E33","v":1977},{"$f":"'Startovní listina'!F33","v":"adidas Running TEAM"},"02:01:36"]
[{"$f":"IF('Výsledková listina'!D12<>\"\",A11+1,\"\")","v":8},7,{"$f":"'Startovní listina'!G46","v":"A"},{"$f":"'Startovní listina'!B46","v":46},{"$f":"'Startovní listina'!C46","v":"Kunčar"},{"$f":"'Startovní listina'!D46","v":"David"},{"$f":"'Startovní listina'!E46","v":1975},{"$f":"'Startovní listina'!F46","v":"Spartak Praha 4"},"02:04:30"]
[{"$f":"IF('Výsledková listina'!D13<>\"\",A12+1,\"\")","v":9},8,{"$f":"'Startovní listina'!G77","v":"A"},{"$f":"'Startovní listina'!B77","v":84},{"$f":"'Startovní listina'!C77","v":"Glier"},{"$f":"'Startovní listina'!D77","v":"Michal"},{"$f":"'Startovní listina'!E77","v":1982},{"$f":"'Startovní listina'!F77","v":"Moravská Slávia Brno"},"02:05:52"]
[{"$f":"IF('Výsledková listina'!D14<>\"\",A13+1,\"\")","v":10},9,{"$f":"'Startovní listina'!G68","v":"A"},{"$f":"'Startovní listina'!B68","v":73},{"$f":"'Startovní listina'!C68","v":"Czerný"},{"$f":"'Startovní listina'!D68","v":"Pavel"},{"$f":"'Startovní listina'!E68","v":1981},{"$f":"'Startovní listina'!F68","v":"Karviná"},"02:06:53"]
[{"$f":"IF('Výsledková listina'!D15<>\"\",A14+1,\"\")","v":11},2,{"$f":"'Startovní listina'!G70","v":"B"},{"$f":"'Startovní listina'!B70","v":75},{"$f":"'Startovní listina'!C70","v":"Svoboda"},{"$f":"'Startovní listina'!D70","v":"Petr"},{"$f":"'Startovní listina'!E70","v":1968},{"$f":"'Startovní listina'!F70","v":"Moravská Slávia Brno"},"02:07:04"]
[{"$f":"IF('Výsledková listina'!D16<>\"\",A15+1,\"\")","v":12},10,{"$f":"'Startovní listina'!G13","v":"A"},{"$f":"'Startovní listina'!B13","v":9},{"$f":"'Startovní listina'!C13","v":"Borovec"},{"$f":"'Startovní listina'!D13","v":"Alexandr"},{"$f":"'Startovní listina'!E13","v":1976},{"$f":"'Startovní listina'!F13","v":"Choceň"},"02:08:18"]
[{"$f":"IF('Výsledková listina'!D17<>\"\",A16+1,\"\")","v":13},11,{"$f":"'Startovní listina'!G88","v":"A"},{"$f":"'Startovní listina'!B88","v":96},{"$f":"'Startovní listina'!C88","v":"Hrdina"},{"$f":"'Startovní listina'!D88","v":"Tomáš"},{"$f":"'Startovní listina'!E88","v":1979},{"$f":"'Startovní listina'!F88","v":"TRIEXPERT Brno "},"02:10:13"]
[{"$f":"IF('Výsledková listina'!D18<>\"\",A17+1,\"\")","v":14},1,{"$f":"'Startovní listina'!G51","v":"C"},{"$f":"'Startovní listina'!B51","v":51},{"$f":"'Startovní listina'!C51","v":"Rerych"},{"$f":"'Startovní listina'!D51","v":"Jiří"},{"$f":"'Startovní listina'!E51","v":1962},{"$f":"'Startovní listina'!F51","v":"Moravská Slávia Brno"},"02:10:35"]
[{"$f":"IF('Výsledková listina'!D19<>\"\",A18+1,\"\")","v":15},3,{"$f":"'Startovní listina'!G18","v":"B"},{"$f":"'Startovní listina'!B18","v":14},{"$f":"'Startovní listina'!C18","v":"Štýbnar"},{"$f":"'Startovní listina'!D18","v":"Zbyněk"},{"$f":"'Startovní listina'!E18","v":1974},{"$f":"'Startovní listina'!F18","v":"Běžec Vysočiny Jihlava"},"02:11:13"]
[{"$f":"IF('Výsledková listina'!D20<>\"\",A19+1,\"\")","v":16},4,{"$f":"'Startovní listina'!G20","v":"B"},{"$f":"'Startovní listina'!B20","v":17},{"$f":"'Startovní listina'!C20","v":"Dušil"},{"$f":"'Startovní listina'!D20","v":"Jaroslav"},{"$f":"'Startovní listina'!E20","v":1970},{"$f":"'Startovní listina'!F20","v":"Brno"},"02:13:14"]
[{"$f":"IF('Výsledková listina'!D21<>\"\",A20+1,\"\")","v":17},5,{"$f":"'Startovní listina'!G21","v":"B"},{"$f":"'Startovní listina'!B21","v":18},{"$f":"'Startovní listina'!C21","v":"Alman"},{"$f":"'Startovní listina'!D21","v":"Dušan"},{"$f":"'Startovní listina'!E21","v":1967},{"$f":"'Startovní listina'!F21","v":"Babice"},"02:15:37"]
[{"$f":"IF('Výsledková listina'!D22<>\"\",A21+1,\"\")","v":18},1,{"$f":"'Startovní listina'!G10","v":"F"},{"$f":"'Startovní listina'!B10","v":6},{"$f":"'Startovní listina'!C10","v":"Ďurdiaková"},{"$f":"'Startovní listina'!D10","v":"Tereza"},{"$f":"'Startovní listina'!E10","v":1991},{"$f":"'Startovní listina'!F10","v":"AK Olymp Brno"},"02:17:26"]
[{"$f":"IF('Výsledková listina'!D23<>\"\",A22+1,\"\")","v":19},1,{"$f":"'Startovní listina'!G15","v":"H"},{"$f":"'Startovní listina'!B15","v":11},{"$f":"'Startovní listina'!C15","v":"Martincová"},{"$f":"'Startovní listina'!D15","v":"Ivana"},{"$f":"'Startovní listina'!E15","v":1963},{"$f":"'Startovní listina'!F15","v":"Moravská Slávia Brno"},"02:17:59"]
[{"$f":"IF('Výsledková listina'!D24<>\"\",A23+1,\"\")","v":20},12,{"$f":"'Startovní listina'!G99","v":"A"},{"$f":"'Startovní listina'!B99","v":107},{"$f":"'Startovní listina'!C99","v":"Kratochvíl"},{"$f":"'Startovní listina'!D99","v":"Jaroslav"},{"$f":"'Startovní listina'!E99","v":1977},{"$f":"'Startovní listina'!F99","v":"SDH Hluboké"},"02:19:02"]
[{"$f":"IF('Výsledková listina'!D25<>\"\",A24+1,\"\")","v":21},13,{"$f":"'Startovní listina'!G81","v":"A"},{"$f":"'Startovní listina'!B81","v":89},{"$f":"'Startovní listina'!C81","v":"Příhoda"},{"$f":"'Startovní listina'!D81","v":"Jan"},{"$f":"'Startovní listina'!E81","v":1983},{"$f":"'Startovní listina'!F81","v":"Ždánice"},"02:19:58"]
[{"$f":"IF('Výsledková listina'!D26<>\"\",A25+1,\"\")","v":22},6,{"$f":"'Startovní listina'!G22","v":"B"},{"$f":"'Startovní listina'!B22","v":19},{"$f":"'Startovní listina'!C22","v":"Hejtmánek"},{"$f":"'Startovní listina'!D22","v":"Miroslav"},{"$f":"'Startovní listina'!E22","v":1970},{"$f":"'Startovní listina'!F22","v":"Brno"},"02:21:58"]
[{"$f":"IF('Výsledková listina'!D27<>\"\",A26+1,\"\")","v":23},14,{"$f":"'Startovní listina'!G97","v":"A"},{"$f":"'Startovní listina'!B97","v":105},{"$f":"'Startovní listina'!C97","v":"Pokorný"},{"$f":"'Startovní listina'!D97","v":"Václav"},{"$f":"'Startovní listina'!E97","v":1978},{"$f":"'Startovní listina'!F97","v":"Brno"},"02:23:19"]
[{"$f":"IF('Výsledková listina'!D28<>\"\",A27+1,\"\")","v":24},7,{"$f":"'Startovní listina'!G100","v":"B"},{"$f":"'Startovní listina'!B100","v":108},{"$f":"'Startovní listina'!C100","v":"Konečný"},{"$f":"'Startovní listina'!D100","v":"Libor"},{"$f":"'Startovní listina'!E100","v":1971},{"$f":"'Startovní listina'!F100","v":"Kuřim"},"02:24:11"]
[{"$f":"IF('Výsledková listina'!D29<>\"\",A28+1,\"\")","v":25},2,{"$f":"'Startovní listina'!G27","v":"C"},{"$f":"'Startovní listina'!B27","v":24},{"$f":"'Startovní listina'!C27","v":"Zouhar"},{"$f":"'Startovní listina'!D27","v":"Libor"},{"$f":"'Startovní listina'!E27","v":1958},{"$f":"'Startovní listina'!F27","v":"Brno Líšeň"},"02:25:50"]
[{"$f":"IF('Výsledková listina'!D30<>\"\",A29+1,\"\")","v":26},15,{"$f":"'Startovní listina'!G74","v":"A"},{"$f":"'Startovní listina'!B74","v":80},{"$f":"'Startovní listina'!C74","v":"Řezníček"},{"$f":"'Startovní listina'!D74","v":"Roman"},{"$f":"'Startovní listina'!E74","v":1977},{"$f":"'Startovní listina'!F74","v":"Žďár nad Sázavou"},"02:27:50"]
[{"$f":"IF('Výsledková listina'!D31<>\"\",A30+1,\"\")","v":27},16,{"$f":"'Startovní listina'!G90","v":"A"},{"$f":"'Startovní listina'!B90","v":98},{"$f":"'Startovní listina'!C90","v":"Kalich"},{"$f":"'Startovní listina'!D90","v":"Radim"},{"$f":"'Startovní listina'!E90","v":1985},{"$f":"'Startovní listina'!F90","v":"Heliasport Odranec"},"02:29:29"]
[{"$f":"IF('Výsledková listina'!D32<>\"\",A31+1,\"\")","v":28},17,{"$f":"'Startovní listina'!G73","v":"A"},{"$f":"'Startovní listina'!B73","v":79},{"$f":"'Startovní listina'!C73","v":"Kocur"},{"$f":"'Startovní listina'!D73","v":"Lukáš"},{"$f":"'Startovní listina'!E73","v":1977},{"$f":"'Startovní listina'!F73","v":"Otmarov"},"02:29:59"]
[{"$f":"IF('Výsledková listina'!D33<>\"\",A32+1,\"\")","v":29},3,{"$f":"'Startovní listina'!G69","v":"C"},{"$f":"'Startovní listina'!B69","v":74},{"$f":"'Startovní listina'!C69","v":"Čuhel"},{"$f":"'Startovní listina'!D69","v":"Jiří"},{"$f":"'Startovní listina'!E69","v":1958},{"$f":"'Startovní listina'!F69","v":"Křtěnov"},"02:30:25"]
[{"$f":"IF('Výsledková listina'!D34<>\"\",A33+1,\"\")","v":30},1,{"$f":"'Startovní listina'!G44","v":"G"},{"$f":"'Startovní listina'!B44","v":44},{"$f":"'Startovní listina'!C44","v":"Beniačová"},{"$f":"'Startovní listina'!D44","v":"Linda"},{"$f":"'Startovní listina'!E44","v":1978},{"$f":"'Startovní listina'!F44","v":"Brno"},"02:30:47"]
[{"$f":"IF('Výsledková listina'!D35<>\"\",A34+1,\"\")","v":31},8,{"$f":"'Startovní listina'!G29","v":"B"},{"$f":"'Startovní listina'!B29","v":27},{"$f":"'Startovní listina'!C29","v":"Lorenčík"},{"$f":"'Startovní listina'!D29","v":"Aleš"},{"$f":"'Startovní listina'!E29","v":1973},{"$f":"'Startovní listina'!F29","v":"Chrudim"},"02:30:49"]
[{"$f":"IF('Výsledková listina'!D36<>\"\",A35+1,\"\")","v":32},4,{"$f":"'Startovní listina'!G52","v":"C"},{"$f":"'Startovní listina'!B52","v":53},{"$f":"'Startovní listina'!C52","v":"Nosek"},{"$f":"'Startovní listina'!D52","v":"Miroslav"},{"$f":"'Startovní listina'!E52","v":1955},{"$f":"'Startovní listina'!F52","v":"Moravská Slávia Brno"},"02:31:43"]
[{"$f":"IF('Výsledková listina'!D37<>\"\",A36+1,\"\")","v":33},9,{"$f":"'Startovní listina'!G62","v":"B"},{"$f":"'Startovní listina'!B62","v":63},{"$f":"'Startovní listina'!C62","v":"Doležal"},{"$f":"'Startovní listina'!D62","v":"Marek"},{"$f":"'Startovní listina'!E62","v":1973},{"$f":"'Startovní listina'!F62","v":"NEW BALANCE"},"02:31:55"]
[{"$f":"IF('Výsledková listina'!D38<>\"\",A37+1,\"\")","v":34},10,{"$f":"'Startovní listina'!G98","v":"B"},{"$f":"'Startovní listina'!B98","v":106},{"$f":"'Startovní listina'!C98","v":"Fučík"},{"$f":"'Startovní listina'!D98","v":"Jaroslav"},{"$f":"'Startovní listina'!E98","v":1974},{"$f":"'Startovní listina'!F98","v":"Prosetín"},"02:32:39"]
[{"$f":"IF('Výsledková listina'!D39<>\"\",A38+1,\"\")","v":35},2,{"$f":"'Startovní listina'!G66","v":"G"},{"$f":"'Startovní listina'!B66","v":70},{"$f":"'Startovní listina'!C66","v":"Barešová"},{"$f":"'Startovní listina'!D66","v":"Milada"},{"$f":"'Startovní listina'!E66","v":1975},{"$f":"'Startovní listina'!F66","v":"Kunštát"},"02:33:03"]
[{"$f":"IF('Výsledková listina'!D40<>\"\",A39+1,\"\")","v":36},18,{"$f":"'Startovní listina'!G96","v":"A"},{"$f":"'Startovní listina'!B96","v":104},{"$f":"'Startovní listina'!C96","v":"Brabenec"},{"$f":"'Startovní listina'!D96","v":"Aleš"},{"$f":"'Startovní listina'!E96","v":1987},{"$f":"'Startovní listina'!F96","v":"Žďár nad Sázavou"},"02:33:07"]
[{"$f":"IF('Výsledková listina'!D41<>\"\",A40+1,\"\")","v":37},19,{"$f":"'Startovní listina'!G64","v":"A"},{"$f":"'Startovní listina'!B64","v":67},{"$f":"'Startovní listina'!C64","v":"Pavelka"},{"$f":"'Startovní listina'!D64","v":"Richard"},{"$f":"'Startovní listina'!E64","v":1981},{"$f":"'Startovní listina'!F64","v":"Brno"},"02:33:18"]
[{"$f":"IF('Výsledková listina'!D42<>\"\",A41+1,\"\")","v":38},3,{"$f":"'Startovní listina'!G11","v":"G"},{"$f":"'Startovní listina'!B11","v":7},{"$f":"'Startovní listina'!C11","v":"Komárková"},{"$f":"'Startovní listina'!D11","v":"Zdeňka"},{"$f":"'Startovní listina'!E11","v":1974},{"$f":"'Startovní listina'!F11","v":"SDH Bolešín"},"02:33:24"]
[{"$f":"IF('Výsledková listina'!D43<>\"\",A42+1,\"\")","v":39},20,{"$f":"'Startovní listina'!G19","v":"A"},{"$f":"'Startovní listina'!B19","v":16},{"$f":"'Startovní listina'!C19","v":"Kameníček"},{"$f":"'Startovní listina'!D19","v":"Michal"},{"$f":"'Startovní listina'!E19","v":1986},{"$f":"'Startovní listina'!F19","v":"Vinařice"},"02:34:12"]
[{"$f":"IF('Výsledková listina'!D44<>\"\",A43+1,\"\")","v":40},21,{"$f":"'Startovní listina'!G79","v":"A"},{"$f":"'Startovní listina'!B79","v":86},{"$f":"'Startovní listina'!C79","v":"Navrátil"},{"$f":"'Startovní listina'!D79","v":"Marek"},{"$f":"'Startovní listina'!E79","v":1990},{"$f":"'Startovní listina'!F79","v":"Rožná"},"02:34:18"]
[{"$f":"IF('Výsledková listina'!D45<>\"\",A44+1,\"\")","v":41},22,{"$f":"'Startovní listina'!G31","v":"A"},{"$f":"'Startovní listina'!B31","v":29},{"$f":"'Startovní listina'!C31","v":"Veškrna"},{"$f":"'Startovní listina'!D31","v":"Ivan"},{"$f":"'Startovní listina'!E31","v":1983},{"$f":"'Startovní listina'!F31","v":"Brno"},"02:34:35"]
[{"$f":"IF('Výsledková listina'!D46<>\"\",A45+1,\"\")","v":42},2,{"$f":"'Startovní listina'!G30","v":"F"},{"$f":"'Startovní listina'!B30","v":28},{"$f":"'Startovní listina'!C30","v":"Procházková"},{"$f":"'Startovní listina'!D30","v":"Tereza"},{"$f":"'Startovní listina'!E30","v":1990},{"$f":"'Startovní listina'!F30","v":"Orel Ořechov"},"02:34:35"]
[{"$f":"IF('Výsledková listina'!D47<>\"\",A46+1,\"\")","v":43},5,{"$f":"'Startovní listina'!G60","v":"C"},{"$f":"'Startovní listina'!B60","v":61},{"$f":"'Startovní listina'!C60","v":"Měřínský"},{"$f":"'Startovní listina'!D60","v":"Jaroslav"},{"$f":"'Startovní listina'!E60","v":1961},{"$f":"'Startovní listina'!F60","v":"AK Perná"},"02:34:52"]
[{"$f":"IF('Výsledková listina'!D48<>\"\",A47+1,\"\")","v":44},3,{"$f":"'Startovní listina'!G71","v":"F"},{"$f":"'Startovní listina'!B71","v":76},{"$f":"'Startovní listina'!C71","v":"Krejčová"},{"$f":"'Startovní listina'!D71","v":"Magda"},{"$f":"'Startovní listina'!E71","v":1980},{"$f":"'Startovní listina'!F71","v":"Brno"},"02:34:58"]
[{"$f":"IF('Výsledková listina'!D49<>\"\",A48+1,\"\")","v":45},4,{"$f":"'Startovní listina'!G42","v":"G"},{"$f":"'Startovní listina'!B42","v":42},{"$f":"'Startovní listina'!C42","v":"Klimánková"},{"$f":"'Startovní listina'!D42","v":"Eva"},{"$f":"'Startovní listina'!E42","v":1973},{"$f":"'Startovní listina'!F42","v":"Brno"},"02:35:15"]
[{"$f":"IF('Výsledková listina'!D50<>\"\",A49+1,\"\")","v":46},4,{"$f":"'Startovní listina'!G49","v":"F"},{"$f":"'Startovní listina'!B49","v":49},{"$f":"'Startovní listina'!C49","v":"Pešáková"},{"$f":"'Startovní listina'!D49","v":"Mirka"},{"$f":"'Startovní listina'!E49","v":1985},{"$f":"'Startovní listina'!F49","v":"Tetčice"},"02:35:16"]
[{"$f":"IF('Výsledková listina'!D51<>\"\",A50+1,\"\")","v":47},11,{"$f":"'Startovní listina'!G72","v":"B"},{"$f":"'Startovní listina'!B72","v":77},{"$f":"'Startovní listina'!C72","v":"Janek"},{"$f":"'Startovní listina'!D72","v":"Petr"},{"$f":"'Startovní listina'!E72","v":1969},{"$f":"'Startovní listina'!F72","v":"Brno"},"02:35:27"]
[{"$f":"IF('Výsledková listina'!D52<>\"\",A51+1,\"\")","v":48},23,{"$f":"'Startovní listina'!G36","v":"A"},{"$f":"'Startovní listina'!B36","v":35},{"$f":"'Startovní listina'!C36","v":"Stejskal"},{"$f":"'Startovní listina'!D36","v":"Petr"},{"$f":"'Startovní listina'!E36","v":1976},{"$f":"'Startovní listina'!F36","v":"Farma Jiřího Chrásta"},"02:35:46"]
[{"$f":"IF('Výsledková listina'!D53<>\"\",A52+1,\"\")","v":49},6,{"$f":"'Startovní listina'!G103","v":"C"},{"$f":"'Startovní listina'!B103","v":111},{"$f":"'Startovní listina'!C103","v":"Sedláček"},{"$f":"'Startovní listina'!D103","v":"Svatopluk"},{"$f":"'Startovní listina'!E103","v":1957},{"$f":"'Startovní listina'!F103","v":"Moravská Slávia Brno"},"02:35:55"]
[{"$f":"IF('Výsledková listina'!D54<>\"\",A53+1,\"\")","v":50},12,{"$f":"'Startovní listina'!G17","v":"B"},{"$f":"'Startovní listina'!B17","v":13},{"$f":"'Startovní listina'!C17","v":"Provazník"},{"$f":"'Startovní listina'!D17","v":"Milan"},{"$f":"'Startovní listina'!E17","v":1966},{"$f":"'Startovní listina'!F17","v":"Polička"},"02:37:44"]
[{"$f":"IF('Výsledková listina'!D55<>\"\",A54+1,\"\")","v":51},24,{"$f":"'Startovní listina'!G41","v":"A"},{"$f":"'Startovní listina'!B41","v":41},{"$f":"'Startovní listina'!C41","v":"Dubský"},{"$f":"'Startovní listina'!D41","v":"Roman"},{"$f":"'Startovní listina'!E41","v":1978},{"$f":"'Startovní listina'!F41","v":"Přibyslav"},"02:40:13"]
[{"$f":"IF('Výsledková listina'!D56<>\"\",A55+1,\"\")","v":52},5,{"$f":"'Startovní listina'!G63","v":"G"},{"$f":"'Startovní listina'!B63","v":64},{"$f":"'Startovní listina'!C63","v":"Ráček-Pelikánová"},{"$f":"'Startovní listina'!D63","v":"Dáša"},{"$f":"'Startovní listina'!E63","v":1976},{"$f":"'Startovní listina'!F63","v":"Brno"},"02:40:50"]
[{"$f":"IF('Výsledková listina'!D57<>\"\",A56+1,\"\")","v":53},25,{"$f":"'Startovní listina'!G50","v":"A"},{"$f":"'Startovní listina'!B50","v":50},{"$f":"'Startovní listina'!C50","v":"Kubík"},{"$f":"'Startovní listina'!D50","v":"Pavel"},{"$f":"'Startovní listina'!E50","v":1981},{"$f":"'Startovní listina'!F50","v":"Blansko"},"02:40:56"]
[{"$f":"IF('Výsledková listina'!D58<>\"\",A57+1,\"\")","v":54},26,{"$f":"'Startovní listina'!G85","v":"A"},{"$f":"'Startovní listina'!B85","v":93},{"$f":"'Startovní listina'!C85","v":"Filip"},{"$f":"'Startovní listina'!D85","v":"Rostislav"},{"$f":"'Startovní listina'!E85","v":1986},{"$f":"'Startovní listina'!F85","v":"HO Vír"},"02:43:16"]
[{"$f":"IF('Výsledková listina'!D59<>\"\",A58+1,\"\")","v":55},27,{"$f":"'Startovní listina'!G84","v":"A"},{"$f":"'Startovní listina'!B84","v":92},{"$f":"'Startovní listina'!C84","v":"Koutský"},{"$f":"'Startovní listina'!D84","v":"Tomáš"},{"$f":"'Startovní listina'!E84","v":1987},{"$f":"'Startovní listina'!F84","v":"HO Vír"},"02:43:17"]
[{"$f":"IF('Výsledková listina'!D60<>\"\",A59+1,\"\")","v":56},13,{"$f":"'Startovní listina'!G102","v":"B"},{"$f":"'Startovní listina'!B102","v":110},{"$f":"'Startovní listina'!C102","v":"Novotný"},{"$f":"'Startovní listina'!D102","v":"Petr"},{"$f":"'Startovní listina'!E102","v":1965},{"$f":"'Startovní listina'!F102","v":"Kuřim"},"02:43:23"]
[{"$f":"IF('Výsledková listina'!D61<>\"\",A60+1,\"\")","v":57},28,{"$f":"'Startovní listina'!G37","v":"A"},{"$f":"'Startovní listina'!B37","v":36},{"$f":"'Startovní listina'!C37","v":"Čech"},{"$f":"'Startovní listina'!D37","v":"Martin"},{"$f":"'Startovní listina'!E37","v":1978},{"$f":"'Startovní listina'!F37","v":"Farma Jiřího Chrásta"},"02:43:32"]
[{"$f":"IF('Výsledková listina'!D62<>\"\",A61+1,\"\")","v":58},14,{"$f":"'Startovní listina'!G76","v":"B"},{"$f":"'Startovní listina'!B76","v":83},{"$f":"'Startovní listina'!C76","v":"Nosek"},{"$f":"'Startovní listina'!D76","v":"Pavel"},{"$f":"'Startovní listina'!E76","v":1965},{"$f":"'Startovní listina'!F76","v":"ASK Slavkov u Brna"},"02:43:33"]
[{"$f":"IF('Výsledková listina'!D63<>\"\",A62+1,\"\")","v":59},29,{"$f":"'Startovní listina'!G6","v":"A"},{"$f":"'Startovní listina'!B6","v":2},{"$f":"'Startovní listina'!C6","v":"Jež"},{"$f":"'Startovní listina'!D6","v":"Zdeněk"},{"$f":"'Startovní listina'!E6","v":1977},{"$f":"'Startovní listina'!F6","v":"STS Chvojkovice Brod"},"02:46:35"]
[{"$f":"IF('Výsledková listina'!D64<>\"\",A63+1,\"\")","v":60},7,{"$f":"'Startovní listina'!G34","v":"C"},{"$f":"'Startovní listina'!B34","v":33},{"$f":"'Startovní listina'!C34","v":"Suchý"},{"$f":"'Startovní listina'!D34","v":"Karel"},{"$f":"'Startovní listina'!E34","v":1956},{"$f":"'Startovní listina'!F34","v":"Náměšť nad Oslavou"},"02:47:41"]
[{"$f":"IF('Výsledková listina'!D65<>\"\",A64+1,\"\")","v":61},30,{"$f":"'Startovní listina'!G43","v":"A"},{"$f":"'Startovní listina'!B43","v":43},{"$f":"'Startovní listina'!C43","v":"Mihola"},{"$f":"'Startovní listina'!D43","v":"Zbyněk"},{"$f":"'Startovní listina'!E43","v":1975},{"$f":"'Startovní listina'!F43","v":"Kunštát"},"02:48:44"]
[{"$f":"IF('Výsledková listina'!D66<>\"\",A65+1,\"\")","v":62},31,{"$f":"'Startovní listina'!G86","v":"A"},{"$f":"'Startovní listina'!B86","v":94},{"$f":"'Startovní listina'!C86","v":"Kubík"},{"$f":"'Startovní listina'!D86","v":"Oldřich"},{"$f":"'Startovní listina'!E86","v":1981},{"$f":"'Startovní listina'!F86","v":"HO Vír"},"02:49:50"]
[{"$f":"IF('Výsledková listina'!D67<>\"\",A66+1,\"\")","v":63},32,{"$f":"'Startovní listina'!G23","v":"A"},{"$f":"'Startovní listina'!B23","v":20},{"$f":"'Startovní listina'!C23","v":"Hlavsa"},{"$f":"'Startovní listina'!D23","v":"Tomáš"},{"$f":"'Startovní listina'!E23","v":1983},{"$f":"'Startovní listina'!F23","v":"Adamov"},"02:50:17"]
[{"$f":"IF('Výsledková listina'!D68<>\"\",A67+1,\"\")","v":64},15,{"$f":"'Startovní listina'!G87","v":"B"},{"$f":"'Startovní listina'!B87","v":95},{"$f":"'Startovní listina'!C87","v":"Tyleček"},{"$f":"'Startovní listina'!D87","v":"Pavel"},{"$f":"'Startovní listina'!E87","v":1973},{"$f":"'Startovní listina'!F87","v":"Brno"},"02:51:40"]
[{"$f":"IF('Výsledková listina'!D69<>\"\",A68+1,\"\")","v":65},8,{"$f":"'Startovní listina'!G95","v":"C"},{"$f":"'Startovní listina'!B95","v":103},{"$f":"'Startovní listina'!C95","v":"Brabenec"},{"$f":"'Startovní listina'!D95","v":"Miroslav"},{"$f":"'Startovní listina'!E95","v":1959},{"$f":"'Startovní listina'!F95","v":"Žďár nad Sázavou"},"02:51:55"]
[{"$f":"IF('Výsledková listina'!D70<>\"\",A69+1,\"\")","v":66},33,{"$f":"'Startovní listina'!G40","v":"A"},{"$f":"'Startovní listina'!B40","v":40},{"$f":"'Startovní listina'!C40","v":"Blaha"},{"$f":"'Startovní listina'!D40","v":"Rostislav"},{"$f":"'Startovní listina'!E40","v":1989},{"$f":"'Startovní listina'!F40","v":"BK Vísky"},"02:52:28"]
[{"$f":"IF('Výsledková listina'!D71<>\"\",A70+1,\"\")","v":67},1,{"$f":"'Startovní listina'!G58","v":"D"},{"$f":"'Startovní listina'!B58","v":59},{"$f":"'Startovní listina'!C58","v":"Boháč"},{"$f":"'Startovní listina'!D58","v":"Jiří"},{"$f":"'Startovní listina'!E58","v":1954},{"$f":"'Startovní listina'!F58","v":"Brno"},"02:52:47"]
[{"$f":"IF('Výsledková listina'!D72<>\"\",A71+1,\"\")","v":68},34,{"$f":"'Startovní listina'!G59","v":"A"},{"$f":"'Startovní listina'!B59","v":60},{"$f":"'Startovní listina'!C59","v":"Matuška"},{"$f":"'Startovní listina'!D59","v":"Slávek"},{"$f":"'Startovní listina'!E59","v":1980},{"$f":"'Startovní listina'!F59","v":"HO Vír"},"02:52:57"]
[{"$f":"IF('Výsledková listina'!D73<>\"\",A72+1,\"\")","v":69},35,{"$f":"'Startovní listina'!G80","v":"A"},{"$f":"'Startovní listina'!B80","v":87},{"$f":"'Startovní listina'!C80","v":"Centko"},{"$f":"'Startovní listina'!D80","v":"Pavol"},{"$f":"'Startovní listina'!E80","v":1980},{"$f":"'Startovní listina'!F80","v":"HO Vír"},"02:52:58"]
[{"$f":"IF('Výsledková listina'!D74<>\"\",A73+1,\"\")","v":70},6,{"$f":"'Startovní listina'!G83","v":"G"},{"$f":"'Startovní listina'!B83","v":91},{"$f":"'Startovní listina'!C83","v":"Břížďalová"},{"$f":"'Startovní listina'!D83","v":"Jana"},{"$f":"'Startovní listina'!E83","v":1978},{"$f":"'Startovní listina'!F83","v":"Brno"},"02:53:55"]
[{"$f":"IF('Výsledková listina'!D75<>\"\",A74+1,\"\")","v":71},2,{"$f":"'Startovní listina'!G16","v":"D"},{"$f":"'Startovní listina'!B16","v":12},{"$f":"'Startovní listina'!C16","v":"Chromý"},{"$f":"'Startovní listina'!D16","v":"Bořivoj"},{"$f":"'Startovní listina'!E16","v":1953},{"$f":"'Startovní listina'!F16","v":"Tišnov"},"02:54:18"]
[{"$f":"IF('Výsledková listina'!D76<>\"\",A75+1,\"\")","v":72},16,{"$f":"'Startovní listina'!G65","v":"B"},{"$f":"'Startovní listina'!B65","v":69},{"$f":"'Startovní listina'!C65","v":"Veselý"},{"$f":"'Startovní listina'!D65","v":"Prokop"},{"$f":"'Startovní listina'!E65","v":1969},{"$f":"'Startovní listina'!F65","v":"Kunštát"},"02:54:29"]
[{"$f":"IF('Výsledková listina'!D77<>\"\",A76+1,\"\")","v":73},36,{"$f":"'Startovní listina'!G7","v":"A"},{"$f":"'Startovní listina'!B7","v":3},{"$f":"'Startovní listina'!C7","v":"Podsedník"},{"$f":"'Startovní listina'!D7","v":"Marek"},{"$f":"'Startovní listina'!E7","v":1985},{"$f":"'Startovní listina'!F7","v":"Miroslav"},"02:55:14"]
[{"$f":"IF('Výsledková listina'!D78<>\"\",A77+1,\"\")","v":74},9,{"$f":"'Startovní listina'!G26","v":"C"},{"$f":"'Startovní listina'!B26","v":23},{"$f":"'Startovní listina'!C26","v":"Kučínský"},{"$f":"'Startovní listina'!D26","v":"Pavel"},{"$f":"'Startovní listina'!E26","v":1959},{"$f":"'Startovní listina'!F26","v":"Brno"},"02:55:30"]
[{"$f":"IF('Výsledková listina'!D79<>\"\",A78+1,\"\")","v":75},37,{"$f":"'Startovní listina'!G25","v":"A"},{"$f":"'Startovní listina'!B25","v":22},{"$f":"'Startovní listina'!C25","v":"Kryštof"},{"$f":"'Startovní listina'!D25","v":"Ondřej"},{"$f":"'Startovní listina'!E25","v":1976},{"$f":"'Startovní listina'!F25","v":"TJ Jiskra Vír"},"02:55:44"]
[{"$f":"IF('Výsledková listina'!D80<>\"\",A79+1,\"\")","v":76},3,{"$f":"'Startovní listina'!G38","v":"D"},{"$f":"'Startovní listina'!B38","v":37},{"$f":"'Startovní listina'!C38","v":"Nekuža"},{"$f":"'Startovní listina'!D38","v":"Jiří"},{"$f":"'Startovní listina'!E38","v":1951},{"$f":"'Startovní listina'!F38","v":"Kašpar Ostrava"},"02:57:34"]
[{"$f":"IF('Výsledková listina'!D81<>\"\",A80+1,\"\")","v":77},38,{"$f":"'Startovní listina'!G53","v":"A"},{"$f":"'Startovní listina'!B53","v":54},{"$f":"'Startovní listina'!C53","v":"Hübner"},{"$f":"'Startovní listina'!D53","v":"Jan"},{"$f":"'Startovní listina'!E53","v":1978},{"$f":"'Startovní listina'!F53","v":"SDH Bolešín"},"02:57:59"]
[{"$f":"IF('Výsledková listina'!D82<>\"\",A81+1,\"\")","v":78},39,{"$f":"'Startovní listina'!G54","v":"A"},{"$f":"'Startovní listina'!B54","v":55},{"$f":"'Startovní listina'!C54","v":"Hübner"},{"$f":"'Startovní listina'!D54","v":"Tomáš"},{"$f":"'Startovní listina'!E54","v":1979},{"$f":"'Startovní listina'!F54","v":"SDH Bolešín"},"02:58:00"]
[{"$f":"IF('Výsledková listina'!D83<>\"\",A82+1,\"\")","v":79},10,{"$f":"'Startovní listina'!G55","v":"C"},{"$f":"'Startovní listina'!B55","v":56},{"$f":"'Startovní listina'!C55","v":"Češner"},{"$f":"'Startovní listina'!D55","v":"Vladimír"},{"$f":"'Startovní listina'!E55","v":1958},{"$f":"'Startovní listina'!F55","v":"Odolena Voda"},"02:59:15"]
[{"$f":"IF('Výsledková listina'!D84<>\"\",A83+1,\"\")","v":80},40,{"$f":"'Startovní listina'!G47","v":"A"},{"$f":"'Startovní listina'!B47","v":47},{"$f":"'Startovní listina'!C47","v":"Machát"},{"$f":"'Startovní listina'!D47","v":"Libor"},{"$f":"'Startovní listina'!E47","v":1979},{"$f":"'Startovní listina'!F47","v":"Bílovice nad Svitavou"},"03:02:55"]
[{"$f":"IF('Výsledková listina'!D85<>\"\",A84+1,\"\")","v":81},2,{"$f":"'Startovní listina'!G75","v":"H"},{"$f":"'Startovní listina'!B75","v":82},{"$f":"'Startovní listina'!C75","v":"Crhová"},{"$f":"'Startovní listina'!D75","v":"Ivana"},{"$f":"'Startovní listina'!E75","v":1966},{"$f":"'Startovní listina'!F75","v":"BK Vísky"},"03:05:17"]
[{"$f":"IF('Výsledková listina'!D86<>\"\",A85+1,\"\")","v":82},41,{"$f":"'Startovní listina'!G78","v":"A"},{"$f":"'Startovní listina'!B78","v":85},{"$f":"'Startovní listina'!C78","v":"Vojta"},{"$f":"'Startovní listina'!D78","v":"Marek"},{"$f":"'Startovní listina'!E78","v":1988},{"$f":"'Startovní listina'!F78","v":"TJ Slávia Hradec Králové"},"03:06:30"]
[{"$f":"IF('Výsledková listina'!D87<>\"\",A86+1,\"\")","v":83},42,{"$f":"'Startovní listina'!G48","v":"A"},{"$f":"'Startovní listina'!B48","v":48},{"$f":"'Startovní listina'!C48","v":"Štach"},{"$f":"'Startovní listina'!D48","v":"Martin"},{"$f":"'Startovní listina'!E48","v":1981},{"$f":"'Startovní listina'!F48","v":"Bílovice nad Svitavou"},"03:07:08"]
[{"$f":"IF('Výsledková listina'!D88<>\"\",A87+1,\"\")","v":84},17,{"$f":"'Startovní listina'!G28","v":"B"},{"$f":"'Startovní listina'!B28","v":26},{"$f":"'Startovní listina'!C28","v":"Ledvinka"},{"$f":"'Startovní listina'!D28","v":"Josef"},{"$f":"'Startovní listina'!E28","v":1972},{"$f":"'Startovní listina'!F28","v":"Přibyslav"},"03:09:05"]
[{"$f":"IF('Výsledková listina'!D89<>\"\",A88+1,\"\")","v":85},18,{"$f":"'Startovní listina'!G91","v":"B"},{"$f":"'Startovní listina'!B91","v":99},{"$f":"'Startovní listina'!C91","v":"Konečný"},{"$f":"'Startovní listina'!D91","v":"Jaroslav"},{"$f":"'Startovní listina'!E91","v":1969},{"$f":"'Startovní listina'!F91","v":"Popůvky"},"03:12:25"]
[{"$f":"IF('Výsledková listina'!D90<>\"\",A89+1,\"\")","v":86},11,{"$f":"'Startovní listina'!G92","v":"C"},{"$f":"'Startovní listina'!B92","v":100},{"$f":"'Startovní listina'!C92","v":"Kalich"},{"$f":"'Startovní listina'!D92","v":"Dalibor"},{"$f":"'Startovní listina'!E92","v":1961},{"$f":"'Startovní listina'!F92","v":"Odranec"},"03:13:11"]
[{"$f":"IF('Výsledková listina'!D91<>\"\",A90+1,\"\")","v":87},12,{"$f":"'Startovní listina'!G8","v":"C"},{"$f":"'Startovní listina'!B8","v":4},{"$f":"'Startovní listina'!C8","v":"Zourek"},{"$f":"'Startovní listina'!D8","v":"Karel"},{"$f":"'Startovní listina'!E8","v":1959},{"$f":"'Startovní listina'!F8","v":"Bedřichovice"},"03:14:31"]
[{"$f":"IF('Výsledková listina'!D92<>\"\",A91+1,\"\")","v":88},5,{"$f":"'Startovní listina'!G24","v":"F"},{"$f":"'Startovní listina'!B24","v":21},{"$f":"'Startovní listina'!C24","v":"Radomská"},{"$f":"'Startovní listina'!D24","v":"Michaela"},{"$f":"'Startovní listina'!E24","v":1988},{"$f":"'Startovní listina'!F24","v":"Sokol Bělá nad Svitavou"},"03:16:36"]
[{"$f":"IF('Výsledková listina'!D93<>\"\",A92+1,\"\")","v":89},6,{"$f":"'Startovní listina'!G89","v":"F"},{"$f":"'Startovní listina'!B89","v":97},{"$f":"'Startovní listina'!C89","v":"Kalichová"},{"$f":"'Startovní listina'!D89","v":"Lucie"},{"$f":"'Startovní listina'!E89","v":1989},{"$f":"'Startovní listina'!F89","v":"Odranec"},"03:22:42"]
[{"$f":"IF('Výsledková listina'!D94<>\"\",A93+1,\"\")","v":90},43,{"$f":"'Startovní listina'!G35","v":"A"},{"$f":"'Startovní listina'!B35","v":34},{"$f":"'Startovní listina'!C35","v":"Čech"},{"$f":"'Startovní listina'!D35","v":"Aleš"},{"$f":"'Startovní listina'!E35","v":1976},{"$f":"'Startovní listina'!F35","v":"Farma Jiřího Chrásta"},"03:23:13"]
[{"$f":"IF('Výsledková listina'!D95<>\"\",A94+1,\"\")","v":91},7,{"$f":"'Startovní listina'!G82","v":"F"},{"$f":"'Startovní listina'!B82","v":90},{"$f":"'Startovní listina'!C82","v":"Navrátilová"},{"$f":"'Startovní listina'!D82","v":"Vlasta"},{"$f":"'Startovní listina'!E82","v":1983},{"$f":"'Startovní listina'!F82","v":"Vír"},"03:23:18"]
[{"$f":"IF('Výsledková listina'!D96<>\"\",A95+1,\"\")","v":92},19,{"$f":"'Startovní listina'!G101","v":"B"},{"$f":"'Startovní listina'!B101","v":109},{"$f":"'Startovní listina'!C101","v":"Jaskulka"},{"$f":"'Startovní listina'!D101","v":"Martin"},{"$f":"'Startovní listina'!E101","v":1968},{"$f":"'Startovní listina'!F101","v":"Kuřim"},"03:34:41"]
[{"$f":"IF('Výsledková listina'!D97<>\"\",A96+1,\"\")","v":93},13,{"$f":"'Startovní listina'!G39","v":"C"},{"$f":"'Startovní listina'!B39","v":38},{"$f":"'Startovní listina'!C39","v":"Blaha"},{"$f":"'Startovní listina'!D39","v":"Stanislav"},{"$f":"'Startovní listina'!E39","v":1963},{"$f":"'Startovní listina'!F39","v":"BK Vísky"},"03:37:22"]
[{"$f":"IF('Výsledková listina'!D98<>\"\",A97+1,\"\")","v":94},44,{"$f":"'Startovní listina'!G5","v":"A"},{"$f":"'Startovní listina'!B5","v":1},{"$f":"'Startovní listina'!C5","v":"Zálešák"},{"$f":"'Startovní listina'!D5","v":"Michal"},{"$f":"'Startovní listina'!E5","v":1982},{"$f":"'Startovní listina'!F5","v":"Praha"},"03:38:00"]
[{"$f":"IF('Výsledková listina'!D99<>\"\",A98+1,\"\")","v":95},45,{"$f":"'Startovní listina'!G45","v":"A"},{"$f":"'Startovní listina'!B45","v":45},{"$f":"'Startovní listina'!C45","v":"Mazourek"},{"$f":"'Startovní listina'!D45","v":"Jiří"},{"$f":"'Startovní listina'!E45","v":1979},{"$f":"'Startovní listina'!F45","v":"Bystřice nad Pernštejnem"},"03:38:01"]
[{"$f":"IF('Výsledková listina'!D100<>\"\",A99+1,\"\")","v":96},1,{"$f":"'Startovní listina'!G12","v":"E"},{"$f":"'Startovní listina'!B12","v":8},{"$f":"'Startovní listina'!C12","v":"Holý"},{"$f":"'Startovní listina'!D12","v":"Josef"},{"$f":"'Startovní listina'!E12","v":1941},{"$f":"'Startovní listina'!F12","v":"Moravská Slávia Brno"},"03:41:41"]
[{"$f":"IF('Výsledková listina'!D101<>\"\",A100+1,\"\")","v":97},2,{"$f":"'Startovní listina'!G14","v":"E"},{"$f":"'Startovní listina'!B14","v":10},{"$f":"'Startovní listina'!C14","v":"Hrubý"},{"$f":"'Startovní listina'!D14","v":"Milan"},{"$f":"'Startovní listina'!E14","v":1938},{"$f":"'Startovní listina'!F14","v":"Blansko"},"03:52:56"]
[{"$f":"IF('Výsledková listina'!D102<>\"\",A101+1,\"\")","v":98},46,{"$f":"'Startovní listina'!G93","v":"A"},{"$f":"'Startovní listina'!B93","v":101},{"$f":"'Startovní listina'!C93","v":"Chudoba"},{"$f":"'Startovní listina'!D93","v":"Pavel"},{"$f":"'Startovní listina'!E93","v":1991},{"$f":"'Startovní listina'!F93","v":"RMP TEAM Odranec"},"DNF"]
[{"$f":"IF('Výsledková listina'!D103<>\"\",A102+1,\"\")","v":99},7,{"$f":"'Startovní listina'!G57","v":"G"},{"$f":"'Startovní listina'!B57","v":58},{"$f":"'Startovní listina'!C57","v":"Bódiová"},{"$f":"'Startovní listina'!D57","v":"Adéla"},{"$f":"'Startovní listina'!E57","v":1976},{"$f":"'Startovní listina'!F57","v":"Sporty.cz Brno"},"DNF"]
[{"$f":"IF('Výsledková listina'!D104<>\"\",A103+1,\"\")","v":""},null,{"$f":"'Startovní listina'!G104","v":""},{"$f":"'Startovní listina'!B104","v":""},{"$f":"'Startovní listina'!C104","v":""},{"$f":"'Startovní listina'!D104","v":""},{"$f":"'Startovní listina'!E104","v":""},{"$f":"'Startovní listina'!F104","v":""}]
[{"$f":"IF('Výsledková listina'!D105<>\"\",A104+1,\"\")","v":""},null,{"$f":"'Startovní listina'!G105","v":""},{"$f":"'Startovní listina'!B105","v":""},{"$f":"'Startovní listina'!C105","v":""},{"$f":"'Startovní listina'!D105","v":""},{"$f":"'Startovní listina'!E105","v":""},{"$f":"'Startovní listina'!F105","v":""}]
[{"$f":"IF('Výsledková listina'!D106<>\"\",A105+1,\"\")","v":""},null,{"$f":"'Startovní listina'!G106","v":""},{"$f":"'Startovní listina'!B106","v":""},{"$f":"'Startovní listina'!C106","v":""},{"$f":"'Startovní listina'!D106","v":""},{"$f":"'Startovní listina'!E106","v":""},{"$f":"'Startovní listina'!F106","v":""}]
[{"$f":"IF('Výsledková listina'!D107<>\"\",A106+1,\"\")","v":""},null,{"$f":"'Startovní listina'!G107","v":""},{"$f":"'Startovní listina'!B107","v":""},{"$f":"'Startovní listina'!C107","v":""},{"$f":"'Startovní listina'!D107","v":""},{"$f":"'Startovní listina'!E107","v":""},{"$f":"'Startovní listina'!F107","v":""}]
[{"$f":"IF('Výsledková listina'!D108<>\"\",A107+1,\"\")","v":""},null,{"$f":"'Startovní listina'!G108","v":""},{"$f":"'Startovní listina'!B108","v":""},{"$f":"'Startovní listina'!C108","v":""},{"$f":"'Startovní listina'!D108","v":""},{"$f":"'Startovní listina'!E108","v":""},{"$f":"'Startovní listina'!F108","v":""}]
[{"$f":"IF('Výsledková listina'!D109<>\"\",A108+1,\"\")","v":""},null,{"$f":"'Startovní listina'!G109","v":""},{"$f":"'Startovní listina'!B109","v":""},{"$f":"'Startovní listina'!C109","v":""},{"$f":"'Startovní listina'!D109","v":""},{"$f":"'Startovní listina'!E109","v":""},{"$f":"'Startovní listina'!F109","v":""}]
[{"$f":"IF('Výsledková listina'!D110<>\"\",A109+1,\"\")","v":""},null,{"$f":"'Startovní listina'!G110","v":""},{"$f":"'Startovní listina'!B110","v":""},{"$f":"'Startovní listina'!C110","v":""},{"$f":"'Startovní listina'!D110","v":""},{"$f":"'Startovní listina'!E110","v":""},{"$f":"'Startovní listina'!F110","v":""}]
[{"$f":"IF('Výsledková listina'!D111<>\"\",A110+1,\"\")","v":""},null,{"$f":"'Startovní listina'!G111","v":""},{"$f":"'Startovní listina'!B111","v":""},{"$f":"'Startovní listina'!C111","v":""},{"$f":"'Startovní listina'!D111","v":""},{"$f":"'Startovní listina'!E111","v":""},{"$f":"'Startovní listina'!F111","v":""}]
[{"$f":"IF('Výsledková listina'!D112<>\"\",A111+1,\"\")","v":""},null,{"$f":"'Startovní listina'!G112","v":""},{"$f":"'Startovní listina'!B112","v":""},{"$f":"'Startovní listina'!C112","v":""},{"$f":"'Startovní listina'!D112","v":""},{"$f":"'Startovní listina'!E112","v":""},{"$f":"'Startovní listina'!F112","v":""}]
[{"$f":"IF('Výsledková listina'!D113<>\"\",A112+1,\"\")","v":""},null,{"$f":"'Startovní listina'!G113","v":""},{"$f":"'Startovní listina'!B113","v":""},{"$f":"'Startovní listina'!C113","v":""},{"$f":"'Startovní listina'!D113","v":""},{"$f":"'Startovní listina'!E113","v":""},{"$f":"'Startovní listina'!F113","v":""}]
[{"$f":"IF('Výsledková listina'!D114<>\"\",A113+1,\"\")","v":""},null,{"$f":"'Startovní listina'!G114","v":""},{"$f":"'Startovní listina'!B114","v":""},{"$f":"'Startovní listina'!C114","v":""},{"$f":"'Startovní listina'!D114","v":""},{"$f":"'Startovní listina'!E114","v":""},{"$f":"'Startovní listina'!F114","v":""}]
[{"$f":"IF('Výsledková listina'!D115<>\"\",A114+1,\"\")","v":""},null,{"$f":"'Startovní listina'!G115","v":""},{"$f":"'Startovní listina'!B115","v":""},{"$f":"'Startovní listina'!C115","v":""},{"$f":"'Startovní listina'!D115","v":""},{"$f":"'Startovní listina'!E115","v":""},{"$f":"'Startovní listina'!F115","v":""}]
[{"$f":"IF('Výsledková listina'!D116<>\"\",A115+1,\"\")","v":""},null,{"$f":"'Startovní listina'!G116","v":""},{"$f":"'Startovní listina'!B116","v":""},{"$f":"'Startovní listina'!C116","v":""},{"$f":"'Startovní listina'!D116","v":""},{"$f":"'Startovní listina'!E116","v":""},{"$f":"'Startovní listina'!F116","v":""}]
[{"$f":"IF('Výsledková listina'!D117<>\"\",A116+1,\"\")","v":""},null,{"$f":"'Startovní listina'!G117","v":""},{"$f":"'Startovní listina'!B117","v":""},{"$f":"'Startovní listina'!C117","v":""},{"$f":"'Startovní listina'!D117","v":""},{"$f":"'Startovní listina'!E117","v":""},{"$f":"'Startovní listina'!F117","v":""}]
[{"$f":"IF('Výsledková listina'!D118<>\"\",A117+1,\"\")","v":""},null,{"$f":"'Startovní listina'!G118","v":""},{"$f":"'Startovní listina'!B118","v":""},{"$f":"'Startovní listina'!C118","v":""},{"$f":"'Startovní listina'!D118","v":""},{"$f":"'Startovní listina'!E118","v":""},{"$f":"'Startovní listina'!F118","v":""}]
[{"$f":"IF('Výsledková listina'!D119<>\"\",A118+1,\"\")","v":""},null,{"$f":"'Startovní listina'!G119","v":""},{"$f":"'Startovní listina'!B119","v":""},{"$f":"'Startovní listina'!C119","v":""},{"$f":"'Startovní listina'!D119","v":""},{"$f":"'Startovní listina'!E119","v":""},{"$f":"'Startovní listina'!F119","v":""}]
[{"$f":"IF('Výsledková listina'!D120<>\"\",A119+1,\"\")","v":""},null,{"$f":"'Startovní listina'!G120","v":""},{"$f":"'Startovní listina'!B120","v":""},{"$f":"'Startovní listina'!C120","v":""},{"$f":"'Startovní listina'!D120","v":""},{"$f":"'Startovní listina'!E120","v":""},{"$f":"'Startovní listina'!F120","v":""}]
[{"$f":"IF('Výsledková listina'!D121<>\"\",A120+1,\"\")","v":""},null,{"$f":"'Startovní listina'!G121","v":""},{"$f":"'Startovní listina'!B121","v":""},{"$f":"'Startovní listina'!C121","v":""},{"$f":"'Startovní listina'!D121","v":""},{"$f":"'Startovní listina'!E121","v":""},{"$f":"'Startovní listina'!F121","v":""}]
[{"$f":"IF('Výsledková listina'!D122<>\"\",A121+1,\"\")","v":""},null,{"$f":"'Startovní listina'!G122","v":""},{"$f":"'Startovní listina'!B122","v":""},{"$f":"'Startovní listina'!C122","v":""},{"$f":"'Startovní listina'!D122","v":""},{"$f":"'Startovní listina'!E122","v":""},{"$f":"'Startovní listina'!F122","v":""}]
[{"$f":"IF('Výsledková listina'!D123<>\"\",A122+1,\"\")","v":""},null,{"$f":"'Startovní listina'!G123","v":""},{"$f":"'Startovní listina'!B123","v":""},{"$f":"'Startovní listina'!C123","v":""},{"$f":"'Startovní listina'!D123","v":""},{"$f":"'Startovní listina'!E123","v":""},{"$f":"'Startovní listina'!F123","v":""}]
[{"$f":"IF('Výsledková listina'!D124<>\"\",A123+1,\"\")","v":""},null,{"$f":"'Startovní listina'!G124","v":""},{"$f":"'Startovní listina'!B124","v":""},{"$f":"'Startovní listina'!C124","v":""},{"$f":"'Startovní listina'!D124","v":""},{"$f":"'Startovní listina'!E124","v":""},{"$f":"'Startovní listina'!F124","v":""}]
[{"$f":"IF('Výsledková listina'!D125<>\"\",A124+1,\"\")","v":""},null,{"$f":"'Startovní listina'!G125","v":""},{"$f":"'Startovní listina'!B125","v":""},{"$f":"'Startovní listina'!C125","v":""},{"$f":"'Startovní listina'!D125","v":""},{"$f":"'Startovní listina'!E125","v":""},{"$f":"'Startovní listina'!F125","v":""}]
[{"$f":"IF('Výsledková listina'!D126<>\"\",A125+1,\"\")","v":""},null,{"$f":"'Startovní listina'!G126","v":""},{"$f":"'Startovní listina'!B126","v":""},{"$f":"'Startovní listina'!C126","v":""},{"$f":"'Startovní listina'!D126","v":""},{"$f":"'Startovní listina'!E126","v":""},{"$f":"'Startovní listina'!F126","v":""}]
[{"$f":"IF('Výsledková listina'!D127<>\"\",A126+1,\"\")","v":""},null,{"$f":"'Startovní listina'!G127","v":""},{"$f":"'Startovní listina'!B127","v":""},{"$f":"'Startovní listina'!C127","v":""},{"$f":"'Startovní listina'!D127","v":""},{"$f":"'Startovní listina'!E127","v":""},{"$f":"'Startovní listina'!F127","v":""}]
[{"$f":"IF('Výsledková listina'!D128<>\"\",A127+1,\"\")","v":""},null,{"$f":"'Startovní listina'!G128","v":""},{"$f":"'Startovní listina'!B128","v":""},{"$f":"'Startovní listina'!C128","v":""},{"$f":"'Startovní listina'!D128","v":""},{"$f":"'Startovní listina'!E128","v":""},{"$f":"'Startovní listina'!F128","v":""}]
[{"$f":"IF('Výsledková listina'!D129<>\"\",A128+1,\"\")","v":""},null,{"$f":"'Startovní listina'!G129","v":""},{"$f":"'Startovní listina'!B129","v":""},{"$f":"'Startovní listina'!C129","v":""},{"$f":"'Startovní listina'!D129","v":""},{"$f":"'Startovní listina'!E129","v":""},{"$f":"'Startovní listina'!F129","v":""}]
[{"$f":"IF('Výsledková listina'!D130<>\"\",A129+1,\"\")","v":""},null,{"$f":"'Startovní listina'!G130","v":""},{"$f":"'Startovní listina'!B130","v":""},{"$f":"'Startovní listina'!C130","v":""},{"$f":"'Startovní listina'!D130","v":""},{"$f":"'Startovní listina'!E130","v":""},{"$f":"'Startovní listina'!F130","v":""}]
[{"$f":"IF('Výsledková listina'!D131<>\"\",A130+1,\"\")","v":""},null,{"$f":"'Startovní listina'!G131","v":""},{"$f":"'Startovní listina'!B131","v":""},{"$f":"'Startovní listina'!C131","v":""},{"$f":"'Startovní listina'!D131","v":""},{"$f":"'Startovní listina'!E131","v":""},{"$f":"'Startovní listina'!F131","v":""}]
[{"$f":"IF('Výsledková listina'!D132<>\"\",A131+1,\"\")","v":""},null,{"$f":"'Startovní listina'!G132","v":""},{"$f":"'Startovní listina'!B132","v":""},{"$f":"'Startovní listina'!C132","v":""},{"$f":"'Startovní listina'!D132","v":""},{"$f":"'Startovní listina'!E132","v":""},{"$f":"'Startovní listina'!F132","v":""}]
[{"$f":"IF('Výsledková listina'!D133<>\"\",A132+1,\"\")","v":""},null,{"$f":"'Startovní listina'!G133","v":""},{"$f":"'Startovní listina'!B133","v":""},{"$f":"'Startovní listina'!C133","v":""},{"$f":"'Startovní listina'!D133","v":""},{"$f":"'Startovní listina'!E133","v":""},{"$f":"'Startovní listina'!F133","v":""}]
[{"$f":"IF('Výsledková listina'!D134<>\"\",A133+1,\"\")","v":""},null,{"$f":"'Startovní listina'!G134","v":""},{"$f":"'Startovní listina'!B134","v":""},{"$f":"'Startovní listina'!C134","v":""},{"$f":"'Startovní listina'!D134","v":""},{"$f":"'Startovní listina'!E134","v":""},{"$f":"'Startovní listina'!F134","v":""}]
[{"$f":"IF('Výsledková listina'!D135<>\"\",A134+1,\"\")","v":""},null,{"$f":"'Startovní listina'!G135","v":""},{"$f":"'Startovní listina'!B135","v":""},{"$f":"'Startovní listina'!C135","v":""},{"$f":"'Startovní listina'!D135","v":""},{"$f":"'Startovní listina'!E135","v":""},{"$f":"'Startovní listina'!F135","v":""}]
[{"$f":"IF('Výsledková listina'!D136<>\"\",A135+1,\"\")","v":""},null,{"$f":"'Startovní listina'!G136","v":""},{"$f":"'Startovní listina'!B136","v":""},{"$f":"'Startovní listina'!C136","v":""},{"$f":"'Startovní listina'!D136","v":""},{"$f":"'Startovní listina'!E136","v":""},{"$f":"'Startovní listina'!F136","v":""}]
[{"$f":"IF('Výsledková listina'!D137<>\"\",A136+1,\"\")","v":""},null,{"$f":"'Startovní listina'!G137","v":""},{"$f":"'Startovní listina'!B137","v":""},{"$f":"'Startovní listina'!C137","v":""},{"$f":"'Startovní listina'!D137","v":""},{"$f":"'Startovní listina'!E137","v":""},{"$f":"'Startovní listina'!F137","v":""}]
[{"$f":"IF('Výsledková listina'!D138<>\"\",A137+1,\"\")","v":""},null,{"$f":"'Startovní listina'!G138","v":""},{"$f":"'Startovní listina'!B138","v":""},{"$f":"'Startovní listina'!C138","v":""},{"$f":"'Startovní listina'!D138","v":""},{"$f":"'Startovní listina'!E138","v":""},{"$f":"'Startovní listina'!F138","v":""}]
[{"$f":"IF('Výsledková listina'!D139<>\"\",A138+1,\"\")","v":""},null,{"$f":"'Startovní listina'!G139","v":""},{"$f":"'Startovní listina'!B139","v":""},{"$f":"'Startovní listina'!C139","v":""},{"$f":"'Startovní listina'!D139","v":""},{"$f":"'Startovní listina'!E139","v":""},{"$f":"'Startovní listina'!F139","v":""}]
[{"$f":"IF('Výsledková listina'!D140<>\"\",A139+1,\"\")","v":""},null,{"$f":"'Startovní listina'!G140","v":""},{"$f":"'Startovní listina'!B140","v":""},{"$f":"'Startovní listina'!C140","v":""},{"$f":"'Startovní listina'!D140","v":""},{"$f":"'Startovní listina'!E140","v":""},{"$f":"'Startovní listina'!F140","v":""}]
[{"$f":"IF('Výsledková listina'!D141<>\"\",A140+1,\"\")","v":""},null,{"$f":"'Startovní listina'!G141","v":""},{"$f":"'Startovní listina'!B141","v":""},{"$f":"'Startovní listina'!C141","v":""},{"$f":"'Startovní listina'!D141","v":""},{"$f":"'Startovní listina'!E141","v":""},{"$f":"'Startovní listina'!F141","v":""}]
[]
[]
[]
[]
[]
[null,null,null,"seřadit podle kategorie a pak podle času"]

{"sheet":"Družstva","index":3,"n_rows":13,"n_cols":8,"rows_kept":13,"cut":false,"hidden":false,"merged":[[3,1,4,1],[3,5,4,5],[3,7,4,7],[0,1,0,7],[1,1,1,7],[5,1,6,1],[5,5,6,5],[5,7,6,7],[7,1,8,1],[7,5,8,5],[7,7,8,7],[9,1,10,1],[9,5,10,5],[9,7,10,7],[11,1,12,1],[11,5,12,5],[11,7,12,7]]}
[null,{"$f":"\"Výsledková listina - Malý svratecký maratón \"&'Prezenční listina'!O2&\" - družstva\"","v":"Výsledková listina - Malý svratecký maratón 2014 - družstva"}]
[null,{"$f":"'Prezenční listina'!O2-1953&\". ročník\"","v":"61. ročník"}]
[null,"Pořadí","Příjmení","Jméno","Narození","Oddíl / Bydliště","Čas","Výsledný čas"]
[null,"1.","Borek","Aleš",1977,"adidas Running TEAM","02:01:36",{"$f":"IF((G4=0),\"\",G4+G5)","v":"03:46:38"}]
[null,null,"Homoláč","Jiří",1990,null,"01:45:02"]
[null,"2.","Glier","Michal",1982,"Moravská Slávia \"A\"","02:05:52",{"$f":"IF((G6=0),\"\",G6+G7)","v":"04:01:34"}]
[null,null,"Orálek","Daniel",1970,null,"01:55:42"]
[null,"3.","Svoboda","Petr",1968,"Moravská Slávia \"B\"","02:07:04",{"$f":"IF((G8=0),\"\",G8+G9)","v":"04:17:39"}]
[null,null,"Rerych","Jiří",1962,null,"02:10:35"]
[null,"4.","Čech","Martin",1978,"Farma Jiřího Chrásta","02:43:32",{"$f":"IF((G10=0),\"\",G10+G11)","v":"05:19:18"}]
[null,null,"Stejskal","Petr",1976,null,"02:35:46"]
[null,"5.","Blaha","Rostislav",1989,"BK Vísky","02:52:28",{"$f":"IF((G12=0),\"\",G12+G13)","v":"05:57:45"}]
[null,null,"Crhová","Ivana",1966,null,"03:05:17"]

{"sheet":"Běh Vírem","index":4,"n_rows":54,"n_cols":11,"rows_kept":54,"cut":false,"hidden":false,"merged":[[0,0,0,7],[1,0,1,7]]}
[{"$f":"\"Běh Vírem \"&'Prezenční listina'!O2","v":"Běh Vírem 2014"}]
[{"$f":"'Prezenční listina'!O2-1966&\".ročník\"","v":"48.ročník"}]
[null,"Příjmení","Jméno","Narození","Oddíl / Bydliště","Startovní číslo","Čas","Pohlaví"]
[1,"Ammer","Matyáš",2001,"SK Ante Žďár nad Sázavou",72,8.0902777777777778E-3,{"$f":"IF(LEN(B4)=0,\" \",IF(MID(B4,LEN(B4),1)=\"á\",\"Ž\",\"M\"))","v":"M"}]
[2,"Pavelka","Dušan",1999,"AK Tišnov",81,8.3680555555555557E-3,"M"]
[3,"Dočekal","Jan",1999,"SK Ante Žďár nad Sázavou",71,8.5532407407407415E-3,"M"]
[4,"Janů","Petr",2003,"Hlinné",84,8.9120370370370378E-3,"M"]
[5,"Coural","Jaroslav",2002,"Vír",86,9.3981481481481485E-3,"M",null,null,","]
[6,"Medek","Denis",2005,"Žďár nad Sázavou",69,9.4907407407407406E-3,"M"]
[7,"Lorenčík","Kryštof",2004,"Chrudim",79,9.7222222222222224E-3,"M"]
[8,"Štýbnar","Štěpán",2003,"Jihlava",63,1.0486111111111111E-2,"M"]
[9,"Jílek","František",2004,"Velké Trestné",73,1.0613425925925927E-2,"M"]
[10,"Jílek","Benedikt",2006,"Velké Trestné",74,1.1400462962962965E-2,"M"]
[11,"Medek","Vojtěch",2004,"Žďár nad Sázavou",70,"DNF","M"]
[]
[1,"Lorenčíková","Adéla",2000,"Chrudim",76,8.9583333333333338E-3,{"$f":"IF(LEN(B16)=0,\" \",IF(MID(B16,LEN(B16),1)=\"á\",\"Ž\",\"M\"))","v":"Ž"}]
[2,"Křenková","Kateřina",2001,"Přeštice",89,9.1203703703703707E-3,"Ž"]
[3,"Nachtigalová","Nikola",1999,"Bystřice nad Pernštejnem",77,9.2592592592592605E-3,"Ž"]
[4,"Buršová","Ela",2003,"Rovečné",83,1.0775462962962964E-2,"Ž"]
[5,"Vraspírová","Ema",2000,"Olešnice",75,1.0902777777777777E-2,"Ž"]
[6,"Komárková","Jana",2001,"Bolešín",82,1.1111111111111112E-2,"Ž"]
[null,null,null,null,null,null,null,{"$f":"IF(LEN(B22)=0,\" \",IF(MID(B22,LEN(B22),1)=\"á\",\"Ž\",\"M\"))","v":" "}]
[null,null,null,null,null,null,null," "]
[null,null,null,null,null,null,null," "]
[null,null,null,null,null,null,null," "]
[null,null,null,null,null,null,null," "]
[null,null,null,null,null,null,null," "]
[null,null,null,null,null,null,null," "]
[null,null,null,null,null,null,null," "]
[null,null,null,null,null,null,null," "]
[null,null,null,null,null,null,null," "]
[null,null,null,null,null,null,null," "]
[null,null,null,null,null,null,null," "]
[null,null,null,null,null,null,null," "]
[null,null,null,null,null,null,null," "]
[null,null,null,null,null,null,null," "]
[null,null,null,null,null,null,null," "]
[null,null,null,null,null,null,null," "]
[null,null,null,null,null,null,null," "]
[null,null,null,null,null,null,null," "]
[null,null,null,null,null,null,null," "]
[null,null,null,null,null,null,null," "]
[null,null,null,null,null,null,null," "]
[null,null,null,null,null,null,null," "]
[null,null,null,null,null,null,null," "]
[null,null,null,null,null,null,null," "]
[null,null,null,null,null,null,null," "]
[null,null,null,null,null,null,null," "]
[null,null,null,null,null,null,null," "]
[null,null,null,null,null,null,null," "]
[null,null,null,null,null,null,null," "]
[null,null,null,null,null,null,null," "]
[null,null,null,null,null,null,null," "]
[null,null,null,null,null,null,null," "]

{"sheet":"mezičasy","index":5,"n_rows":2,"n_cols":8,"rows_kept":2,"cut":false,"hidden":true,"merged":[[0,0,0,1],[0,2,0,3],[0,4,0,5],[0,6,0,7]]}
["5. km",null,"10. km",null,"16. km",null,"27. km"]
["číslo","čas","číslo","čas","číslo","čas","číslo","čas"]

{"sheet":"Kategorie A","index":6,"n_rows":87,"n_cols":10,"rows_kept":87,"cut":false,"hidden":false,"merged":[[1,9,13,13],[86,2,92,6],[0,0,0,7],[1,0,1,7],[2,0,2,7]]}
[{"$f":"\"Výsledková listina - Malý svratecký maratón \"&'Prezenční listina'!O2","v":"Výsledková listina - Malý svratecký maratón 2014"}]
["2014-08-23",null,null,null,null,null,null,null,null,"\nPoté, co jsou dopsány časy VŠECH běžců, stisknout tlačítko 1.řazení \n\n\nVe sloupci B (Pořadí v kategorii) vytvořit posloupnou číselnou řadu pro každou kategorii a poté stisknout tlačítko 2.řazení\n\n\n                      !!! POZOR!!!\n\n               Použití tlačítek je nevratný krok!"]
[{"$f":"'Prezenční listina'!O2-1953&\". ročník\"","v":"61. ročník"}]
["Pořadí v kategorii","Kategorie","Startovní číslo","Příjmení","Jméno","Narození","Oddíl / Bydliště","Čas"]
[1,{"$f":"'Startovní listina'!G32","v":"A"},{"$f":"'Startovní listina'!B32","v":30},{"$f":"'Startovní listina'!C32","v":"Homoláč"},{"$f":"'Startovní listina'!D32","v":"Jiří"},{"$f":"'Startovní listina'!E32","v":1990},{"$f":"'Startovní listina'!F32","v":"adidas Running TEAM"},"01:45:02"]
[{"$f":"A5+1","v":2},{"$f":"'Startovní listina'!G61","v":"A"},{"$f":"'Startovní listina'!B61","v":62},{"$f":"'Startovní listina'!C61","v":"Kohut"},{"$f":"'Startovní listina'!D61","v":"Jan"},{"$f":"'Startovní listina'!E61","v":1985},{"$f":"'Startovní listina'!F61","v":"RELAX-FIT.CZ"},"01:51:27"]
[{"$f":"A6+1","v":3},{"$f":"'Startovní listina'!G56","v":"A"},{"$f":"'Startovní listina'!B56","v":57},{"$f":"'Startovní listina'!C56","v":"Janů"},{"$f":"'Startovní listina'!D56","v":"Jan"},{"$f":"'Startovní listina'!E56","v":1993},{"$f":"'Startovní listina'!F56","v":"Hvězda SKP Pardubice"},"01:54:45"]
[4,{"$f":"'Startovní listina'!G9","v":"A"},{"$f":"'Startovní listina'!B9","v":5},{"$f":"'Startovní listina'!C9","v":"Ryška"},{"$f":"'Startovní listina'!D9","v":"Vít"},{"$f":"'Startovní listina'!E9","v":1975},{"$f":"'Startovní listina'!F9","v":"VSK UNI BRNO"},"01:59:51"]
[5,{"$f":"'Startovní listina'!G67","v":"A"},{"$f":"'Startovní listina'!B67","v":72},{"$f":"'Startovní listina'!C67","v":"Ondráček"},{"$f":"'Startovní listina'!D67","v":"Tomáš"},{"$f":"'Startovní listina'!E67","v":1977},{"$f":"'Startovní listina'!F67","v":"Sporty.cz Brno"},"02:00:53"]
[6,{"$f":"'Startovní listina'!G33","v":"A"},{"$f":"'Startovní listina'!B33","v":31},{"$f":"'Startovní listina'!C33","v":"Borek"},{"$f":"'Startovní listina'!D33","v":"Aleš"},{"$f":"'Startovní listina'!E33","v":1977},{"$f":"'Startovní listina'!F33","v":"adidas Running TEAM"},"02:01:36"]
[7,{"$f":"'Startovní listina'!G46","v":"A"},{"$f":"'Startovní listina'!B46","v":46},{"$f":"'Startovní listina'!C46","v":"Kunčar"},{"$f":"'Startovní listina'!D46","v":"David"},{"$f":"'Startovní listina'!E46","v":1975},{"$f":"'Startovní listina'!F46","v":"Spartak Praha 4"},"02:04:30"]
[8,{"$f":"'Startovní listina'!G77","v":"A"},{"$f":"'Startovní listina'!B77","v":84},{"$f":"'Startovní listina'!C77","v":"Glier"},{"$f":"'Startovní listina'!D77","v":"Michal"},{"$f":"'Startovní listina'!E77","v":1982},{"$f":"'Startovní listina'!F77","v":"Moravská Slávia Brno"},"02:05:52"]
[9,{"$f":"'Startovní listina'!G68","v":"A"},{"$f":"'Startovní listina'!B68","v":73},{"$f":"'Startovní listina'!C68","v":"Czerný"},{"$f":"'Startovní listina'!D68","v":"Pavel"},{"$f":"'Startovní listina'!E68","v":1981},{"$f":"'Startovní listina'!F68","v":"Karviná"},"02:06:53"]
[10,{"$f":"'Startovní listina'!G13","v":"A"},{"$f":"'Startovní listina'!B13","v":9},{"$f":"'Startovní listina'!C13","v":"Borovec"},{"$f":"'Startovní listina'!D13","v":"Alexandr"},{"$f":"'Startovní listina'!E13","v":1976},{"$f":"'Startovní listina'!F13","v":"Choceň"},"02:08:18"]
[11,{"$f":"'Startovní listina'!G88","v":"A"},{"$f":"'Startovní listina'!B88","v":96},{"$f":"'Startovní listina'!C88","v":"Hrdina"},{"$f":"'Startovní listina'!D88","v":"Tomáš"},{"$f":"'Startovní listina'!E88","v":1979},{"$f":"'Startovní listina'!F88","v":"TRIEXPERT Brno "},"02:10:13"]
[12,{"$f":"'Startovní listina'!G99","v":"A"},{"$f":"'Startovní listina'!B99","v":107},{"$f":"'Startovní listina'!C99","v":"Kratochvíl"},{"$f":"'Startovní listina'!D99","v":"Jaroslav"},{"$f":"'Startovní listina'!E99","v":1977},{"$f":"'Startovní listina'!F99","v":"SDH Hluboké"},"02:19:02"]
[13,{"$f":"'Startovní listina'!G81","v":"A"},{"$f":"'Startovní listina'!B81","v":89},{"$f":"'Startovní listina'!C81","v":"Příhoda"},{"$f":"'Startovní listina'!D81","v":"Jan"},{"$f":"'Startovní listina'!E81","v":1983},{"$f":"'Startovní listina'!F81","v":"Ždánice"},"02:19:58"]
[14,{"$f":"'Startovní listina'!G97","v":"A"},{"$f":"'Startovní listina'!B97","v":105},{"$f":"'Startovní listina'!C97","v":"Pokorný"},{"$f":"'Startovní listina'!D97","v":"Václav"},{"$f":"'Startovní listina'!E97","v":1978},{"$f":"'Startovní listina'!F97","v":"Brno"},"02:23:19"]
[15,{"$f":"'Startovní listina'!G74","v":"A"},{"$f":"'Startovní listina'!B74","v":80},{"$f":"'Startovní listina'!C74","v":"Řezníček"},{"$f":"'Startovní listina'!D74","v":"Roman"},{"$f":"'Startovní listina'!E74","v":1977},{"$f":"'Startovní listina'!F74","v":"Žďár nad Sázavou"},"02:27:50"]
[16,{"$f":"'Startovní listina'!G90","v":"A"},{"$f":"'Startovní listina'!B90","v":98},{"$f":"'Startovní listina'!C90","v":"Kalich"},{"$f":"'Startovní listina'!D90","v":"Radim"},{"$f":"'Startovní listina'!E90","v":1985},{"$f":"'Startovní listina'!F90","v":"Heliasport Odranec"},"02:29:29"]
[17,{"$f":"'Startovní listina'!G73","v":"A"},{"$f":"'Startovní listina'!B73","v":79},{"$f":"'Startovní listina'!C73","v":"Kocur"},{"$f":"'Startovní listina'!D73","v":"Lukáš"},{"$f":"'Startovní listina'!E73","v":1977},{"$f":"'Startovní listina'!F73","v":"Otmarov"},"02:29:59"]
[18,{"$f":"'Startovní listina'!G96","v":"A"},{"$f":"'Startovní listina'!B96","v":104},{"$f":"'Startovní listina'!C96","v":"Brabenec"},{"$f":"'Startovní listina'!D96","v":"Aleš"},{"$f":"'Startovní listina'!E96","v":1987},{"$f":"'Startovní listina'!F96","v":"Žďár nad Sázavou"},"02:33:07"]
[19,{"$f":"'Startovní listina'!G64","v":"A"},{"$f":"'Startovní listina'!B64","v":67},{"$f":"'Startovní listina'!C64","v":"Pavelka"},{"$f":"'Startovní listina'!D64","v":"Richard"},{"$f":"'Startovní listina'!E64","v":1981},{"$f":"'Startovní listina'!F64","v":"Brno"},"02:33:18"]
[20,{"$f":"'Startovní listina'!G19","v":"A"},{"$f":"'Startovní listina'!B19","v":16},{"$f":"'Startovní listina'!C19","v":"Kameníček"},{"$f":"'Startovní listina'!D19","v":"Michal"},{"$f":"'Startovní listina'!E19","v":1986},{"$f":"'Startovní listina'!F19","v":"Vinařice"},"02:34:12"]
[21,{"$f":"'Startovní listina'!G79","v":"A"},{"$f":"'Startovní listina'!B79","v":86},{"$f":"'Startovní listina'!C79","v":"Navrátil"},{"$f":"'Startovní listina'!D79","v":"Marek"},{"$f":"'Startovní listina'!E79","v":1990},{"$f":"'Startovní listina'!F79","v":"Rožná"},"02:34:18"]
[22,{"$f":"'Startovní listina'!G31","v":"A"},{"$f":"'Startovní listina'!B31","v":29},{"$f":"'Startovní listina'!C31","v":"Veškrna"},{"$f":"'Startovní listina'!D31","v":"Ivan"},{"$f":"'Startovní listina'!E31","v":1983},{"$f":"'Startovní listina'!F31","v":"Brno"},"02:34:35"]
[23,{"$f":"'Startovní listina'!G36","v":"A"},{"$f":"'Startovní listina'!B36","v":35},{"$f":"'Startovní listina'!C36","v":"Stejskal"},{"$f":"'Startovní listina'!D36","v":"Petr"},{"$f":"'Startovní listina'!E36","v":1976},{"$f":"'Startovní listina'!F36","v":"Farma Jiřího Chrásta"},"02:35:46"]
[24,{"$f":"'Startovní listina'!G41","v":"A"},{"$f":"'Startovní listina'!B41","v":41},{"$f":"'Startovní listina'!C41","v":"Dubský"},{"$f":"'Startovní listina'!D41","v":"Roman"},{"$f":"'Startovní listina'!E41","v":1978},{"$f":"'Startovní listina'!F41","v":"Přibyslav"},"02:40:13"]
[25,{"$f":"'Startovní listina'!G50","v":"A"},{"$f":"'Startovní listina'!B50","v":50},{"$f":"'Startovní listina'!C50","v":"Kubík"},{"$f":"'Startovní listina'!D50","v":"Pavel"},{"$f":"'Startovní listina'!E50","v":1981},{"$f":"'Startovní listina'!F50","v":"Blansko"},"02:40:56"]
[26,{"$f":"'Startovní listina'!G85","v":"A"},{"$f":"'Startovní listina'!B85","v":93},{"$f":"'Startovní listina'!C85","v":"Filip"},{"$f":"'Startovní listina'!D85","v":"Rostislav"},{"$f":"'Startovní listina'!E85","v":1986},{"$f":"'Startovní listina'!F85","v":"HO Vír"},"02:43:16"]
[27,{"$f":"'Startovní listina'!G84","v":"A"},{"$f":"'Startovní listina'!B84","v":92},{"$f":"'Startovní listina'!C84","v":"Koutský"},{"$f":"'Startovní listina'!D84","v":"Tomáš"},{"$f":"'Startovní listina'!E84","v":1987},{"$f":"'Startovní listina'!F84","v":"HO Vír"},"02:43:17"]
[28,{"$f":"'Startovní listina'!G37","v":"A"},{"$f":"'Startovní listina'!B37","v":36},{"$f":"'Startovní listina'!C37","v":"Čech"},{"$f":"'Startovní listina'!D37","v":"Martin"},{"$f":"'Startovní listina'!E37","v":1978},{"$f":"'Startovní listina'!F37","v":"Farma Jiřího Chrásta"},"02:43:32"]
[29,{"$f":"'Startovní listina'!G6","v":"A"},{"$f":"'Startovní listina'!B6","v":2},{"$f":"'Startovní listina'!C6","v":"Jež"},{"$f":"'Startovní listina'!D6","v":"Zdeněk"},{"$f":"'Startovní listina'!E6","v":1977},{"$f":"'Startovní listina'!F6","v":"STS Chvojkovice Brod"},"02:46:35"]
[30,{"$f":"'Startovní listina'!G43","v":"A"},{"$f":"'Startovní listina'!B43","v":43},{"$f":"'Startovní listina'!C43","v":"Mihola"},{"$f":"'Startovní listina'!D43","v":"Zbyněk"},{"$f":"'Startovní listina'!E43","v":1975},{"$f":"'Startovní listina'!F43","v":"Kunštát"},"02:48:44"]
[31,{"$f":"'Startovní listina'!G86","v":"A"},{"$f":"'Startovní listina'!B86","v":94},{"$f":"'Startovní listina'!C86","v":"Kubík"},{"$f":"'Startovní listina'!D86","v":"Oldřich"},{"$f":"'Startovní listina'!E86","v":1981},{"$f":"'Startovní listina'!F86","v":"HO Vír"},"02:49:50"]
[32,{"$f":"'Startovní listina'!G23","v":"A"},{"$f":"'Startovní listina'!B23","v":20},{"$f":"'Startovní listina'!C23","v":"Hlavsa"},{"$f":"'Startovní listina'!D23","v":"Tomáš"},{"$f":"'Startovní listina'!E23","v":1983},{"$f":"'Startovní listina'!F23","v":"Adamov"},"02:50:17"]
[33,{"$f":"'Startovní listina'!G40","v":"A"},{"$f":"'Startovní listina'!B40","v":40},{"$f":"'Startovní listina'!C40","v":"Blaha"},{"$f":"'Startovní listina'!D40","v":"Rostislav"},{"$f":"'Startovní listina'!E40","v":1989},{"$f":"'Startovní listina'!F40","v":"BK Vísky"},"02:52:28"]
[34,{"$f":"'Startovní listina'!G59","v":"A"},{"$f":"'Startovní listina'!B59","v":60},{"$f":"'Startovní listina'!C59","v":"Matuška"},{"$f":"'Startovní listina'!D59","v":"Slávek"},{"$f":"'Startovní listina'!E59","v":1980},{"$f":"'Startovní listina'!F59","v":"HO Vír"},"02:52:57"]
[35,{"$f":"'Startovní listina'!G80","v":"A"},{"$f":"'Startovní listina'!B80","v":87},{"$f":"'Startovní listina'!C80","v":"Centko"},{"$f":"'Startovní listina'!D80","v":"Pavol"},{"$f":"'Startovní listina'!E80","v":1980},{"$f":"'Startovní listina'!F80","v":"HO Vír"},"02:52:58"]
[36,{"$f":"'Startovní listina'!G7","v":"A"},{"$f":"'Startovní listina'!B7","v":3},{"$f":"'Startovní listina'!C7","v":"Podsedník"},{"$f":"'Startovní listina'!D7","v":"Marek"},{"$f":"'Startovní listina'!E7","v":1985},{"$f":"'Startovní listina'!F7","v":"Miroslav"},"02:55:14"]
[37,{"$f":"'Startovní listina'!G25","v":"A"},{"$f":"'Startovní listina'!B25","v":22},{"$f":"'Startovní listina'!C25","v":"Kryštof"},{"$f":"'Startovní listina'!D25","v":"Ondřej"},{"$f":"'Startovní listina'!E25","v":1976},{"$f":"'Startovní listina'!F25","v":"TJ Jiskra Vír"},"02:55:44"]
[38,{"$f":"'Startovní listina'!G53","v":"A"},{"$f":"'Startovní listina'!B53","v":54},{"$f":"'Startovní listina'!C53","v":"Hübner"},{"$f":"'Startovní listina'!D53","v":"Jan"},{"$f":"'Startovní listina'!E53","v":1978},{"$f":"'Startovní listina'!F53","v":"SDH Bolešín"},"02:57:59"]
[39,{"$f":"'Startovní listina'!G54","v":"A"},{"$f":"'Startovní listina'!B54","v":55},{"$f":"'Startovní listina'!C54","v":"Hübner"},{"$f":"'Startovní listina'!D54","v":"Tomáš"},{"$f":"'Startovní listina'!E54","v":1979},{"$f":"'Startovní listina'!F54","v":"SDH Bolešín"},"02:58:00"]
[40,{"$f":"'Startovní listina'!G47","v":"A"},{"$f":"'Startovní listina'!B47","v":47},{"$f":"'Startovní listina'!C47","v":"Machát"},{"$f":"'Startovní listina'!D47","v":"Libor"},{"$f":"'Startovní listina'!E47","v":1979},{"$f":"'Startovní listina'!F47","v":"Bílovice nad Svitavou"},"03:02:55"]
[41,{"$f":"'Startovní listina'!G78","v":"A"},{"$f":"'Startovní listina'!B78","v":85},{"$f":"'Startovní listina'!C78","v":"Vojta"},{"$f":"'Startovní listina'!D78","v":"Marek"},{"$f":"'Startovní listina'!E78","v":1988},{"$f":"'Startovní listina'!F78","v":"TJ Slávia Hradec Králové"},"03:06:30"]
[42,{"$f":"'Startovní listina'!G48","v":"A"},{"$f":"'Startovní listina'!B48","v":48},{"$f":"'Startovní listina'!C48","v":"Štach"},{"$f":"'Startovní listina'!D48","v":"Martin"},{"$f":"'Startovní listina'!E48","v":1981},{"$f":"'Startovní listina'!F48","v":"Bílovice nad Svitavou"},"03:07:08"]
[43,{"$f":"'Startovní listina'!G35","v":"A"},{"$f":"'Startovní listina'!B35","v":34},{"$f":"'Startovní listina'!C35","v":"Čech"},{"$f":"'Startovní listina'!D35","v":"Aleš"},{"$f":"'Startovní listina'!E35","v":1976},{"$f":"'Startovní listina'!F35","v":"Farma Jiřího Chrásta"},"03:23:13"]
[44,{"$f":"'Startovní listina'!G5","v":"A"},{"$f":"'Startovní listina'!B5","v":1},{"$f":"'Startovní listina'!C5","v":"Zálešák"},{"$f":"'Startovní listina'!D5","v":"Michal"},{"$f":"'Startovní listina'!E5","v":1982},{"$f":"'Startovní listina'!F5","v":"Praha"},"03:38:00"]
[45,{"$f":"'Startovní listina'!G45","v":"A"},{"$f":"'Startovní listina'!B45","v":45},{"$f":"'Startovní listina'!C45","v":"Mazourek"},{"$f":"'Startovní listina'!D45","v":"Jiří"},{"$f":"'Startovní listina'!E45","v":1979},{"$f":"'Startovní listina'!F45","v":"Bystřice nad Pernštejnem"},"03:38:01"]
["X",{"$f":"'Startovní listina'!G93","v":"A"},{"$f":"'Startovní listina'!B93","v":101},{"$f":"'Startovní listina'!C93","v":"Chudoba"},{"$f":"'Startovní listina'!D93","v":"Pavel"},{"$f":"'Startovní listina'!E93","v":1991},{"$f":"'Startovní listina'!F93","v":"RMP TEAM Odranec"},"DNF"]
[null,{"$f":"'Startovní listina'!G111","v":""},{"$f":"'Startovní listina'!B111","v":""},{"$f":"'Startovní listina'!C111","v":""},{"$f":"'Startovní listina'!D111","v":""},{"$f":"'Startovní listina'!E111","v":""},{"$f":"'Startovní listina'!F111","v":""}]
[null,{"$f":"'Startovní listina'!G112","v":""},{"$f":"'Startovní listina'!B112","v":""},{"$f":"'Startovní listina'!C112","v":""},{"$f":"'Startovní listina'!D112","v":""},{"$f":"'Startovní listina'!E112","v":""},{"$f":"'Startovní listina'!F112","v":""}]
[null,{"$f":"'Startovní listina'!G113","v":""},{"$f":"'Startovní listina'!B113","v":""},{"$f":"'Startovní listina'!C113","v":""},{"$f":"'Startovní listina'!D113","v":""},{"$f":"'Startovní listina'!E113","v":""},{"$f":"'Startovní listina'!F113","v":""}]
[null,{"$f":"'Startovní listina'!G114","v":""},{"$f":"'Startovní listina'!B114","v":""},{"$f":"'Startovní listina'!C114","v":""},{"$f":"'Startovní listina'!D114","v":""},{"$f":"'Startovní listina'!E114","v":""},{"$f":"'Startovní listina'!F114","v":""}]
[null,{"$f":"'Startovní listina'!G115","v":""},{"$f":"'Startovní listina'!B115","v":""},{"$f":"'Startovní listina'!C115","v":""},{"$f":"'Startovní listina'!D115","v":""},{"$f":"'Startovní listina'!E115","v":""},{"$f":"'Startovní listina'!F115","v":""}]
[null,{"$f":"'Startovní listina'!G116","v":""},{"$f":"'Startovní listina'!B116","v":""},{"$f":"'Startovní listina'!C116","v":""},{"$f":"'Startovní listina'!D116","v":""},{"$f":"'Startovní listina'!E116","v":""},{"$f":"'Startovní listina'!F116","v":""}]
[null,{"$f":"'Startovní listina'!G117","v":""},{"$f":"'Startovní listina'!B117","v":""},{"$f":"'Startovní listina'!C117","v":""},{"$f":"'Startovní listina'!D117","v":""},{"$f":"'Startovní listina'!E117","v":""},{"$f":"'Startovní listina'!F117","v":""}]
[null,{"$f":"'Startovní listina'!G118","v":""},{"$f":"'Startovní listina'!B118","v":""},{"$f":"'Startovní listina'!C118","v":""},{"$f":"'Startovní listina'!D118","v":""},{"$f":"'Startovní listina'!E118","v":""},{"$f":"'Startovní listina'!F118","v":""}]
[null,{"$f":"'Startovní listina'!G119","v":""},{"$f":"'Startovní listina'!B119","v":""},{"$f":"'Startovní listina'!C119","v":""},{"$f":"'Startovní listina'!D119","v":""},{"$f":"'Startovní listina'!E119","v":""},{"$f":"'Startovní listina'!F119","v":""}]
[null,{"$f":"'Startovní listina'!G120","v":""},{"$f":"'Startovní listina'!B120","v":""},{"$f":"'Startovní listina'!C120","v":""},{"$f":"'Startovní listina'!D120","v":""},{"$f":"'Startovní listina'!E120","v":""},{"$f":"'Startovní listina'!F120","v":""}]
[null,{"$f":"'Startovní listina'!G121","v":""},{"$f":"'Startovní listina'!B121","v":""},{"$f":"'Startovní listina'!C121","v":""},{"$f":"'Startovní listina'!D121","v":""},{"$f":"'Startovní listina'!E121","v":""},{"$f":"'Startovní listina'!F121","v":""}]
[null,{"$f":"'Startovní listina'!G122","v":""},{"$f":"'Startovní listina'!B122","v":""},{"$f":"'Startovní listina'!C122","v":""},{"$f":"'Startovní listina'!D122","v":""},{"$f":"'Startovní listina'!E122","v":""},{"$f":"'Startovní listina'!F122","v":""}]
[null,{"$f":"'Startovní listina'!G123","v":""},{"$f":"'Startovní listina'!B123","v":""},{"$f":"'Startovní listina'!C123","v":""},{"$f":"'Startovní listina'!D123","v":""},{"$f":"'Startovní listina'!E123","v":""},{"$f":"'Startovní listina'!F123","v":""}]
[null,{"$f":"'Startovní listina'!G124","v":""},{"$f":"'Startovní listina'!B124","v":""},{"$f":"'Startovní listina'!C124","v":""},{"$f":"'Startovní listina'!D124","v":""},{"$f":"'Startovní listina'!E124","v":""},{"$f":"'Startovní listina'!F124","v":""}]
[null,{"$f":"'Startovní listina'!G125","v":""},{"$f":"'Startovní listina'!B125","v":""},{"$f":"'Startovní listina'!C125","v":""},{"$f":"'Startovní listina'!D125","v":""},{"$f":"'Startovní listina'!E125","v":""},{"$f":"'Startovní listina'!F125","v":""}]
[null,{"$f":"'Startovní listina'!G126","v":""},{"$f":"'Startovní listina'!B126","v":""},{"$f":"'Startovní listina'!C126","v":""},{"$f":"'Startovní listina'!D126","v":""},{"$f":"'Startovní listina'!E126","v":""},{"$f":"'Startovní listina'!F126","v":""}]
[null,{"$f":"'Startovní listina'!G127","v":""},{"$f":"'Startovní listina'!B127","v":""},{"$f":"'Startovní listina'!C127","v":""},{"$f":"'Startovní listina'!D127","v":""},{"$f":"'Startovní listina'!E127","v":""},{"$f":"'Startovní listina'!F127","v":""}]
[null,{"$f":"'Startovní listina'!G128","v":""},{"$f":"'Startovní listina'!B128","v":""},{"$f":"'Startovní listina'!C128","v":""},{"$f":"'Startovní listina'!D128","v":""},{"$f":"'Startovní listina'!E128","v":""},{"$f":"'Startovní listina'!F128","v":""}]
[null,{"$f":"'Startovní listina'!G129","v":""},{"$f":"'Startovní listina'!B129","v":""},{"$f":"'Startovní listina'!C129","v":""},{"$f":"'Startovní listina'!D129","v":""},{"$f":"'Startovní listina'!E129","v":""},{"$f":"'Startovní listina'!F129","v":""}]
[null,{"$f":"'Startovní listina'!G130","v":""},{"$f":"'Startovní listina'!B130","v":""},{"$f":"'Startovní listina'!C130","v":""},{"$f":"'Startovní listina'!D130","v":""},{"$f":"'Startovní listina'!E130","v":""},{"$f":"'Startovní listina'!F130","v":""}]
[null,{"$f":"'Startovní listina'!G131","v":""},{"$f":"'Startovní listina'!B131","v":""},{"$f":"'Startovní listina'!C131","v":""},{"$f":"'Startovní listina'!D131","v":""},{"$f":"'Startovní listina'!E131","v":""},{"$f":"'Startovní listina'!F131","v":""}]
[null,{"$f":"'Startovní listina'!G132","v":""},{"$f":"'Startovní listina'!B132","v":""},{"$f":"'Startovní listina'!C132","v":""},{"$f":"'Startovní listina'!D132","v":""},{"$f":"'Startovní listina'!E132","v":""},{"$f":"'Startovní listina'!F132","v":""}]
[null,{"$f":"'Startovní listina'!G133","v":""},{"$f":"'Startovní listina'!B133","v":""},{"$f":"'Startovní listina'!C133","v":""},{"$f":"'Startovní listina'!D133","v":""},{"$f":"'Startovní listina'!E133","v":""},{"$f":"'Startovní listina'!F133","v":""}]
[null,{"$f":"'Startovní listina'!G134","v":""},{"$f":"'Startovní listina'!B134","v":""},{"$f":"'Startovní listina'!C134","v":""},{"$f":"'Startovní listina'!D134","v":""},{"$f":"'Startovní listina'!E134","v":""},{"$f":"'Startovní listina'!F134","v":""}]
[null,{"$f":"'Startovní listina'!G135","v":""},{"$f":"'Startovní listina'!B135","v":""},{"$f":"'Startovní listina'!C135","v":""},{"$f":"'Startovní listina'!D135","v":""},{"$f":"'Startovní listina'!E135","v":""},{"$f":"'Startovní listina'!F135","v":""}]
[null,{"$f":"'Startovní listina'!G136","v":""},{"$f":"'Startovní listina'!B136","v":""},{"$f":"'Startovní listina'!C136","v":""},{"$f":"'Startovní listina'!D136","v":""},{"$f":"'Startovní listina'!E136","v":""},{"$f":"'Startovní listina'!F136","v":""}]
[null,{"$f":"'Startovní listina'!G137","v":""},{"$f":"'Startovní listina'!B137","v":""},{"$f":"'Startovní listina'!C137","v":""},{"$f":"'Startovní listina'!D137","v":""},{"$f":"'Startovní listina'!E137","v":""},{"$f":"'Startovní listina'!F137","v":""}]
[null,{"$f":"'Startovní listina'!G138","v":""},{"$f":"'Startovní listina'!B138","v":""},{"$f":"'Startovní listina'!C138","v":""},{"$f":"'Startovní listina'!D138","v":""},{"$f":"'Startovní listina'!E138","v":""},{"$f":"'Startovní listina'!F138","v":""}]
[null,{"$f":"'Startovní listina'!G139","v":""},{"$f":"'Startovní listina'!B139","v":""},{"$f":"'Startovní listina'!C139","v":""},{"$f":"'Startovní listina'!D139","v":""},{"$f":"'Startovní listina'!E139","v":""},{"$f":"'Startovní listina'!F139","v":""}]
[null,{"$f":"'Startovní listina'!G140","v":""},{"$f":"'Startovní listina'!B140","v":""},{"$f":"'Startovní listina'!C140","v":""},{"$f":"'Startovní listina'!D140","v":""},{"$f":"'Startovní listina'!E140","v":""},{"$f":"'Startovní listina'!F140","v":""}]
[null,{"$f":"'Startovní listina'!G141","v":""},{"$f":"'Startovní listina'!B141","v":""},{"$f":"'Startovní listina'!C141","v":""},{"$f":"'Startovní listina'!D141","v":""},{"$f":"'Startovní listina'!E141","v":""},{"$f":"'Startovní listina'!F141","v":""}]
[]
[]
[]
[]
[]
[null,null,"seřadit podle kategorie a pak podle času"]

{"sheet":"Kategorie B","index":7,"n_rows":23,"n_cols":10,"rows_kept":23,"cut":false,"hidden":false,"merged":[[0,0,0,7],[1,0,1,7],[1,9,3,13],[2,0,2,7]]}
[{"$f":"\"Výsledková listina - Malý svratecký maratón \"&'Prezenční listina'!O2","v":"Výsledková listina - Malý svratecký maratón 2014"}]
["2014-08-23",null,null,null,null,null,null,null,null,"\nPoté, co jsou dopsány časy VŠECH běžců, stisknout tlačítko 1.řazení \n\n\nVe sloupci B (Pořadí v kategorii) vytvořit posloupnou číselnou řadu pro každou kategorii a poté stisknout tlačítko 2.řazení\n\n\n                      !!! POZOR!!!\n\n               Použití tlačítek je nevratný krok!"]
[{"$f":"'Prezenční listina'!O2-1953&\". ročník\"","v":"61. ročník"}]
["Pořadí v kategorii","Kategorie","Startovní číslo","Příjmení","Jméno","Narození","Oddíl / Bydliště","Čas"]
[1,{"$f":"'Startovní listina'!G94","v":"B"},{"$f":"'Startovní listina'!B94","v":102},{"$f":"'Startovní listina'!C94","v":"Orálek"},{"$f":"'Startovní listina'!D94","v":"Daniel"},{"$f":"'Startovní listina'!E94","v":1970},{"$f":"'Startovní listina'!F94","v":"Moravská Slávia Brno"},"01:55:42"]
[{"$f":"A5+1","v":2},{"$f":"'Startovní listina'!G70","v":"B"},{"$f":"'Startovní listina'!B70","v":75},{"$f":"'Startovní listina'!C70","v":"Svoboda"},{"$f":"'Startovní listina'!D70","v":"Petr"},{"$f":"'Startovní listina'!E70","v":1968},{"$f":"'Startovní listina'!F70","v":"Moravská Slávia Brno"},"02:07:04"]
[{"$f":"IF('Kategorie B'!C7<>\"\",A6+1,\"\")","v":3},{"$f":"'Startovní listina'!G18","v":"B"},{"$f":"'Startovní listina'!B18","v":14},{"$f":"'Startovní listina'!C18","v":"Štýbnar"},{"$f":"'Startovní listina'!D18","v":"Zbyněk"},{"$f":"'Startovní listina'!E18","v":1974},{"$f":"'Startovní listina'!F18","v":"Běžec Vysočiny Jihlava"},"02:11:13"]
[{"$f":"IF('Kategorie B'!C8<>\"\",A7+1,\"\")","v":4},{"$f":"'Startovní listina'!G20","v":"B"},{"$f":"'Startovní listina'!B20","v":17},{"$f":"'Startovní listina'!C20","v":"Dušil"},{"$f":"'Startovní listina'!D20","v":"Jaroslav"},{"$f":"'Startovní listina'!E20","v":1970},{"$f":"'Startovní listina'!F20","v":"Brno"},"02:13:14"]
[{"$f":"IF('Kategorie B'!C9<>\"\",A8+1,\"\")","v":5},{"$f":"'Startovní listina'!G21","v":"B"},{"$f":"'Startovní listina'!B21","v":18},{"$f":"'Startovní listina'!C21","v":"Alman"},{"$f":"'Startovní listina'!D21","v":"Dušan"},{"$f":"'Startovní listina'!E21","v":1967},{"$f":"'Startovní listina'!F21","v":"Babice"},"02:15:37"]
[{"$f":"IF('Kategorie B'!C10<>\"\",A9+1,\"\")","v":6},{"$f":"'Startovní listina'!G22","v":"B"},{"$f":"'Startovní listina'!B22","v":19},{"$f":"'Startovní listina'!C22","v":"Hejtmánek"},{"$f":"'Startovní listina'!D22","v":"Miroslav"},{"$f":"'Startovní listina'!E22","v":1970},{"$f":"'Startovní listina'!F22","v":"Brno"},"02:21:58"]
[{"$f":"IF('Kategorie B'!C11<>\"\",A10+1,\"\")","v":7},{"$f":"'Startovní listina'!G100","v":"B"},{"$f":"'Startovní listina'!B100","v":108},{"$f":"'Startovní listina'!C100","v":"Konečný"},{"$f":"'Startovní listina'!D100","v":"Libor"},{"$f":"'Startovní listina'!E100","v":1971},{"$f":"'Startovní listina'!F100","v":"Kuřim"},"02:24:11"]
[{"$f":"IF('Kategorie B'!C12<>\"\",A11+1,\"\")","v":8},{"$f":"'Startovní listina'!G29","v":"B"},{"$f":"'Startovní listina'!B29","v":27},{"$f":"'Startovní listina'!C29","v":"Lorenčík"},{"$f":"'Startovní listina'!D29","v":"Aleš"},{"$f":"'Startovní listina'!E29","v":1973},{"$f":"'Startovní listina'!F29","v":"Chrudim"},"02:30:49"]
[{"$f":"IF('Kategorie B'!C13<>\"\",A12+1,\"\")","v":9},{"$f":"'Startovní listina'!G62","v":"B"},{"$f":"'Startovní listina'!B62","v":63},{"$f":"'Startovní listina'!C62","v":"Doležal"},{"$f":"'Startovní listina'!D62","v":"Marek"},{"$f":"'Startovní listina'!E62","v":1973},{"$f":"'Startovní listina'!F62","v":"NEW BALANCE"},"02:31:55"]
[{"$f":"IF('Kategorie B'!C14<>\"\",A13+1,\"\")","v":10},{"$f":"'Startovní listina'!G98","v":"B"},{"$f":"'Startovní listina'!B98","v":106},{"$f":"'Startovní listina'!C98","v":"Fučík"},{"$f":"'Startovní listina'!D98","v":"Jaroslav"},{"$f":"'Startovní listina'!E98","v":1974},{"$f":"'Startovní listina'!F98","v":"Prosetín"},"02:32:39"]
[{"$f":"IF('Kategorie B'!C15<>\"\",A14+1,\"\")","v":11},{"$f":"'Startovní listina'!G72","v":"B"},{"$f":"'Startovní listina'!B72","v":77},{"$f":"'Startovní listina'!C72","v":"Janek"},{"$f":"'Startovní listina'!D72","v":"Petr"},{"$f":"'Startovní listina'!E72","v":1969},{"$f":"'Startovní listina'!F72","v":"Brno"},"02:35:27"]
[{"$f":"IF('Kategorie B'!C16<>\"\",A15+1,\"\")","v":12},{"$f":"'Startovní listina'!G17","v":"B"},{"$f":"'Startovní listina'!B17","v":13},{"$f":"'Startovní listina'!C17","v":"Provazník"},{"$f":"'Startovní listina'!D17","v":"Milan"},{"$f":"'Startovní listina'!E17","v":1966},{"$f":"'Startovní listina'!F17","v":"Polička"},"02:37:44"]
[{"$f":"IF('Kategorie B'!C17<>\"\",A16+1,\"\")","v":13},{"$f":"'Startovní listina'!G102","v":"B"},{"$f":"'Startovní listina'!B102","v":110},{"$f":"'Startovní listina'!C102","v":"Novotný"},{"$f":"'Startovní listina'!D102","v":"Petr"},{"$f":"'Startovní listina'!E102","v":1965},{"$f":"'Startovní listina'!F102","v":"Kuřim"},"02:43:23"]
[{"$f":"IF('Kategorie B'!C18<>\"\",A17+1,\"\")","v":14},{"$f":"'Startovní listina'!G76","v":"B"},{"$f":"'Startovní listina'!B76","v":83},{"$f":"'Startovní listina'!C76","v":"Nosek"},{"$f":"'Startovní listina'!D76","v":"Pavel"},{"$f":"'Startovní listina'!E76","v":1965},{"$f":"'Startovní listina'!F76","v":"ASK Slavkov u Brna"},"02:43:33"]
[{"$f":"IF('Kategorie B'!C19<>\"\",A18+1,\"\")","v":15},{"$f":"'Startovní listina'!G87","v":"B"},{"$f":"'Startovní listina'!B87","v":95},{"$f":"'Startovní listina'!C87","v":"Tyleček"},{"$f":"'Startovní listina'!D87","v":"Pavel"},{"$f":"'Startovní listina'!E87","v":1973},{"$f":"'Startovní listina'!F87","v":"Brno"},"02:51:40"]
[{"$f":"IF('Kategorie B'!C20<>\"\",A19+1,\"\")","v":16},{"$f":"'Startovní listina'!G65","v":"B"},{"$f":"'Startovní listina'!B65","v":69},{"$f":"'Startovní listina'!C65","v":"Veselý"},{"$f":"'Startovní listina'!D65","v":"Prokop"},{"$f":"'Startovní listina'!E65","v":1969},{"$f":"'Startovní listina'!F65","v":"Kunštát"},"02:54:29"]
[{"$f":"IF('Kategorie B'!C21<>\"\",A20+1,\"\")","v":17},{"$f":"'Startovní listina'!G28","v":"B"},{"$f":"'Startovní listina'!B28","v":26},{"$f":"'Startovní listina'!C28","v":"Ledvinka"},{"$f":"'Startovní listina'!D28","v":"Josef"},{"$f":"'Startovní listina'!E28","v":1972},{"$f":"'Startovní listina'!F28","v":"Přibyslav"},"03:09:05"]
[{"$f":"IF('Kategorie B'!C22<>\"\",A21+1,\"\")","v":18},{"$f":"'Startovní listina'!G91","v":"B"},{"$f":"'Startovní listina'!B91","v":99},{"$f":"'Startovní listina'!C91","v":"Konečný"},{"$f":"'Startovní listina'!D91","v":"Jaroslav"},{"$f":"'Startovní listina'!E91","v":1969},{"$f":"'Startovní listina'!F91","v":"Popůvky"},"03:12:25"]
[{"$f":"IF('Kategorie B'!C23<>\"\",A22+1,\"\")","v":19},{"$f":"'Startovní listina'!G101","v":"B"},{"$f":"'Startovní listina'!B101","v":109},{"$f":"'Startovní listina'!C101","v":"Jaskulka"},{"$f":"'Startovní listina'!D101","v":"Martin"},{"$f":"'Startovní listina'!E101","v":1968},{"$f":"'Startovní listina'!F101","v":"Kuřim"},"03:34:41"]

{"sheet":"Kategorie C","index":8,"n_rows":17,"n_cols":10,"rows_kept":17,"cut":false,"hidden":false,"merged":[[0,0,0,7],[1,0,1,7],[1,9,3,13],[2,0,2,7]]}
[{"$f":"\"Výsledková listina - Malý svratecký maratón \"&'Prezenční listina'!O2","v":"Výsledková listina - Malý svratecký maratón 2014"}]
["2014-08-23",null,null,null,null,null,null,null,null,"\nPoté, co jsou dopsány časy VŠECH běžců, stisknout tlačítko 1.řazení \n\n\nVe sloupci B (Pořadí v kategorii) vytvořit posloupnou číselnou řadu pro každou kategorii a poté stisknout tlačítko 2.řazení\n\n\n                      !!! POZOR!!!\n\n               Použití tlačítek je nevratný krok!"]
[{"$f":"'Prezenční listina'!O2-1953&\". ročník\"","v":"61. ročník"}]
["Pořadí v kategorii","Kategorie","Startovní číslo","Příjmení","Jméno","Narození","Oddíl / Bydliště","Čas"]
[1,{"$f":"'Startovní listina'!G51","v":"C"},{"$f":"'Startovní listina'!B51","v":51},{"$f":"'Startovní listina'!C51","v":"Rerych"},{"$f":"'Startovní listina'!D51","v":"Jiří"},{"$f":"'Startovní listina'!E51","v":1962},{"$f":"'Startovní listina'!F51","v":"Moravská Slávia Brno"},"02:10:35"]
[{"$f":"IF('Kategorie C'!C6<>\"\",A5+1,\"\")","v":2},{"$f":"'Startovní listina'!G27","v":"C"},{"$f":"'Startovní listina'!B27","v":24},{"$f":"'Startovní listina'!C27","v":"Zouhar"},{"$f":"'Startovní listina'!D27","v":"Libor"},{"$f":"'Startovní listina'!E27","v":1958},{"$f":"'Startovní listina'!F27","v":"Brno Líšeň"},"02:25:50"]
[{"$f":"IF('Kategorie C'!C7<>\"\",A6+1,\"\")","v":3},{"$f":"'Startovní listina'!G69","v":"C"},{"$f":"'Startovní listina'!B69","v":74},{"$f":"'Startovní listina'!C69","v":"Čuhel"},{"$f":"'Startovní listina'!D69","v":"Jiří"},{"$f":"'Startovní listina'!E69","v":1958},{"$f":"'Startovní listina'!F69","v":"Křtěnov"},"02:30:25"]
[{"$f":"IF('Kategorie C'!C8<>\"\",A7+1,\"\")","v":4},{"$f":"'Startovní listina'!G52","v":"C"},{"$f":"'Startovní listina'!B52","v":53},{"$f":"'Startovní listina'!C52","v":"Nosek"},{"$f":"'Startovní listina'!D52","v":"Miroslav"},{"$f":"'Startovní listina'!E52","v":1955},{"$f":"'Startovní listina'!F52","v":"Moravská Slávia Brno"},"02:31:43"]
[{"$f":"IF('Kategorie C'!C9<>\"\",A8+1,\"\")","v":5},{"$f":"'Startovní listina'!G60","v":"C"},{"$f":"'Startovní listina'!B60","v":61},{"$f":"'Startovní listina'!C60","v":"Měřínský"},{"$f":"'Startovní listina'!D60","v":"Jaroslav"},{"$f":"'Startovní listina'!E60","v":1961},{"$f":"'Startovní listina'!F60","v":"AK Perná"},"02:34:52"]
[{"$f":"IF('Kategorie C'!C10<>\"\",A9+1,\"\")","v":6},{"$f":"'Startovní listina'!G103","v":"C"},{"$f":"'Startovní listina'!B103","v":111},{"$f":"'Startovní listina'!C103","v":"Sedláček"},{"$f":"'Startovní listina'!D103","v":"Svatopluk"},{"$f":"'Startovní listina'!E103","v":1957},{"$f":"'Startovní listina'!F103","v":"Moravská Slávia Brno"},"02:35:55"]
[{"$f":"IF('Kategorie C'!C11<>\"\",A10+1,\"\")","v":7},{"$f":"'Startovní listina'!G34","v":"C"},{"$f":"'Startovní listina'!B34","v":33},{"$f":"'Startovní listina'!C34","v":"Suchý"},{"$f":"'Startovní listina'!D34","v":"Karel"},{"$f":"'Startovní listina'!E34","v":1956},{"$f":"'Startovní listina'!F34","v":"Náměšť nad Oslavou"},"02:47:41"]
[{"$f":"IF('Kategorie C'!C12<>\"\",A11+1,\"\")","v":8},{"$f":"'Startovní listina'!G95","v":"C"},{"$f":"'Startovní listina'!B95","v":103},{"$f":"'Startovní listina'!C95","v":"Brabenec"},{"$f":"'Startovní listina'!D95","v":"Miroslav"},{"$f":"'Startovní listina'!E95","v":1959},{"$f":"'Startovní listina'!F95","v":"Žďár nad Sázavou"},"02:51:55"]
[{"$f":"IF('Kategorie C'!C13<>\"\",A12+1,\"\")","v":9},{"$f":"'Startovní listina'!G26","v":"C"},{"$f":"'Startovní listina'!B26","v":23},{"$f":"'Startovní listina'!C26","v":"Kučínský"},{"$f":"'Startovní listina'!D26","v":"Pavel"},{"$f":"'Startovní listina'!E26","v":1959},{"$f":"'Startovní listina'!F26","v":"Brno"},"02:55:30"]
[{"$f":"IF('Kategorie C'!C14<>\"\",A13+1,\"\")","v":10},{"$f":"'Startovní listina'!G55","v":"C"},{"$f":"'Startovní listina'!B55","v":56},{"$f":"'Startovní listina'!C55","v":"Češner"},{"$f":"'Startovní listina'!D55","v":"Vladimír"},{"$f":"'Startovní listina'!E55","v":1958},{"$f":"'Startovní listina'!F55","v":"Odolena Voda"},"02:59:15"]
[{"$f":"IF('Kategorie C'!C15<>\"\",A14+1,\"\")","v":11},{"$f":"'Startovní listina'!G92","v":"C"},{"$f":"'Startovní listina'!B92","v":100},{"$f":"'Startovní listina'!C92","v":"Kalich"},{"$f":"'Startovní listina'!D92","v":"Dalibor"},{"$f":"'Startovní listina'!E92","v":1961},{"$f":"'Startovní listina'!F92","v":"Odranec"},"03:13:11"]
[{"$f":"IF('Kategorie C'!C16<>\"\",A15+1,\"\")","v":12},{"$f":"'Startovní listina'!G8","v":"C"},{"$f":"'Startovní listina'!B8","v":4},{"$f":"'Startovní listina'!C8","v":"Zourek"},{"$f":"'Startovní listina'!D8","v":"Karel"},{"$f":"'Startovní listina'!E8","v":1959},{"$f":"'Startovní listina'!F8","v":"Bedřichovice"},"03:14:31"]
[{"$f":"IF('Kategorie C'!C17<>\"\",A16+1,\"\")","v":13},{"$f":"'Startovní listina'!G39","v":"C"},{"$f":"'Startovní listina'!B39","v":38},{"$f":"'Startovní listina'!C39","v":"Blaha"},{"$f":"'Startovní listina'!D39","v":"Stanislav"},{"$f":"'Startovní listina'!E39","v":1963},{"$f":"'Startovní listina'!F39","v":"BK Vísky"},"03:37:22"]

{"sheet":"Kategorie D","index":9,"n_rows":7,"n_cols":10,"rows_kept":7,"cut":false,"hidden":false,"merged":[[0,0,0,7],[1,0,1,7],[1,9,3,13],[2,0,2,7]]}
[{"$f":"\"Výsledková listina - Malý svratecký maratón \"&'Prezenční listina'!O2","v":"Výsledková listina - Malý svratecký maratón 2014"}]
["2014-08-23",null,null,null,null,null,null,null,null,"\nPoté, co jsou dopsány časy VŠECH běžců, stisknout tlačítko 1.řazení \n\n\nVe sloupci B (Pořadí v kategorii) vytvořit posloupnou číselnou řadu pro každou kategorii a poté stisknout tlačítko 2.řazení\n\n\n                      !!! POZOR!!!\n\n               Použití tlačítek je nevratný krok!"]
[{"$f":"'Prezenční listina'!O2-1953&\". ročník\"","v":"61. ročník"}]
["Pořadí v kategorii","Kategorie","Startovní číslo","Příjmení","Jméno","Narození","Oddíl / Bydliště","Čas"]
[1,{"$f":"'Startovní listina'!G58","v":"D"},{"$f":"'Startovní listina'!B58","v":59},{"$f":"'Startovní listina'!C58","v":"Boháč"},{"$f":"'Startovní listina'!D58","v":"Jiří"},{"$f":"'Startovní listina'!E58","v":1954},{"$f":"'Startovní listina'!F58","v":"Brno"},"02:52:47"]
[{"$f":"IF('Kategorie D'!C6<>\"\",A5+1,\"\")","v":2},{"$f":"'Startovní listina'!G16","v":"D"},{"$f":"'Startovní listina'!B16","v":12},{"$f":"'Startovní listina'!C16","v":"Chromý"},{"$f":"'Startovní listina'!D16","v":"Bořivoj"},{"$f":"'Startovní listina'!E16","v":1953},{"$f":"'Startovní listina'!F16","v":"Tišnov"},"02:54:18"]
[{"$f":"IF('Kategorie D'!C7<>\"\",A6+1,\"\")","v":3},{"$f":"'Startovní listina'!G38","v":"D"},{"$f":"'Startovní listina'!B38","v":37},{"$f":"'Startovní listina'!C38","v":"Nekuža"},{"$f":"'Startovní listina'!D38","v":"Jiří"},{"$f":"'Startovní listina'!E38","v":1951},{"$f":"'Startovní listina'!F38","v":"Kašpar Ostrava"},"02:57:34"]

{"sheet":"Kategorie E","index":10,"n_rows":6,"n_cols":10,"rows_kept":6,"cut":false,"hidden":false,"merged":[[0,0,0,7],[1,0,1,7],[1,9,3,13],[2,0,2,7]]}
[{"$f":"\"Výsledková listina - Malý svratecký maratón \"&'Prezenční listina'!O2","v":"Výsledková listina - Malý svratecký maratón 2014"}]
["2014-08-23",null,null,null,null,null,null,null,null,"\nPoté, co jsou dopsány časy VŠECH běžců, stisknout tlačítko 1.řazení \n\n\nVe sloupci B (Pořadí v kategorii) vytvořit posloupnou číselnou řadu pro každou kategorii a poté stisknout tlačítko 2.řazení\n\n\n                      !!! POZOR!!!\n\n               Použití tlačítek je nevratný krok!"]
[{"$f":"'Prezenční listina'!O2-1953&\". ročník\"","v":"61. ročník"}]
["Pořadí v kategorii","Kategorie","Startovní číslo","Příjmení","Jméno","Narození","Oddíl / Bydliště","Čas"]
[1,{"$f":"'Startovní listina'!G12","v":"E"},{"$f":"'Startovní listina'!B12","v":8},{"$f":"'Startovní listina'!C12","v":"Holý"},{"$f":"'Startovní listina'!D12","v":"Josef"},{"$f":"'Startovní listina'!E12","v":1941},{"$f":"'Startovní listina'!F12","v":"Moravská Slávia Brno"},"03:41:41"]
[{"$f":"IF('Kategorie E'!C6<>\"\",A5+1,\"\")","v":2},{"$f":"'Startovní listina'!G14","v":"E"},{"$f":"'Startovní listina'!B14","v":10},{"$f":"'Startovní listina'!C14","v":"Hrubý"},{"$f":"'Startovní listina'!D14","v":"Milan"},{"$f":"'Startovní listina'!E14","v":1938},{"$f":"'Startovní listina'!F14","v":"Blansko"},"03:52:56"]

{"sheet":"Kategorie F","index":11,"n_rows":11,"n_cols":10,"rows_kept":11,"cut":false,"hidden":false,"merged":[[0,0,0,7],[1,0,1,7],[1,9,3,13],[2,0,2,7]]}
[{"$f":"\"Výsledková listina - Malý svratecký maratón \"&'Prezenční listina'!O2","v":"Výsledková listina - Malý svratecký maratón 2014"}]
["2014-08-23",null,null,null,null,null,null,null,null,"\nPoté, co jsou dopsány časy VŠECH běžců, stisknout tlačítko 1.řazení \n\n\nVe sloupci B (Pořadí v kategorii) vytvořit posloupnou číselnou řadu pro každou kategorii a poté stisknout tlačítko 2.řazení\n\n\n                      !!! POZOR!!!\n\n               Použití tlačítek je nevratný krok!"]
[{"$f":"'Prezenční listina'!O2-1953&\". ročník\"","v":"61. ročník"}]
["Pořadí v kategorii","Kategorie","Startovní číslo","Příjmení","Jméno","Narození","Oddíl / Bydliště","Čas"]
[1,{"$f":"'Startovní listina'!G10","v":"F"},{"$f":"'Startovní listina'!B10","v":6},{"$f":"'Startovní listina'!C10","v":"Ďurdiaková"},{"$f":"'Startovní listina'!D10","v":"Tereza"},{"$f":"'Startovní listina'!E10","v":1991},{"$f":"'Startovní listina'!F10","v":"AK Olymp Brno"},"02:17:26"]
[{"$f":"IF('Kategorie F'!C6<>\"\",A5+1,\"\")","v":2},{"$f":"'Startovní listina'!G30","v":"F"},{"$f":"'Startovní listina'!B30","v":28},{"$f":"'Startovní listina'!C30","v":"Procházková"},{"$f":"'Startovní listina'!D30","v":"Tereza"},{"$f":"'Startovní listina'!E30","v":1990},{"$f":"'Startovní listina'!F30","v":"Orel Ořechov"},"02:34:35"]
[{"$f":"IF('Kategorie F'!C7<>\"\",A6+1,\"\")","v":3},{"$f":"'Startovní listina'!G71","v":"F"},{"$f":"'Startovní listina'!B71","v":76},{"$f":"'Startovní listina'!C71","v":"Krejčová"},{"$f":"'Startovní listina'!D71","v":"Magda"},{"$f":"'Startovní listina'!E71","v":1980},{"$f":"'Startovní listina'!F71","v":"Brno"},"02:34:58"]
[{"$f":"IF('Kategorie F'!C8<>\"\",A7+1,\"\")","v":4},{"$f":"'Startovní listina'!G49","v":"F"},{"$f":"'Startovní listina'!B49","v":49},{"$f":"'Startovní listina'!C49","v":"Pešáková"},{"$f":"'Startovní listina'!D49","v":"Mirka"},{"$f":"'Startovní listina'!E49","v":1985},{"$f":"'Startovní listina'!F49","v":"Tetčice"},"02:35:16"]
[{"$f":"IF('Kategorie F'!C9<>\"\",A8+1,\"\")","v":5},{"$f":"'Startovní listina'!G24","v":"F"},{"$f":"'Startovní listina'!B24","v":21},{"$f":"'Startovní listina'!C24","v":"Radomská"},{"$f":"'Startovní listina'!D24","v":"Michaela"},{"$f":"'Startovní listina'!E24","v":1988},{"$f":"'Startovní listina'!F24","v":"Sokol Bělá nad Svitavou"},"03:16:36"]
[{"$f":"IF('Kategorie F'!C10<>\"\",A9+1,\"\")","v":6},{"$f":"'Startovní listina'!G89","v":"F"},{"$f":"'Startovní listina'!B89","v":97},{"$f":"'Startovní listina'!C89","v":"Kalichová"},{"$f":"'Startovní listina'!D89","v":"Lucie"},{"$f":"'Startovní listina'!E89","v":1989},{"$f":"'Startovní listina'!F89","v":"Odranec"},"03:22:42"]
[{"$f":"IF('Kategorie F'!C11<>\"\",A10+1,\"\")","v":7},{"$f":"'Startovní listina'!G82","v":"F"},{"$f":"'Startovní listina'!B82","v":90},{"$f":"'Startovní listina'!C82","v":"Navrátilová"},{"$f":"'Startovní listina'!D82","v":"Vlasta"},{"$f":"'Startovní listina'!E82","v":1983},{"$f":"'Startovní listina'!F82","v":"Vír"},"03:23:18"]

{"sheet":"Kategorie G","index":12,"n_rows":11,"n_cols":10,"rows_kept":11,"cut":false,"hidden":false,"merged":[[0,0,0,7],[1,0,1,7],[1,9,3,13],[2,0,2,7]]}
[{"$f":"\"Výsledková listina - Malý svratecký maratón \"&'Prezenční listina'!O2","v":"Výsledková listina - Malý svratecký maratón 2014"}]
["2014-08-23",null,null,null,null,null,null,null,null,"\nPoté, co jsou dopsány časy VŠECH běžců, stisknout tlačítko 1.řazení \n\n\nVe sloupci B (Pořadí v kategorii) vytvořit posloupnou číselnou řadu pro každou kategorii a poté stisknout tlačítko 2.řazení\n\n\n                      !!! POZOR!!!\n\n               Použití tlačítek je nevratný krok!"]
[{"$f":"'Prezenční listina'!O2-1953&\". ročník\"","v":"61. ročník"}]
["Pořadí v kategorii","Kategorie","Startovní číslo","Příjmení","Jméno","Narození","Oddíl / Bydliště","Čas"]
[1,{"$f":"'Startovní listina'!G44","v":"G"},{"$f":"'Startovní listina'!B44","v":44},{"$f":"'Startovní listina'!C44","v":"Beniačová"},{"$f":"'Startovní listina'!D44","v":"Linda"},{"$f":"'Startovní listina'!E44","v":1978},{"$f":"'Startovní listina'!F44","v":"Brno"},"02:30:47"]
[{"$f":"IF('Kategorie G'!C6<>\"\",A5+1,\"\")","v":2},{"$f":"'Startovní listina'!G66","v":"G"},{"$f":"'Startovní listina'!B66","v":70},{"$f":"'Startovní listina'!C66","v":"Barešová"},{"$f":"'Startovní listina'!D66","v":"Milada"},{"$f":"'Startovní listina'!E66","v":1975},{"$f":"'Startovní listina'!F66","v":"Kunštát"},"02:33:03"]
[{"$f":"IF('Kategorie G'!C7<>\"\",A6+1,\"\")","v":3},{"$f":"'Startovní listina'!G11","v":"G"},{"$f":"'Startovní listina'!B11","v":7},{"$f":"'Startovní listina'!C11","v":"Komárková"},{"$f":"'Startovní listina'!D11","v":"Zdeňka"},{"$f":"'Startovní listina'!E11","v":1974},{"$f":"'Startovní listina'!F11","v":"SDH Bolešín"},"02:33:24"]
[{"$f":"IF('Kategorie G'!C8<>\"\",A7+1,\"\")","v":4},{"$f":"'Startovní listina'!G42","v":"G"},{"$f":"'Startovní listina'!B42","v":42},{"$f":"'Startovní listina'!C42","v":"Klimánková"},{"$f":"'Startovní listina'!D42","v":"Eva"},{"$f":"'Startovní listina'!E42","v":1973},{"$f":"'Startovní listina'!F42","v":"Brno"},"02:35:15"]
[{"$f":"IF('Kategorie G'!C9<>\"\",A8+1,\"\")","v":5},{"$f":"'Startovní listina'!G63","v":"G"},{"$f":"'Startovní listina'!B63","v":64},{"$f":"'Startovní listina'!C63","v":"Ráček-Pelikánová"},{"$f":"'Startovní listina'!D63","v":"Dáša"},{"$f":"'Startovní listina'!E63","v":1976},{"$f":"'Startovní listina'!F63","v":"Brno"},"02:40:50"]
[{"$f":"IF('Kategorie G'!C10<>\"\",A9+1,\"\")","v":6},{"$f":"'Startovní listina'!G83","v":"G"},{"$f":"'Startovní listina'!B83","v":91},{"$f":"'Startovní listina'!C83","v":"Břížďalová"},{"$f":"'Startovní listina'!D83","v":"Jana"},{"$f":"'Startovní listina'!E83","v":1978},{"$f":"'Startovní listina'!F83","v":"Brno"},"02:53:55"]
[{"$f":"IF('Kategorie G'!C11<>\"\",A10+1,\"\")","v":7},{"$f":"'Startovní listina'!G57","v":"G"},{"$f":"'Startovní listina'!B57","v":58},{"$f":"'Startovní listina'!C57","v":"Bódiová"},{"$f":"'Startovní listina'!D57","v":"Adéla"},{"$f":"'Startovní listina'!E57","v":1976},{"$f":"'Startovní listina'!F57","v":"Sporty.cz Brno"},"DNF"]

{"sheet":"Kategorie H","index":13,"n_rows":6,"n_cols":10,"rows_kept":6,"cut":false,"hidden":false,"merged":[[0,0,0,7],[1,0,1,7],[1,9,3,13],[2,0,2,7]]}
[{"$f":"\"Výsledková listina - Malý svratecký maratón \"&'Prezenční listina'!O2","v":"Výsledková listina - Malý svratecký maratón 2014"}]
["2014-08-23",null,null,null,null,null,null,null,null,"\nPoté, co jsou dopsány časy VŠECH běžců, stisknout tlačítko 1.řazení \n\n\nVe sloupci B (Pořadí v kategorii) vytvořit posloupnou číselnou řadu pro každou kategorii a poté stisknout tlačítko 2.řazení\n\n\n                      !!! POZOR!!!\n\n               Použití tlačítek je nevratný krok!"]
[{"$f":"'Prezenční listina'!O2-1953&\". ročník\"","v":"61. ročník"}]
["Pořadí v kategorii","Kategorie","Startovní číslo","Příjmení","Jméno","Narození","Oddíl / Bydliště","Čas"]
[1,{"$f":"'Startovní listina'!G15","v":"H"},{"$f":"'Startovní listina'!B15","v":11},{"$f":"'Startovní listina'!C15","v":"Martincová"},{"$f":"'Startovní listina'!D15","v":"Ivana"},{"$f":"'Startovní listina'!E15","v":1963},{"$f":"'Startovní listina'!F15","v":"Moravská Slávia Brno"},"02:17:59"]
[{"$f":"IF('Kategorie H'!C6<>\"\",A5+1,\"\")","v":2},{"$f":"'Startovní listina'!G75","v":"H"},{"$f":"'Startovní listina'!B75","v":82},{"$f":"'Startovní listina'!C75","v":"Crhová"},{"$f":"'Startovní listina'!D75","v":"Ivana"},{"$f":"'Startovní listina'!E75","v":1966},{"$f":"'Startovní listina'!F75","v":"BK Vísky"},"03:05:17"]

{"sheet":"List1","index":14,"n_rows":73,"n_cols":11,"rows_kept":73,"cut":false,"hidden":false,"merged":[]}
[]
[]
[]
[]
[]
[null,"1.","Fusek Pavel                         1974                 Cetoraz",null,null,null,null,null,null,null,{"$f":"TRIM(C6)","v":"Fusek Pavel 1974 Cetoraz"}]
[null,"2.","Veškrna Ivan                    1983                 Brno",null,null,null,null,null,null,null,{"$f":"TRIM(C7)","v":"Veškrna Ivan 1983 Brno"}]
[null,"3.","Procházková Tereza          1990                 Orel Ořechov",null,null,null,null,null,null,null,"Procházková Tereza 1990 Orel Ořechov"]
[null,"4.","Milka Zdeněk                     1984                  Brno                         odvoz",null,null,null,null,null,null,null,"Milka Zdeněk 1984 Brno odvoz"]
[null,"5.","Tesařová Marie                 1954                  Křižanov",null,null,null,null,null,null,null,"Tesařová Marie 1954 Křižanov"]
[null,"6.","Konečný Jaroslav              1969                  Popůvky ",null,null,null,null,null,null,null,"Konečný Jaroslav 1969 Popůvky"]
[null,"7.","Havránek Jan                     1977                 Brno",null,null,null,null,null,null,null,"Havránek Jan 1977 Brno"]
[null,"8.","Šustrová Kateřina             1979                  Liga 100 Olomouc",null,null,null,null,null,null,null,"Šustrová Kateřina 1979 Liga 100 Olomouc"]
[null,"9.","Mikeš Filip                          1977                 CK Vinohradské šlapky",null,null,null,null,null,null,null,"Mikeš Filip 1977 CK Vinohradské šlapky"]
[null,"10.","PodmelováVilma             1962 Moravská Slávia Brno",null,null,null,null,null,null,null,"PodmelováVilma 1962 Moravská Slávia Brno"]
[null,"11.","Holý Josef                           1941                 Moravská Slávia Brno",null,null,null,null,null,null,null,"Holý Josef 1941 Moravská Slávia Brno"]
[null,"12.","Mareš Bohumír                 1951                 LEAR Brno",null,null,null,null,null,null,null,"Mareš Bohumír 1951 LEAR Brno"]
[null,"13.","Měřínský Jaroslav             1961                 AK Perná",null,null,null,null,null,null,null,"Měřínský Jaroslav 1961 AK Perná"]
[null,"14.","Komárková Zdeňka          1974                 SDH Bolešín",null,null,null,null,null,null,null,"Komárková Zdeňka 1974 SDH Bolešín"]
[null,"15.","Kratochvíl Pavel                1960                 Sokol Rudíkov",null,null,null,null,null,null,null,"Kratochvíl Pavel 1960 Sokol Rudíkov"]
[null,"16.","Kratochvíl Jaroslav           1977                 SDH Hluboké",null,null,null,null,null,null,null,"Kratochvíl Jaroslav 1977 SDH Hluboké"]
[null,"17.","Zouhar Libor                     1958 Brno - Líšeň ",null,null,null,null,null,null,null,"Zouhar Libor 1958 Brno - Líšeň"]
[null,"18.","Martincová Ivana             1963                 Moravská Slávia Brno",null,null,null,null,null,null,null,"Martincová Ivana 1963 Moravská Slávia Brno"]
[null,"19.","Čech Petr                           1981                 Prostějov",null,null,null,null,null,null,null,"Čech Petr 1981 Prostějov"]
[null,"20.","Žák Jiří                                1971                 MK Seitl Ostrava",null,null,null,null,null,null,null,"Žák Jiří 1971 MK Seitl Ostrava"]
[null,"21.","NovoinýPetr                     1965                 Kuřim",null,null,null,null,null,null,null,"NovoinýPetr 1965 Kuřim"]
[null,"22.","Ožana Václav                    1964                TJ Nové Město na Mor.  St.č. 50 (má 50let)",null,null,null,null,null,null,null,"Ožana Václav 1964 TJ Nové Město na Mor. St.č. 50 (má 50let)"]
[null,"23.","Kupka Pavel                      1975                 Lukovany",null,null,null,null,null,null,null,"Kupka Pavel 1975 Lukovany"]
[null,"24.","Sedláček Roman              1964Activity Lanškroun",null,null,null,null,null,null,null,"Sedláček Roman 1964Activity Lanškroun"]
[null,"25.","Fučík Jaroslav                   1974                 Prosetín ",null,null,null,null,null,null,null,"Fučík Jaroslav 1974 Prosetín"]
[null,"26.","GlierMichal                      1982                 Moravská Slávia Brno",null,null,null,null,null,null,null,"GlierMichal 1982 Moravská Slávia Brno"]
[null,"27.","JaskulkaMartin                1968                 Kuřim",null,null,null,null,null,null,null,"JaskulkaMartin 1968 Kuřim"]
[null,"28.","Suchý Karel                       1956                 Náměšť nad Osl.",null,null,null,null,null,null,null,"Suchý Karel 1956 Náměšť nad Osl."]
[null,"29.","Skalický Josef                    1962                POLDR Žichlínek",null,null,null,null,null,null,null,"Skalický Josef 1962 POLDR Žichlínek"]
[null,"30.","Šorf Ivo                              1975                ABND Racing Team Bystřice n.P.",null,null,null,null,null,null,null,"Šorf Ivo 1975 ABND Racing Team Bystřice n.P."]
[null,"31.","Sedlák Pavel                     1971                 Slatiňany",null,null,null,null,null,null,null,"Sedlák Pavel 1971 Slatiňany"]
[null,"32.","KožiakJuraj                      1974                 Kuničky",null,null,null,null,null,null,null,"KožiakJuraj 1974 Kuničky"]
[null,"33.","Pozler Jiří                          1983                Hradec Králové        odvoz",null,null,null,null,null,null,null,"Pozler Jiří 1983 Hradec Králové odvoz"]
[null,"34.","Rozkoš Tomáš                  1984                Hradec Králové       odvoz",null,null,null,null,null,null,null,"Rozkoš Tomáš 1984 Hradec Králové odvoz"]
[null,"35.","ŠtybnarZbyněk               1974                 Běžec Vysočiny Jihlava",null,null,null,null,null,null,null,"ŠtybnarZbyněk 1974 Běžec Vysočiny Jihlava"]
[null,"36.","RerychJiří                        1962                 Moravská Slávia Brno",null,null,null,null,null,null,null,"RerychJiří 1962 Moravská Slávia Brno"]
[null,"37.","Krátká Anna                     1969                 Hvězda SKP Pardubice",null,null,null,null,null,null,null,"Krátká Anna 1969 Hvězda SKP Pardubice"]
[null,"38.","Krátký Josef                     1965                 Hvězda SKP Pardubice ",null,null,null,null,null,null,null,"Krátký Josef 1965 Hvězda SKP Pardubice"]
[null,"39.","Polcar Jiří                         1977                 Farma Jiřího Chrásta-SK Veselí",null,null,null,null,null,null,null,"Polcar Jiří 1977 Farma Jiřího Chrásta-SK Veselí"]
[null,"40.","Čech Martin                     1978                Farma Jiřího Chrásta-SK Veselí",null,null,null,null,null,null,null,"Čech Martin 1978 Farma Jiřího Chrásta-SK Veselí"]
[null,"41.","Stejskal Petr                     1976                Farma Jiřího Chrásta-SK Veselí ",null,null,null,null,null,null,null,"Stejskal Petr 1976 Farma Jiřího Chrásta-SK Veselí"]
[null,"42.","Šerák Martin                  1978                Sokol Bílovice nad Svit.",null,null,null,null,null,null,null,"Šerák Martin 1978 Sokol Bílovice nad Svit."]
[null,"43.","Ledvina Luděk                 1976                Bílovice nad Svit.",null,null,null,null,null,null,null,"Ledvina Luděk 1976 Bílovice nad Svit."]
[null,"44.","Kocur Lukáš                     1977              Otmarov",null,null,null,null,null,null,null,"Kocur Lukáš 1977 Otmarov"]
[null,"45.","Brabenec Miroslav        1959                 Žďár nad Sáz.",null,null,null,null,null,null,null,"Brabenec Miroslav 1959 Žďár nad Sáz."]
[null,"46.","KučínskýPavel               1959                  Brno",null,null,null,null,null,null,null,"KučínskýPavel 1959 Brno"]
[null,"47.","Hrubý Milan                   1938                  Blansko    odvoz",null,null,null,null,null,null,null,"Hrubý Milan 1938 Blansko odvoz"]
[null,"48.","Kaše Jaroslav                  1953                 Club běžeckých outsiderů",null,null,null,null,null,null,null,"Kaše Jaroslav 1953 Club běžeckých outsiderů"]
[null,"49.","Kropáček Jaroslav          1970                 Brno",null,null,null,null,null,null,null,"Kropáček Jaroslav 1970 Brno"]
[null,"50.","Koutský Tomáš               1987                HO Vír",null,null,null,null,null,null,null,"Koutský Tomáš 1987 HO Vír"]
[null,"51.","Filip Rostislav                  1986                HO Vír",null,null,null,null,null,null,null,"Filip Rostislav 1986 HO Vír"]
[null,"52.","Blaha Rostislav               1989                BK Vísky",null,null,null,null,null,null,null,"Blaha Rostislav 1989 BK Vísky"]
[null,"53.","Blaha Stanislav               1963                BK Vísky",null,null,null,null,null,null,null,"Blaha Stanislav 1963 BK Vísky"]
[null,"54.","Kohut Jan                        1985                MIZUNO RELAX-FIT TEAM",null,null,null,null,null,null,null,"Kohut Jan 1985 MIZUNO RELAX-FIT TEAM"]
[null,"55.","Pavelka Richard             1981                Brno",null,null,null,null,null,null,null,"Pavelka Richard 1981 Brno"]
[null,"56.","Klíma Miroslav               1975                Mechanika Prostějov",null,null,null,null,null,null,null,"Klíma Miroslav 1975 Mechanika Prostějov"]
[null,"57.","Ondráček Tomáš           1977                Sporty.cz Brno",null,null,null,null,null,null,null,"Ondráček Tomáš 1977 Sporty.cz Brno"]
[null,"58.","BódiováAdéla                1976                Sporty.cz Brno",null,null,null,null,null,null,null,"BódiováAdéla 1976 Sporty.cz Brno"]
[null,"59.","Ráčková Dáša                 1976                Sporty.cz Křoví",null,null,null,null,null,null,null,"Ráčková Dáša 1976 Sporty.cz Křoví"]
[null,"60.","Kopečný Dušan              1973                Maratonský klub Prostějov",null,null,null,null,null,null,null,"Kopečný Dušan 1973 Maratonský klub Prostějov"]
[null,"61.","Krejčová Magda             1980                Brno",null,null,null,null,null,null,null,"Krejčová Magda 1980 Brno"]
[null,"62.","Janek Petr                       1969                Brno",null,null,null,null,null,null,null,"Janek Petr 1969 Brno"]
[null,"63.","PálenskýMilan               1977Stržanov",null,null,null,null,null,null,null,"PálenskýMilan 1977Stržanov"]
[null,"64.","Sedláček Svatopluk       1957               Moravská Slávia Brno",null,null,null,null,null,null,null,"Sedláček Svatopluk 1957 Moravská Slávia Brno"]
[null,"65.","Krejsová Petra               1979                Boskovice",null,null,null,null,null,null,null,"Krejsová Petra 1979 Boskovice"]
[null,"66.","Šperka Oldřich               1956                Jedovnice  ",null,null,null,null,null,null,null,{"$f":"TRIM(C71)","v":"Šperka Oldřich 1956 Jedovnice"}]
[null,"67.","Skřivánek Petr               1966                LRS Vyškov",null,null,null,null,null,null,null,"Skřivánek Petr 1966 LRS Vyškov"]
[null,"68.","Szabová Dana                1967               LRS Vyškov",null,null,null,null,null,null,null,"Szabová Dana 1967 LRS Vyškov"]